{"text_format":"1","workbook":"xlsx","n_sheets":21,"sheets":["Rate Exhibit_Current Plans","Introduction","Scoring Details","Information","Data","Cover Page","CP - Proposer Info","TAB 1","1a - Expereience & Reference ","TAB 2","2a - Plan Administration","2b - Service Capabilities","TAB 3","3a - Plan Designs","3b - Value Add","TAB 4","4a - Provider Disruption","4b - GEO Access","4c - Discount Analysis","TAB 5","5a - Cost"],"not_rendered":{"charts":0,"images":0,"macros":1,"external_links":4,"defined_names":104,"comments":0,"pivot_tables":0},"unopened":[],"bounds":{"document_bytes":16777216,"sheet_cells":100000,"rows_first":2000,"rows_last":500,"rows_between":2000,"halvings":0,"cell_chars":16384,"cell_head_chars":4096},"cells_cut":0,"cells_raw":0,"read":"whole","date_system":"1900"}

{"sheet":"Rate Exhibit_Current Plans","index":0,"n_rows":37,"n_cols":4,"rows_kept":37,"cut":false,"hidden":true,"merged":[]}
[{"$f":"+#REF!","v":{"$error":"#REF!"}}]
[{"$f":"+#REF!","v":{"$error":"#REF!"}}]
[]
["Monthly Rate Exhibit - Current Plan Designs"]
[]
[null,"DPPO High"]
[]
[null,"Coverage Tier","Lives","Current"]
[null,"Employee",null,41.8]
[null,"Employee/Spouse",null,85.3]
[null,"Employee/Child(ren)",null,85.51]
[null,"Employee/Family",null,135.16999999999999]
[null,"Annual Total",null,{"$f":"SUMPRODUCT($C$9:$C$12,D9:D12)*12","v":0}]
[null,"$ Change",null,"n/a"]
[null,"% Change",null,"n/a"]
[]
[null,"DPPO Low"]
[]
[null,"Coverage Tier","Lives","Current"]
[null,"Employee",null,29.07]
[null,"Employee/Spouse",null,59.41]
[null,"Employee/Child(ren)",null,59.73]
[null,"Employee/Family",null,94.85]
[null,"Annual Total",null,{"$f":"SUMPRODUCT($C$9:$C$12,D20:D23)*12","v":0}]
[null,"$ Change",null,"n/a"]
[null,"% Change",null,"n/a"]
[]
[null,"DHMO"]
[]
[null,"Coverage Tier","Lives","Current"]
[null,"Employee",null,13.4]
[null,"Employee/Spouse",null,26.8]
[null,"Employee/Child(ren)",null,30]
[null,"Employee/Family",null,48.4]
[null,"Annual Total",null,{"$f":"SUMPRODUCT($C$9:$C$12,D31:D34)*12","v":0}]
[null,"$ Change",null,"n/a"]
[null,"% Change",null,"n/a"]

{"sheet":"Introduction","index":1,"n_rows":21,"n_cols":2,"rows_kept":21,"cut":false,"hidden":false,"merged":[[19,1,19,2],[20,1,20,2],[13,1,13,2],[14,1,14,2],[15,1,15,2],[15,3,15,4],[17,1,17,2],[18,1,18,2],[7,1,7,2],[8,1,8,2],[9,1,9,2],[10,1,10,2],[11,1,11,2],[12,1,12,2]]}
[]
[null,"Request for Proposal (RFP) for Employee Benefits Plan Dental"]
[null,"for Lee County Board of County Commissioners (Lee County)"]
[null,"RFP240179CJV"]
[null,"Request for Proposal - Introduction"]
[null,"Effective 1/1/2025"]
[]
[null,"If you have any questions, please contact Lee County's Procurement Department:"]
[null,"Christy VanAllen"]
[null,"Procurement Analyst"]
[null,"Lee County Board of County Commissioners"]
[null,"Procurement Management Division"]
[null,"2115 Second Street, 1st Floor"]
[null,"Fort Myers, FL 33901"]
[null,"Email: CVanAllen@leegov.com"]
[null,"Direct Line: (239) 533-8839"]
[]
[null,"RFP Instructions:"]
[null,"Refer to County Procurement RFP Posting for complete RFP Submission Details.\n\nInformational Tabs included in this \"Attachment A\" Document:\n   Introduction\n   Scoring Details\n   Information"]
[null,"Tabs to be completed by proposer in this \"Attachment A\" Document are organized by scoring section and are as follows:\n   CP - Cover Page \n       Proposer Info                                             \n   TAB 1 - Expereience &Reference\n       1a - Expereience & Reference    \n   TAB 2 - Plan Administration and Service Capabilities\n       2a - Plan Administration\n       2b - Service Capabilities\n   TAB 3 - Plan Design & Value Add\n       3a - Plan Design\n       3b - Value Add\n   TAB 4 - Network Acess and Disruption\n       4a - Network Disruption\n       4b - GEO ACESS\n       4c - Discount Analysis\n   TAB 5 - Cost\n       5a - Cost"]
[null,"Any modifications to this RFP will be published in the form of an addendum posted solely by the county on the county's procurement website, www.leegov.com/procurement, under this solicitation number."]

{"sheet":"Scoring Details","index":2,"n_rows":28,"n_cols":4,"rows_kept":28,"cut":false,"hidden":false,"merged":[[7,1,7,3],[15,1,15,2],[16,1,16,3]]}
[]
[null,{"$f":"Introduction!B2","v":"Request for Proposal (RFP) for Employee Benefits Plan Dental"}]
[null,{"$f":"[3]Introduction!B3","v":"for Lee County Board of County Commissioners (Lee County)"}]
[null,{"$f":"Introduction!B4","v":"RFP240179CJV"}]
[null,"Request for Proposal - Scoring"]
[null,{"$f":"Introduction!B6","v":"Effective 1/1/2025"}]
[]
[null,"Scoring Details"]
[null,"Criteria","Criteria Description","Maximum Points Available"]
[null,1,"Company Relevant Experience & Reference",10]
[null,2,"Plan Administration & Service Capabilities ",25]
[null,3,"Plan Design & Value Added Benefits",20]
[null,4,"Network Access & Disruption",20]
[null,5,"Cost",20]
[null,6,"Local Vendor Preference",5]
[null,"Total Points",null,100]
[null,"*Additional details and documents found within submittal package, although not located within tabs as listed above, may be reviewed and considered by evaluation committee when scoring Proposers.   "]
[]
[]
[]
[]
[]
[]
[]
[]
[]
[]
[null,null,null,"    "]

{"sheet":"Information","index":3,"n_rows":36,"n_cols":3,"rows_kept":36,"cut":false,"hidden":false,"merged":[[7,1,7,2],[17,1,17,2],[29,1,29,2],[26,1,26,2]]}
[]
[null,{"$f":"Introduction!B2","v":"Request for Proposal (RFP) for Employee Benefits Plan Dental"}]
[null,{"$f":"Introduction!B3","v":"for Lee County Board of County Commissioners (Lee County)"}]
[null,{"$f":"Introduction!B4","v":"RFP240179CJV"}]
[null,{"$f":"Introduction!B5","v":"Request for Proposal - Introduction"}]
[null,{"$f":"Introduction!B6","v":"Effective 1/1/2025"}]
[]
[null,"Commissions Details:"]
[null,"Frequency","Monthly"]
[null,"Commission Type","Percentage"]
[null,"Type of Fee / Commission","Broking"]
[null,"Initial Commission","0.00%"]
[null,"Commission Expectation",0]
[null,"Ongoing Commission","0.00%"]
[null,"Paid To","Aon"]
[]
[]
[null,"Enrollment as of 12/01/2023\n     For detailed enrollment, please refer to additional data provided with the solicitation"]
[null,"Benefit Eligible",4712]
[null,"Current Plan"]
[null,"Employee Only",2072]
[null,"Employee + Spouse",1055]
[null,"Employee + Child(ren)",383]
[null,"Employee + Family",1202]
[null,"Total Membership",9975]
[]
[null,"Historical ASO Fee"]
[null,"2020-2024",2.12]
[]
[null,"Premiums\n     Monthly Premiums Noted Below\n     Premiums from 1/1/2019 - 12/31/2022"]
[null,"Employee-Paid"]
[null,"Employee Only",5]
[null,"Employee + Family",40]
[null,"Employer-Paid"]
[null,"Employee Only",37]
[null,"Employee + Family",37]

{"sheet":"Data","index":4,"n_rows":19,"n_cols":3,"rows_kept":19,"cut":false,"hidden":false,"merged":[[9,1,9,2],[10,1,10,2],[12,1,12,2],[15,1,15,2],[17,1,17,2]]}
[]
[null,{"$f":"Introduction!B2","v":"Request for Proposal (RFP) for Employee Benefits Plan Dental"}]
[null,{"$f":"Introduction!B3","v":"for Lee County Board of County Commissioners (Lee County)"}]
[null,{"$f":"Introduction!B4","v":"RFP240179CJV"}]
[null,{"$f":"Introduction!B5","v":"Request for Proposal - Introduction"}]
[null,{"$f":"Introduction!B6","v":"Effective 1/1/2025"}]
[]
[]
[]
[null,"Summary of Attachment Included with this RFP\nPlease email Lee County's Procurement for copies of the data that accompanies this RFP and if you have any issues with the files."]
[null,"Census"]
[null,"Census\n10/01/2023","2024 LCBOCC Dental Census.xls"]
[null,"Enrollment"]
[null,"Total Membership \n1/1/2022-12/31/2022","LCBOCC Dental Membership Report - Jan 2022 - Dec 2022.xlsx"]
[null,"Total Membership \n1/1/2023-12/31/2023","LCBOCC Dental Membership Report - Jan 2023 - Dec 2023.xlsx"]
[null,"Claims"]
[null,"All Dental Claims from 2022 and 2023\n1/1/2022-12/31/2023","881673LCBOCC_Dental Claims_2022_2023.xls"]
[null,"Plan Designs"]
[null,"PPO II Current Summary of Benefits","LCBOCC Passive PPO Dental_Benefit Summary.PDF"]

{"sheet":"Cover Page","index":5,"n_rows":10,"n_cols":3,"rows_kept":10,"cut":false,"hidden":false,"merged":[[8,2,8,3],[9,2,9,3]]}
[]
[null,null,{"$f":"Introduction!B2","v":"Request for Proposal (RFP) for Employee Benefits Plan Dental"}]
[null,null,{"$f":"Introduction!B3","v":"for Lee County Board of County Commissioners (Lee County)"}]
[null,null,{"$f":"Introduction!B4","v":"RFP240179CJV"}]
[null,null,"Request for Proposal - COVER PAGE"]
[null,null,{"$f":"Introduction!B6","v":"Effective 1/1/2025"}]
[]
[]
[null,null,"The Following Tabs Should be Included in the \"COVER PAGE: Introduction\""]
[null,null,"\nAttachment A:\n   CP - Proposer Info\n\n'Refer to County Procurement RFP Posting for complete RFP Submission Details."]

{"sheet":"CP - Proposer Info","index":6,"n_rows":20,"n_cols":3,"rows_kept":20,"cut":false,"hidden":false,"merged":[[7,1,7,2],[11,1,11,2],[12,1,12,2],[14,1,14,2]]}
[]
[null,{"$f":"Introduction!B2","v":"Request for Proposal (RFP) for Employee Benefits Plan Dental"}]
[null,{"$f":"Introduction!B3","v":"for Lee County Board of County Commissioners (Lee County)"}]
[null,{"$f":"Introduction!B4","v":"RFP240179CJV"}]
[null,{"$f":"'Cover Page'!C5","v":"Request for Proposal - COVER PAGE"}]
[null,{"$f":"'TAB 1'!C6","v":"Effective 1/1/2025"}]
[]
[null,"To Proposer: Please enter your Company's name in the space provided below."]
[null,"Name of Proposer:"]
[]
[]
[null,"Provide a description of your Company, your Company’s experience, and underlying philosophy in providing the services as described and requested herein.  Description should include details such as:  abilities, capacity, skill, strengths, number of years, location of office(s), as well as MBE, WBE, DBE, VBE or similar status, and recent, current, and/or projected workload, etc.…"]
[null,"[Enter Company's Response Here]"]
[]
[null,"Provide the contact name and email address of the individual that can answer questions on your proposal."]
[null,"Name:","[Enter Company's Response Here]"]
[null,"Title:","[Enter Company's Response Here]"]
[null,"Phone:","[Enter Company's Response Here]"]
[null,"Email:","[Enter Company's Response Here]"]
[null,"Additional Notes:","[Enter Company's Response Here]"]

{"sheet":"TAB 1","index":7,"n_rows":12,"n_cols":3,"rows_kept":12,"cut":false,"hidden":false,"merged":[[11,2,11,3],[8,2,8,3],[9,2,9,3],[10,2,10,3]]}
[]
[null,null,{"$f":"[4]Introduction!B2","v":"Request for Proposal (RFP) for Employee Benefits Plan(s) Medical, Pharmacy"}]
[null,null,{"$f":"Introduction!B3","v":"for Lee County Board of County Commissioners (Lee County)"}]
[null,null,{"$f":"Introduction!B4","v":"RFP240179CJV"}]
[null,null,"Request for Proposal - TAB 1"]
[null,null,{"$f":"Introduction!B6","v":"Effective 1/1/2025"}]
[]
[]
[null,null,"The Following Tabs Should be Included in the \"TAB 1: Experience & Reference\" submission binder"]
[null,null,"Attachment A:\n"]
[null,null,"1a -Experience & Reference\n"]
[null,null,"Refer to County Procurement RFP Posting for complete RFP Submission Details."]

{"sheet":"1a - Expereience & Reference ","index":8,"n_rows":83,"n_cols":5,"rows_kept":83,"cut":false,"hidden":false,"merged":[[36,2,36,4],[60,2,60,4],[7,2,7,3],[15,2,15,4],[22,2,22,4],[26,2,26,4],[10,2,10,4]]}
[]
[null,null,{"$f":"Introduction!B2","v":"Request for Proposal (RFP) for Employee Benefits Plan Dental"}]
[null,null,{"$f":"Introduction!B3","v":"for Lee County Board of County Commissioners (Lee County)"}]
[null,null,{"$f":"Introduction!B4","v":"RFP240179CJV"}]
[null,null,{"$f":"'TAB 1'!C5","v":"Request for Proposal - TAB 1"}]
[null,null,{"$f":"Introduction!B6","v":"Effective 1/1/2025"}]
[]
[null,null,"To Proposer: Please enter your Company's name in the space provided below."]
[null,null,"Name of Proposer:"]
[]
[null,null,"Dental RFP\nUse drop downs in column to the right of each question to indicate response where applicable. If additional details need to be provided, please use the column to the right of the drop down."]
[null,null,"Question","Response","Explanation"]
[null,null,"Proposer confirms that all requirements set forth in the RFP will be met, including mandatory minimums within the Specifications Document and attached all  items."]
[]
[]
["I.",null,"Experience"]
[null,null,"Question","Response","Explanation"]
[1,null,"List the number and percentage of employers of similar size to Lee County Board of County Commissioners  that your organization currently contracts with directly for Dental services. "]
[2,null,"List the number and percentage of public sector employers that your organization currently contracts with directly for Dental Services. "]
[3,null,"How many years has your organization been providing Dental benefits?"]
[4,null,"Describe what makes your company uniquely qualified to administer benefits to Lee County's employees?"]
[]
["II.",null,"References"]
[null,null,"Question","Response","Explanation"]
[1,null,"Confirm you have completed the reference document included within the RFP."]
[]
["III.",null,"Account Service Detail"]
[null,null,"Question","Response","Explanation"]
[1,"a","Will the account be serviced by a team approach, designated account manager, or a dedicated account manager?"]
[null,"b","Average tenure for team or dedicated account manager?"]
[null,"c","Average Size of Clients for team or dedicated account manager?"]
[null,"d","Number of Current Clients Managed by this team or Account Manager"]
[2,null,"Name of person responsible for overall client satisfaction?"]
[3,null,"Name of person responsible for day to day direct contact with Lee County HR staff."]
[4,null,"Please include team biographies and organizational chart in an additional attachment. Label the attachment \"[Proposer] Service Team\""]
[]
["IV.",null,"General Proposer Information"]
[null,null,"Question","Response","Explanation"]
[1,null,"Brand Name of Proposer:"]
[2,null,"Parent Co. Legal Entity Name:"]
[3,null,"d/b/a (Name in Marketplace):"]
[4,null,"Year Established/Incorporated:"]
[5,null,"NAIC Code"]
[6,null,"Industry Classification:"]
[7,null,"FEIN (Federal Employer Identification Number):"]
[8,null,"Tax Status (for-profit; not-for-profit)"]
[9,null,"Public or Privately Held?"]
[10,null,"Ownership/Controlling Interest Structure"]
[11,null,"Home Office Location"]
[null,"a","Address Line #1"]
[null,"b","Address Line #2"]
[null,"c","City"]
[null,"d","State"]
[null,"e","Zip"]
[null,"f","Web Address"]
[12,null,"Location(s) where employees will be assigned to provide services described in this RFP. "]
[13,null,"Are you authorized to do business in the State of Florida? "]
[14,null,"How many subcontractors will provide administrative services should your organization be awarded this business?"]
[15,null,"Please include a list of subcontractors used for customer service, claims administration, network access, disease management, and any other services within  an Exhibit titled \"[Proposer] Subcontractors\" in your response that includes the following information: in your response that includes the following information:\n  * Year Established/Incorporated\n  * NAIC Code\n  * Specify services to be provided"]
[]
["V.",null,"Proposer Financial Rating\nFor the entity that will be providing medical claims administration services, provide your  most recent financial ratings or filings and effective dates of the ratings from each of the following agencies:\nNote: Indicate whether your organization has received a financial rating for each of the rating agencies listed below by using the drop down box in the response cell to the right of each agency's name."]
[null,null,"Question","Response","Explanation"]
[1,null,"A.M. Best: Financial Rating Status"]
[null,"a","Financial Rating (do not report credit rating)"]
[null,"b","Financial Rating Modifiers (if applicable)"]
[null,"c","Date Rating Effective (if rated; if not financially rated, leave response cell blank)"]
[2,null,"Standard & Poor's: Financial Rating Status"]
[null,"a","Financial Rating (do not report credit rating)"]
[null,"b","Financial Rating Modifiers (if applicable)"]
[null,"c","Date Rating Effective (if rated; if not financially rated, leave response cell blank)"]
[3,null,"Moody's: Financial Rating Status"]
[null,"a","Financial Rating (do not report credit rating)"]
[null,"b","Financial Rating Modifiers (if applicable)"]
[null,"c","Date Rating Effective (if rated; if not financially rated, leave response cell blank)"]
[4,null,"Fitch: Financial Rating Status"]
[null,"a","Financial Rating (do not report credit rating)"]
[null,"b","Financial Rating Modifiers (if applicable)"]
[null,"c","Date Rating Effective (if rated; if not financially rated, leave response cell blank)"]
[5,null,"Proposer's financial rating change within the past 12 months:"]
[null,"a","A.M. Best"]
[null,"b","Standard & Poor's"]
[null,"c","Moody's"]
[null,"d","Fitch."]

{"sheet":"TAB 2","index":9,"n_rows":12,"n_cols":3,"rows_kept":12,"cut":false,"hidden":false,"merged":[[11,2,11,3],[8,2,8,3],[9,2,9,3],[10,2,10,3]]}
[]
[null,null,{"$f":"Introduction!B2","v":"Request for Proposal (RFP) for Employee Benefits Plan Dental"}]
[null,null,{"$f":"Introduction!B3","v":"for Lee County Board of County Commissioners (Lee County)"}]
[null,null,{"$f":"Introduction!B4","v":"RFP240179CJV"}]
[null,null,"Request for Proposal - TAB 2: Plan Administration and Service Capabilities"]
[null,null,{"$f":"Introduction!B6","v":"Effective 1/1/2025"}]
[]
[]
[null,null,"The Following Tabs Should be Included in the \"TAB 2:Plan Administration and Service Capabilities\" submission binder"]
[null,null,"Attachment A:\n"]
[null,null,"2a - Plan Administration\n2b - Service Capabilities\n"]
[null,null,"Refer to County Procurement RFP Posting for complete RFP Submission Details."]

{"sheet":"2a - Plan Administration","index":10,"n_rows":82,"n_cols":5,"rows_kept":82,"cut":false,"hidden":false,"merged":[[70,2,70,4],[7,2,7,3],[11,2,11,4],[30,2,30,4],[37,2,37,4],[50,2,50,4],[56,2,56,4]]}
[]
[null,null,{"$f":"Introduction!B2","v":"Request for Proposal (RFP) for Employee Benefits Plan Dental"}]
[null,null,{"$f":"Introduction!B3","v":"for Lee County Board of County Commissioners (Lee County)"}]
[null,null,{"$f":"Introduction!B4","v":"RFP240179CJV"}]
[null,null,"Request for Proposal - TAB 2: Plan Administration and Service Capabilities"]
[null,null,{"$f":"Introduction!B6","v":"Effective 1/1/2025"}]
[]
[null,null,"To Proposer: Please enter your Company's name in the space provided below."]
[null,null,"Name of Proposer:"]
[]
[]
["I.",null,"Employee Experience"]
[null,null,"Question","Response","Explanation"]
[1,null,"Confirm your understanding that January 1, 2025 is to be the contract effective date."]
[2,null,"The contract is to be issued in Florida unless you obtain permission from Lee BoCC to use an alternative situs."]
[3,null,"Confirm your organization will accept a self reported eligibility invoice and payment from Lee BoCC on a monthly basis without reconciliation requirements."]
[4,null,"Confirm acceptance of Lee BoCC's eligibility file layout and payment process. Include details of any standard limitations to file receipt, banking, or wire transfers."]
[5,null,"Include a complete list of the standard reports you can provide to Lee BoCC  to demonstrate you are meeting the Administrative Standards. Attach and name the file:   \"[Your Organization's Name]_Sample Reports\"."]
[6,null,"Does your organization provide online access to the Plan Sponsor to view and modify eligibility data?"]
[7,null,"Confirm that you will accept electronic file transfers for eligibility in HIPAA 834 / 5010 format"]
[8,null,"Confirm that you will provide a complete, final Summary Plan Description / Benefit Certificate within 30 days of the effective date of the plan (1/1/25)."]
[9,null,"Is your company able to provide a weekly claims feed to the Lee BoCC's FSA Vendor at no additional cost? If any additional cost will apply, please include the details in your response."]
[10,null,"Does your organization provide online access to the Plan Sponsor to view and download claim and network utilization reports?"]
[11,null,"Indicate below your 2023 calendar year results for each of the performance standards."]
[null,"a","Claims Processing Accuracy"]
[null,"b","Eligibility Updates (7 days or less)"]
[null,"c","Patient Satisfaction"]
[12,null,"Confirm you can cover dependent children up to the end of the calendar year in which the child turns 26, regardless of full time student or marital status."]
[7,null,"Confirm that current retirees and future retirees may enroll in the proposed plans, as defined and administered by Lee BoCC."]
[]
["II.",null,"Employee Communications\nNotate which communications are available to Lee County members. If communications would be an additional cost, please notate the cost in your response. Provide communication samples as PDF documents with your response to this RFP."]
[1,null,"Member welcome flyer"]
[2,null,"Manager referral tool kit"]
[3,null,"Member Website (attach images of your website with your proposal)"]
[4,null,"Member App (attach images of your website with your proposal)"]
[5,null,"Other (please include details in your explanation)"]
[]
["III.",null,"Provider Network and Referrals \nPlease indicate your ability to meet the below requirements. Only fill out the \"Explanation\" column if you have any deviations or clarifications regarding the service to be provided."]
[null,null,"Question","Response","Explanation"]
[1,null,"Is your network of providers wholly owned and managed by you or is it a rented/leased network?"]
[2,null,"Are the providers in your network also included in networks that other insurers or other dental service providers utilize?"]
[3,null,"Would you be willing to put performance guarantees in place to guarantee quick access for Lee County members?"]
[4,null,"What is your procedure for referring members back to their medical plan provider if their condition warrants additional intervention ?"]
[5,null,"Do you guide participants to providers designated as high quality and that are best suited to the member's needs (based on quality and/or outcomes data)?"]
[6,null,"What was your provider network turnover in 2023?"]
[7,null,"Confirm that, if requested, you are willing and able to add dental providers to your networks."]
[8,null,"What network management services will be delivered by a subcontractor or other outside firms?  Include leased network arrangements."]
[9,null,"If any part of your network is leased, please state the percentage, identify the owner of the network and geographic service area."]
[10,null,"If you plan to use leased networks to service The District, are the leased discounts loaded into your claims system? "]
[]
["IV.",null,"Employer Services\nPlease indicate your ability to meet the below requirements by answering Agree or Disagree in the space provided. Only fill out the \"Explanation\" column if you have any deviations or clarifications regarding the service to be provided."]
[null,null,"Question","Response","Explanation"]
[1,null,"Describe the reports available to Lee BoCC on a monthly, quarterly and annual basis."]
[2,null,"Confirm vendor is able to provide reports on an ad hoc basis."]
[3,null,"What sets your employer experience apart from your competitors?"]
[]
["V.",null,"Claims Administration"]
[null,null,"Question","Response","Explanation"]
[1,null,"At what level are the OON claims reimbursed?  "]
[2,null,"Supply a sample EOB with EOB messages. Attach and name the file: \"[Your Organization's Name]_Sample EOB\"."]
[3,null,"Describe the edits used to ensure the integrity of the data and to guard against duplicate payments."]
[4,null,"Confirm your claims system maintains on-line eligibility files that are updated at least weekly."]
[5,null,"Provide details on your COB process. Confirm frequency that COB is updated."]
[6,null,"Does your claims system automatically screens for duplicate bills?"]
[7,null,"List the locations of all claims offices that you propose to process claims for Lee BoCC."]
[8,null,"For the claims office that will service Lee BoCC, what was the claims financial accuracy rate during 2022?"]
[9,null,"For the claims office that will service Lee BoCC, what was the claims financial accuracy rate during 2023?"]
[10,null,"What is the target claim error rate for the office that would process claims for Lee BoCC?"]
[11,null,"What is the average and target turnaround times for clean claims for the office that would process claims for the Lee BoCC members?"]
[]
["VI.",null,"Plan Implementation"]
[null,null,"Question","Response","Explanation"]
[1,null,"Please confirm a Dental plan implementation schedule has been included with your proposal. Name the file: \"[Proposer] Implementation Schedule\""]
[2,null,"Do you provide implementation support?"]
[3,null,"Is there a dedicated implementation manager?"]
[4,null,"Please confirm your company will agree to provide a pre-implementation audit credit of $40,000 to be used prior to, or within the first 6 months of the effective date. "]
[5,null,"Please confirm your company agrees to provide a claims audit credit of $40,000 to be used within the initial contract period. "]
[6,null,"Confirm you agree to the County's required 61 day grace period for invoice payments."]
[7,null,"Should your company decide for any reason to terminate the plan, please confirm the number of days lead time provided to Lee BoCC. LCBoCC is requesting at least 120 days."]
[8,null,"Please include copies of current marketing materials that you feel would be of assistance in evaluating your program.  Attach and name the file:  \"Proposer]_Dental Marketing Materials\"."]
[9,null,"Please include copies of current member enrollment materials that you feel would be of assistance in evaluating your program.  Attach and name the file:  \"[Proposer]_Dental Enrollment Materials\"."]
[10,null,"Please attach a copy of a standard plan experience report provided on a monthly basis that Lee BoCC can review regularly to evaluate your program.  Attach and name the file:  \"[Proposer]_Dental Sample Experience Reports\"."]

{"sheet":"2b - Service Capabilities","index":11,"n_rows":42,"n_cols":5,"rows_kept":42,"cut":false,"hidden":false,"merged":[[7,2,7,3],[11,2,11,4],[25,2,25,4],[19,2,19,4]]}
[]
[null,null,{"$f":"Introduction!B5","v":"Request for Proposal - Introduction"}]
[null,null,{"$f":"Introduction!B6","v":"Effective 1/1/2025"}]
[null,null,{"$f":"Introduction!B4","v":"RFP240179CJV"}]
[null,null,"Request for Proposal - TAB 2: Plan Administration and Service Capabilities"]
[null,null,{"$f":"Introduction!B9","v":"Christy VanAllen"}]
[]
[null,null,"To Proposer: Please enter your Company's name in the space provided below."]
[null,null,"Name of Proposer:"]
[]
[]
["I.",null,"Employee Experience"]
[null,null,"Question","Response","Explanation"]
[1,null,"Does your organization have a mobile app?  If so, please attach details on services available through the app. Name the document: \"[Proposer]_Mobile App\"."]
[2,null,"Does your organization have a secure website for employees to log in and view claims experience?"]
[3,null,"Can members see pre-treatment estimates online?  "]
[4,null,"What decision making tools are available to members?"]
[5,null,"Can members file claims online for out of network services online?"]
[]
["II.",null,"Claims Administration"]
[null,null,"Question","Response","Explanation"]
[1,null,"Provide some detail on the security of your systems for member data."]
[2,null,"Confirm Network members enrolled in the PPO never have to submit claim forms for in-network services."]
[3,null,"Detail the claims process for members who seek care from out-of-network providers."]
[]
["III.",null,"Customer Service"]
[null,null,"Question","Response","Explanation"]
[1,null,"What are the hours of your Customer Service representatives?"]
[2,null,"What are the qualifications of the individuals answering Customer Service calls?"]
[3,null,"What is the average tenure on your Customer Service Team?"]
[4,null,"What are the Customer Service department's multi-lingual capabilities?"]
[5,null,"Describe your process for solving escalated complaints of call center service."]
[6,null,"Describe your process for solving escalated complaints of claims adjudication."]
[7,null,"Are ID cards provided to members?"]
[8,null,"What was your telephone abandonment rate in 2023?"]
[9,null,"What is your average speed to answer for phone calls?"]
[10,null,"How do you solicit member feedback?"]
[11,null,"Identify any member service factors not provided in the response to the above questions that you believe make you uniquely qualified to administer Lee BoCC's Dental plan."]
[12,null,"Provide details in a separate attachment for your member-facing website. What information can be accessed? What makes your member website better than your completitors?"]
[13,null,"Provide details in a separate attachment for your member-facing mobile app. What information can be accessed? What makes your member website better than your completitors?"]
[14,null,"What communicaitons are sent to members on a regular basis?"]
[15,null,"Do you have additional communicaitons available for the County to use for wellness events or condition-specific care (maternity leave, diabetes, ect.)?"]

{"sheet":"TAB 3","index":12,"n_rows":12,"n_cols":3,"rows_kept":12,"cut":false,"hidden":false,"merged":[[11,2,11,3],[8,2,8,3],[9,2,9,3],[10,2,10,3]]}
[]
[null,null,{"$f":"Introduction!B2","v":"Request for Proposal (RFP) for Employee Benefits Plan Dental"}]
[null,null,{"$f":"Introduction!B3","v":"for Lee County Board of County Commissioners (Lee County)"}]
[null,null,{"$f":"Introduction!B4","v":"RFP240179CJV"}]
[null,null,"Request for Proposal - TAB 3: Plan Design and Value Added Benefits"]
[null,null,{"$f":"Introduction!B6","v":"Effective 1/1/2025"}]
[]
[]
[null,null,"The Following Tabs Should be Included in the \"TAB 3: Plan Design and Value Added Benefits\" submission binder"]
[null,null,"Attachment A:\n"]
[null,null,"3a - Plan Designs\n3b - Value Add\n"]
[null,null,"Refer to County Procurement RFP Posting for complete RFP Submission Details."]

{"sheet":"3a - Plan Designs","index":13,"n_rows":60,"n_cols":7,"rows_kept":60,"cut":false,"hidden":false,"merged":[[13,3,13,4],[13,5,13,6],[38,3,38,4],[38,5,38,6],[7,2,7,3],[12,2,12,6],[37,2,37,6]]}
[]
[null,null,{"$f":"Introduction!B2","v":"Request for Proposal (RFP) for Employee Benefits Plan Dental"}]
[null,null,{"$f":"Introduction!B3","v":"for Lee County Board of County Commissioners (Lee County)"}]
[null,null,{"$f":"Introduction!B4","v":"RFP240179CJV"}]
[null,null,"Request for Proposal - TAB 3: Plan Design and Value Added Benefits"]
[null,null,{"$f":"Introduction!B6","v":"Effective 1/1/2025"}]
[]
[null,null,"To Proposer: Please enter your Company's name in the space provided below."]
[null,null,"Name of Proposer:"]
[]
[]
[]
[null,null,"Current Dental Plan Designs\nUse the columns to the right to notate any plan deviations. If benefits can be administered same as current, you can leave the line item space blank. Please review the full plan documents included in this solicitation for all benefit line items. Attach additional Plan Deviations as a separate document if necessary."]
[null,null,null,"Current PPO",null,"Proposed Deviations"]
[null,null,"Plan Benefits","In-Network","Out-of-Network","In-Network","Out-of-Network"]
[null,null,"Individual deductible",50,50]
[null,null,"Family deductible",100,100]
[null,null,"Annual Maximum",1500,1500]
[null,null,"Adult/Child Orthodontia","Child only","Child only"]
[null,null,"Lifetime max. - Orthodontia",1000,1000]
[null,null,"Preventive",1,1]
[null,null,"Basic",0.8,0.8]
[null,null,"Major ",0.5,0.5]
[null,null,"Orthodontia",0.5,0.5]
[null,null,"Procedure","Covered Under","Covered Under","Covered Under","Covered Under"]
[null,null,"Oral Examinations","Preventive","Preventive"]
[null,null,"X-rays","Preventive","Preventive"]
[null,null,"Cleanings","Preventive","Preventive"]
[null,null,"Basic Oral Surgery","Basic","Basic"]
[null,null,"Complex surgical extractions","Basic","Basic"]
[null,null,"Fillings","Basic","Basic"]
[null,null,"Crowns","Major","Major"]
[null,null,"Bridges","Major","Major"]
[null,null,"Dentures","Major","Major"]
[null,null,"Implants","Not covered","Not covered"]
[]
[]
[null,null,"Alternate Dental Plan Designs\nThe County is considering adding a second dental plan option in the future or changing the existing plan to a design similar to the plan design below. The design included below is not finalized and the County does not have an implementation date set for any benefit changes or the addition of a second plan.\nUse the columns to the right to notate any plan deviations. If benefits can be administered same as current, you can leave the line item space blank. Please review the full plan documents included in this solicitation for all benefit line items. Attach additional Plan Deviations as a separate document if necessary."]
[null,null,null,"Alternate PPO",null,"Proposed Deviations"]
[null,null,"Plan Benefits","In-Network","Out-of-Network","In-Network","Out-of-Network"]
[null,null,"Individual deductible",50,50]
[null,null,"Family deductible",100,100]
[null,null,"Annual Maximum",3000,3000]
[null,null,"Adult/Child Orthodontia","Adult and Child","Child only"]
[null,null,"Lifetime max. - Orthodontia","$1,500 for Adults and $1,000 for Child",1000]
[null,null,"Preventive",1,1]
[null,null,"Basic",0.8,0.8]
[null,null,"Major ",0.5,0.5]
[null,null,"Orthodontia",0.5,0.5]
[null,null,"Procedure","Covered Under","Covered Under","Covered Under","Covered Under"]
[null,null,"Oral Examinations","Preventive","Preventive"]
[null,null,"X-rays","Preventive","Preventive"]
[null,null,"Cleanings","Preventive","Preventive"]
[null,null,"Basic Oral Surgery","Basic","Basic"]
[null,null,"Complex surgical extractions","Basic","Basic"]
[null,null,"Fillings","Basic","Basic"]
[null,null,"Crowns","Major","Major"]
[null,null,"Bridges","Major","Major"]
[null,null,"Dentures","Major","Major"]
[null,null,"Implants","Major","Major"]

{"sheet":"3b - Value Add","index":14,"n_rows":29,"n_cols":5,"rows_kept":29,"cut":false,"hidden":false,"merged":[[7,2,7,4]]}
[]
[null,null,{"$f":"Introduction!B2","v":"Request for Proposal (RFP) for Employee Benefits Plan Dental"}]
[null,null,{"$f":"Introduction!B3","v":"for Lee County Board of County Commissioners (Lee County)"}]
[null,null,{"$f":"Introduction!B4","v":"RFP240179CJV"}]
[null,null,"Request for Proposal - TAB 3: Plan Design and Value Added Benefits"]
[null,null,{"$f":"Introduction!B6","v":"Effective 1/1/2025"}]
[]
["I.",null,"Performance Guarantees "]
[null,null,"Question","Response","Explanation"]
[1,null,"The RFP offers you the opportunity to propose standards of performance beyond those required by the RFP.  Attach your performance guarantees included with this proposal. Name the document \"[Proposer]_Additional Performance Standards\"."]
[2,null,"Provide sample reports that are used to monitor performance in these areas as separate attachment  Name the file:  \"[Proposer]_ Performance Reports\"."]
[]
["II.",null,"Value Added Benefit"]
[null,null,"Question","Response","Explanation"]
[1,null,"Preventive and Diagnostic care is excluded from annual maximum accumulators"]
[2,null,"Cover sealants up to age 19"]
[3,null,"Added coverage for additional cleanings for specific medical conditions (e.g. maternity, diabetes) aimed to improve health and promote wellness"]
[4,null,"Discounts for additional services"]
[5,null,"Wellness benefits that integrate with the health plan or wellness program"]
[6,null,"Other (please describe)"]
[7,null,"What is your firm's approach to dental wellness and preventive care?"]
[8,null,"Does your firm offer any additional special programs which serve to promote dental health and encourage preventive care, specifically for pregnant members or those with certain chronic conditions that may warrant additional/different services such as more covered cleanings in a given year?"]
[9,null,"If the above responses are yes, are there any additional charges associated with these programs?  Please include these charges in your financial quotation."]
[10,null,"Do you encourage a member to coordinate with his/her medical provider if there is evidence of an underlying medical condition seen during a dental exam?"]
[11,null,"Do you offer reminder letters to employees about preventive dental exams?"]
[12,null,"Does your website provide access to information on dental preventive care?"]
[13,null,"What distinguishes your firm from other dental vendors, and how would this benefit Lee County's participants?"]
[14,null,"Does your firm's offer include a credit for wellness programs?  If so, indicate the amount in the explanation column."]
[15,null,"Are you willing to provide wellness support for seminars and screenings or open enrollment meetings?"]

{"sheet":"TAB 4","index":15,"n_rows":12,"n_cols":3,"rows_kept":12,"cut":false,"hidden":false,"merged":[[11,2,11,3],[8,2,8,3],[9,2,9,3],[10,2,10,3]]}
[]
[null,null,{"$f":"Introduction!B2","v":"Request for Proposal (RFP) for Employee Benefits Plan Dental"}]
[null,null,{"$f":"Introduction!B3","v":"for Lee County Board of County Commissioners (Lee County)"}]
[null,null,{"$f":"Introduction!B4","v":"RFP240179CJV"}]
[null,null,"Request for Proposal - TAB 4: Network Access and Disruption"]
[null,null,{"$f":"Introduction!B6","v":"Effective 1/1/2025"}]
[]
[]
[null,null,"The Following Tabs Should be Included in the \"TAB 4: Network Acess and Disruption\" submission binder"]
[null,null,"Attachment A:\n"]
[null,null,"4a - Provider Disruption\n4b - GEO Access\n4c - Discount Analysis"]
[null,null,"Refer to County Procurement RFP Posting for complete RFP Submission Details."]

{"sheet":"4a - Provider Disruption","index":16,"n_rows":1070,"n_cols":17,"rows_kept":1070,"cut":false,"hidden":false,"merged":[[8,1,8,3],[9,2,9,3],[11,1,11,6]]}
[]
[]
[null,{"$f":"Introduction!B3","v":"for Lee County Board of County Commissioners (Lee County)"}]
[null,{"$f":"Introduction!B4","v":"RFP240179CJV"}]
[null,{"$f":"Introduction!B5","v":"Request for Proposal - Introduction"}]
[null,{"$f":"'TAB 4'!C6","v":"Effective 1/1/2025"}]
[]
[]
[null,"To Proposer: Please enter your Company's name in the space provided below."]
[null,"Name of Proposer:"]
[]
[null,"Instructions:\na. Please provide the network status for the dental providers, facilities, hospitals below in Column Q. These providers represent 100% of total claims paid for most recent 12 months \nb. Do not sort, add, or delete any columns\nc. Every line should be noted as either \"In\" or \"out\""]
[]
[]
["Aon ID","Tax ID","Provider First Name","Provider Middle Initial","Provider Last Name","Provider Office Address 1","Provider Office Address 2","Provider Office City","Provider Office State","Provider Office 5-Digit ZIP Code","Provider Billing Address 1","Provider Billing Address 2","Provider Billing Address City","Provider Billing Address State","Provider Billing Address 5-Digit ZIP Code","Specialty (Provider Type)","In or Out-of-Network? (In/Out)"]
[10001,592075192,"Emily Hanna Foster",null,null,"6090 Winkler Road",null,"Fort Myers","FL",33919,"6090 Winkler Road",null,"Fort Myers","FL",33919,"Pediatric Dentistry"]
[10002,592075192,"Hope E. McDowell",null,null,"6090 Winkler Road",null,"Fort Myers","FL",33919,"6090 Winkler Road",null,"Fort Myers","FL",33919,"Pediatric Dentistry"]
[10003,592075192,"Anissa  Ahmadi",null,null,"6090 Winkler Road",null,"Fort Myers","FL",33919,"6090 Winkler Road",null,"Fort Myers","FL",33919,"General Practice - Dental"]
[10004,270498444,"William Howard Truax",null,null,"2041 McGregor Blvd.",null,"Fort Myers","FL",33901,"2041 McGregor Blvd.",null,"Fort Myers","FL",33901,"General Practice - Dental"]
[10005,271874344,"Paul Henry Uliasz",null,null,"428 East Olympia Avenue",null,"Punta Gorda","FL",33950,"428 East Olympia Avenue",null,"Punta Gorda","FL",33950,"General Practice - Dental"]
[10006,461004916,"Angela M. Cossentino",null,null,"2378 Surfside Blvd.",null,"Cape Coral","FL",33991,"2378 Surfside Blvd.",null,"Cape Coral","FL",33991,"General Practice - Dental"]
[10007,273706506,"Sarah Elizabeth Vanderbosch",null,null,"3872 West Tamiami Trail",null,"Port Charlotte","FL",33952,"3872 West Tamiami Trail",null,"Port Charlotte","FL",33952,"Pediatric Dentistry"]
[10008,921322657,"Rafaella  Sampaio",null,null,"1310 San Marco Road",null,"Marco Island","FL",34145,"1310 San Marco Road",null,"Marco Island","FL",34145,"General Practice - Dental"]
[10009,830697146,"Mario Eduardo Polanco",null,null,"14731 North Cleveland Avenue",null,"North Fort Myers","FL",33903,"14731 North Cleveland Avenue",null,"North Fort Myers","FL",33903,"General Practice - Dental"]
[10010,651089407,"Oliver P. Favalli",null,null,"7117 Congdon Road",null,"Fort Myers","FL",33908,"7117 Congdon Road",null,"Fort Myers","FL",33908,"Pediatric Dentistry"]
[10011,263311320,"Susan  Hogan",null,null,"27 Barkley Circle",null,"Fort Myers","FL",33907,"27 Barkley Circle",null,"Fort Myers","FL",33907,"General Practice - Dental"]
[10012,850958597,"Raymond A. Santa-Cruz",null,null,"7423 Spring Hill Drive",null,"Spring Hill","FL",34606,"7423 Spring Hill Drive",null,"Spring Hill","FL",34606,"General Practice - Dental"]
[10013,272806487,"Eduardo Monteiro Correa",null,null,"13432 Palm Beach Blvd.",null,"Fort Myers","FL",33905,"13432 Palm Beach Blvd.",null,"Fort Myers","FL",33905,"General Practice - Dental"]
[10014,273706506,"Nicole  Eastham",null,null,"3872 West Tamiami Trail",null,"Port Charlotte","FL",33952,"3872 West Tamiami Trail",null,"Port Charlotte","FL",33952,"Pediatric Dentistry"]
[10015,202901107,"Trevor Austin Hamm",null,null,"13281 McGregor Blvd.",null,"Fort Myers","FL",33919,"13281 McGregor Blvd.",null,"Fort Myers","FL",33919,"General Practice - Dental"]
[10016,462654728,"Jennifer L. Cavanaugh",null,null,"1715 Cape Coral Parkway West",null,"Cape Coral","FL",33914,"1715 Cape Coral Parkway West",null,"Cape Coral","FL",33914,"Orthodontics"]
[10017,650817061,"Susan I. Wright",null,null,"30 Del Prado Blvd. North",null,"Cape Coral","FL",33909,"30 Del Prado Blvd. North",null,"Cape Coral","FL",33909,"General Practice - Dental"]
[10018,202901107,"Denise  Oakes-Lottridge",null,null,"1001 South Loop Blvd.",null,"Lehigh Acres","FL",33936,"1001 South Loop Blvd.",null,"Lehigh Acres","FL",33936,"General Practice - Dental"]
[10019,271852433,"Nirav A. Patel",null,null,"255 South Main Street",null,"Labelle","FL",33935,"255 South Main Street",null,"Labelle","FL",33935,"General Practice - Dental"]
[10020,651104572,"Richard Daniel Sanderford",null,null,"10551 Six Mile Cypress Parkway",null,"Fort Myers","FL",33966,"10551 Six Mile Cypress Parkway",null,"Fort Myers","FL",33966,"General Practice - Dental"]
[10021,863736314,"Mark  Kraver",null,null,"3001 Del Prado Blvd. South",null,"Cape Coral","FL",33904,"3001 Del Prado Blvd. South",null,"Cape Coral","FL",33904,"General Practice - Dental"]
[10022,591389157,"Michael D. Sheffield",null,null,"5150 Mason Corbin Court",null,"Fort Myers","FL",33907,"5150 Mason Corbin Court",null,"Fort Myers","FL",33907,"General Practice - Dental"]
[10023,271766823,"Scott P. McClaran",null,null,"47 Barkley Circle Southwest",null,"Fort Myers","FL",33907,"47 Barkley Circle Southwest",null,"Fort Myers","FL",33907,"General Practice - Dental"]
[10024,461604794,"Tim M. Verwest",null,null,"8016 Summerlin Lakes Drive",null,"Fort Myers","FL",33907,"8016 Summerlin Lakes Drive",null,"Fort Myers","FL",33907,"General Practice - Dental"]
[10025,270860460,"Christy A. Swanson",null,null,"2150 Tamiami Trail",null,"Port Charlotte","FL",33948,"2150 Tamiami Trail",null,"Port Charlotte","FL",33948,"General Practice - Dental"]
[10026,811232115,"Kile B. Sherry",null,null,"3015 Southwest Pine Island Road",null,"Cape Coral","FL",33991,"3015 Southwest Pine Island Road",null,"Cape Coral","FL",33991,"General Practice - Dental"]
[10027,863736314,"Phillip Brian Kraver",null,null,"3001 Del Prado Blvd. South",null,"Cape Coral","FL",33904,"3001 Del Prado Blvd. South",null,"Cape Coral","FL",33904,"General Practice - Dental"]
[10028,273706506,"Miguel A. Argumosa",null,null,"3872 West Tamiami Trail",null,"Port Charlotte","FL",33952,"3872 West Tamiami Trail",null,"Port Charlotte","FL",33952,"Pediatric Dentistry"]
[10029,204592436,"Melissa Anne Matick",null,null,"4447 Camino Real Way",null,"Fort Myers","FL",33966,"4447 Camino Real Way",null,"Fort Myers","FL",33966,"General Practice - Dental"]
[10030,200185918,"Craig Alan Mayer",null,null,"105 Connecticut Road",null,"Lehigh Acres","FL",33936,"105 Connecticut Road",null,"Lehigh Acres","FL",33936,"General Practice - Dental"]
[10031,455215073,"Ronald E. Drachenberg",null,null,"1058 North Tamiami Trail",null,"Sarasota","FL",34236,"1058 North Tamiami Trail",null,"Sarasota","FL",34236,"General Practice - Dental"]
[10032,208718554,"Shane R. McDowell",null,null,"7711 Cambridge Manor Place",null,"Fort Myers","FL",33907,"7711 Cambridge Manor Place",null,"Fort Myers","FL",33907,"General Practice - Dental"]
[10033,464377641,"Spaska  Malaric",null,null,"1400 Royal Palm Square Blvd.",null,"Ft. Myers","FL",33919,"1400 Royal Palm Square Blvd.",null,"Ft. Myers","FL",33919,"General Practice - Dental"]
[10034,270524892,"Jared T. Ford",null,null,"813 Hickpochee Avenue",null,"LaBelle","FL",33935,"813 Hickpochee Avenue",null,"LaBelle","FL",33935,"General Practice - Dental"]
[10035,812740323,"Andrea Mier Parsons",null,null,"17968 North Tamiami Trail",null,"North Fort Myers","FL",33903,"17968 North Tamiami Trail",null,"North Fort Myers","FL",33903,"General Practice - Dental"]
[10036,264692745,"Bradley P. Dilling",null,null,"16400 Healthpark Commons Drive",null,"Fort Myers","FL",33908,"16400 Healthpark Commons Drive",null,"Fort Myers","FL",33908,"General Practice - Dental"]
[10037,273825557,"Nicholas Joseph Dundee",null,null,"326 Del Prado Blvd. North",null,"Cape Coral","FL",33909,"326 Del Prado Blvd. North",null,"Cape Coral","FL",33909,"General Practice - Dental"]
[10038,461604794,"Richard Wayne Blake",null,null,"8016 Summerlin Lakes Drive",null,"Fort Myers","FL",33907,"8016 Summerlin Lakes Drive",null,"Fort Myers","FL",33907,"Pediatric Dentistry"]
[10039,833028013,"Jacob Allen Klamut",null,null,"3730 Del Prado Blvd. South",null,"Cape Coral","FL",33904,"3730 Del Prado Blvd. South",null,"Cape Coral","FL",33904,"General Practice - Dental"]
[10040,863736314,"Linda  Kornienko",null,null,"5605 Skytop Drive",null,"Lithia","FL",33547,"5605 Skytop Drive",null,"Lithia","FL",33547,"General Practice - Dental"]
[10041,842159534,"Andrea Mier Parsons",null,null,"17968 North Tamiami Trail",null,"North Fort Myers","FL",33903,"17968 North Tamiami Trail",null,"North Fort Myers","FL",33903,"General Practice - Dental"]
[10042,650069155,"James A. Hosner",null,null,"35 Barkley Circle",null,"Fort Myers","FL",33907,"35 Barkley Circle",null,"Fort Myers","FL",33907,"General Practice - Dental"]
[10043,880926105,"Sean W. Coyle",null,null,"9789 Glades Road",null,"Boca Raton","FL",33434,"9789 Glades Road",null,"Boca Raton","FL",33434,"General Practice - Dental"]
[10044,650457638,"Gregg F. McNeal",null,null,"643 Cape Coral Pkwy. East",null,"Cape Coral","FL",33904,"643 Cape Coral Pkwy. East",null,"Cape Coral","FL",33904,"General Practice - Dental"]
[10045,591271142,"Bernardo Ferreria Brasileiro",null,null,"8267 College Pkwy.",null,"Fort Myers","FL",33919,"8267 College Pkwy.",null,"Fort Myers","FL",33919,"Surgery, Oral & Macillofacial"]
[10046,261326818,"Jennifer K. Trathen",null,null,"106 West Hancock Bridge Pkwy.",null,"Cape Coral","FL",33991,"106 West Hancock Bridge Pkwy.",null,"Cape Coral","FL",33991,"General Practice - Dental"]
[10047,880926105,"Emily N. Plaza",null,null,"521 Cape Coral Pkwy. West",null,"Cape Coral","FL",33914,"521 Cape Coral Pkwy. West",null,"Cape Coral","FL",33914,"General Practice - Dental"]
[10048,270050152,"Jeffrey M. Greenhill",null,null,"12721 World Plaza Lane",null,"Fort Myers","FL",33907,"12721 World Plaza Lane",null,"Fort Myers","FL",33907,"General Practice - Dental"]
[10049,474770871,"Steven  Frey",null,null,"6323 Corporate Court",null,"Fort Myers","FL",33919,"6323 Corporate Court",null,"Fort Myers","FL",33919,"Endodontics"]
[10050,853248792,"Soallet  Diez",null,null,"16 Del Prado Blvd. South",null,"Cape Coral","FL",33990,"16 Del Prado Blvd. South",null,"Cape Coral","FL",33990,"General Practice - Dental"]
[10051,202901107,"Brian L. Gear",null,null,"1001 South Loop Blvd.",null,"Lehigh Acres","FL",33936,"1001 South Loop Blvd.",null,"Lehigh Acres","FL",33936,"General Practice - Dental"]
[10052,463141469,"Billy D. Sams",null,null,"13432 Palm Beach Blvd.",null,"Fort Myers","FL",33905,"13432 Palm Beach Blvd.",null,"Fort Myers","FL",33905,"General Practice - Dental"]
[10053,650689231,"Ricardo S. Bocanegra",null,null,"6805 Porto Fino Circle",null,"Ft. Myers","FL",33912,"6805 Porto Fino Circle",null,"Ft. Myers","FL",33912,"General Practice - Dental"]
[10054,200185918,"Yuna May Choi",null,null,"106 Hancock Bridge Pkwy.",null,"Cape Coral","FL",33991,"106 Hancock Bridge Pkwy.",null,"Cape Coral","FL",33991,"General Practice - Dental"]
[10055,470934696,"Todd Louis Sharp",null,null,"1501 Viscaya Pkwy.",null,"Cape Coral","FL",33990,"1501 Viscaya Pkwy.",null,"Cape Coral","FL",33990,"General Practice - Dental"]
[10056,650791661,"Elizabeth F. Elia",null,null,"1715 Cape Coral Pkwy. West",null,"Cape Coral","FL",33914,"1715 Cape Coral Pkwy. West",null,"Cape Coral","FL",33914,"General Practice - Dental"]
[10057,273706506,"Doribeth  Ruiz",null,null,"9510 Bonita Beach Road",null,"Bonita Springs","FL",34135,"9510 Bonita Beach Road",null,"Bonita Springs","FL",34135,"Pediatric Dentistry"]
[10058,650033914,"Deborah Sue Ruddell",null,null,"49 Barkley Circle",null,"Fort Myers","FL",33907,"49 Barkley Circle",null,"Fort Myers","FL",33907,"General Practice - Dental"]
[10059,474770871,"Ryan Aubrey Harris",null,null,"6323 Corporate Court",null,"Fort Myers","FL",33919,"6323 Corporate Court",null,"Fort Myers","FL",33919,"General Practice - Dental"]
[10060,204592436,"Jaren Orr Catlin",null,null,"12260 Tamiami Trail East",null,"Naples","FL",34113,"12260 Tamiami Trail East",null,"Naples","FL",34113,"General Practice - Dental"]
[10061,873737615,"Kari Rene Mann",null,null,"4117 Del Prado Blvd. South",null,"Cape Coral","FL",33904,"4117 Del Prado Blvd. South",null,"Cape Coral","FL",33904,"General Practice - Dental"]
[10062,452546142,"Rafael  Martinez",null,null,"14651 Palm Beach Blvd.",null,"Fort Myers","FL",33905,"14651 Palm Beach Blvd.",null,"Fort Myers","FL",33905,"General Practice - Dental"]
[10063,591271142,"Timothy Davis Hogan",null,null,"8267 College Pkwy.",null,"Fort Myers","FL",33919,"8267 College Pkwy.",null,"Fort Myers","FL",33919,"Surgery, Oral & Macillofacial"]
[10064,200185918,"Jordan B. Martin",null,null,"17640 South Tamiami Trail",null,"Fort Myers","FL",33908,"17640 South Tamiami Trail",null,"Fort Myers","FL",33908,"General Practice - Dental"]
[10065,591945359,"Dennis W. Dalton",null,null,"4401 Southeast 15th Avenue",null,"Cape Coral","FL",33904,"4401 Southeast 15th Avenue",null,"Cape Coral","FL",33904,"General Practice - Dental"]
[10066,465409759,"Tasnova  Ahmad",null,null,"9921 Corkscrew Road",null,"Estero","FL",33928,"9921 Corkscrew Road",null,"Estero","FL",33928,"Pediatric Dentistry"]
[10067,453143541,"Jordan  Hester",null,null,"1454 Madison Avenue",null,"Immokalee","FL",34142,"1454 Madison Avenue",null,"Immokalee","FL",34142,"Pediatric Dentistry"]
[10068,650780579,"Brett Allen Vartdal",null,null,"331 West Cape Coral Pkwy.",null,"Cape Coral","FL",33914,"331 West Cape Coral Pkwy.",null,"Cape Coral","FL",33914,"General Practice - Dental"]
[10069,650263661,"Angel R. Santiago",null,null,"6323 Corporate Court",null,"Fort Myers","FL",33919,"6323 Corporate Court",null,"Fort Myers","FL",33919,"General Practice - Dental"]
[10070,650263661,"George M. Kazakos",null,null,"6323 Corporate Court",null,"Fort Myers","FL",33919,"6323 Corporate Court",null,"Fort Myers","FL",33919,"Periodontics"]
[10071,200185918,"Jordan E. Teder",null,null,"7485 Vanderbilt Beach Road",null,"Naples","FL",34119,"7485 Vanderbilt Beach Road",null,"Naples","FL",34119,"General Practice - Dental"]
[10072,200185918,"Kate  Sahonchyk",null,null,"9011 Daniels Pkwy.",null,"Fort Myers","FL",33912,"9011 Daniels Pkwy.",null,"Fort Myers","FL",33912,"General Practice - Dental"]
[10073,200185918,"Daniel  Izaguirre",null,null,"106 Hancock Bridge Pkwy.",null,"Cape Coral","FL",33991,"106 Hancock Bridge Pkwy.",null,"Cape Coral","FL",33991,"General Practice - Dental"]
[10074,591302340,"Matthew W. Allen",null,null,"1871 Colonial Blvd.",null,"Fort Myers","FL",33907,"1871 Colonial Blvd.",null,"Fort Myers","FL",33907,"General Practice - Dental"]
[10075,204592436,"Deirdre M. Campbell Catlin",null,null,"4447 Camino Real Way",null,"Fort Myers","FL",33966,"4447 Camino Real Way",null,"Fort Myers","FL",33966,"General Practice - Dental"]
[10076,271874344,"Yassamin  Lenzi",null,null,"3436 South Cleveland Avenue",null,"Fort Myers","FL",33901,"3436 South Cleveland Avenue",null,"Fort Myers","FL",33901,"General Practice - Dental"]
[10077,651104572,"Erik  Skates",null,null,"7117 Congdon Road",null,"Fort Myers","FL",33908,"7117 Congdon Road",null,"Fort Myers","FL",33908,"General Practice - Dental"]
[10078,863119749,"Suzanne  Padovano Lorino",null,null,"1550 Matthew Drive",null,"Fort Myers","FL",33907,"1550 Matthew Drive",null,"Fort Myers","FL",33907,"General Practice - Dental"]
[10079,201948902,"Amelia Mercedes Caceres Tejada",null,null,"201 Plaza Drive",null,"Lehigh Acres","FL",33936,"201 Plaza Drive",null,"Lehigh Acres","FL",33936,"General Practice - Dental"]
[10080,591271142,"Mark Richard Streater",null,null,"8267 College Pkwy.",null,"Fort Myers","FL",33919,"8267 College Pkwy.",null,"Fort Myers","FL",33919,"Surgery, Oral & Macillofacial"]
[10081,544501226,"Sidney H. Christie",null,null,"5163 Orange Grove Blvd",null,"Fort Myers","FL",33903,"5163 Orange Grove Blvd",null,"Fort Myers","FL",33903,"General Practice - Dental"]
[10082,273706506,"Erin M. Taylor",null,null,"3872 West Tamiami Trail",null,"Port Charlotte","FL",33952,"3872 West Tamiami Trail",null,"Port Charlotte","FL",33952,"Pediatric Dentistry"]
[10083,873895823,"Rachel Bass Donovan",null,null,"6015 West Nordling Loop",null,"Crystal River","FL",34429,"6015 West Nordling Loop",null,"Crystal River","FL",34429,"General Practice - Dental"]
[10084,200185918,"Whitney Howard Haidet",null,null,"21300 Town Commons Drive",null,"Estero","FL",33928,"21300 Town Commons Drive",null,"Estero","FL",33928,"General Practice - Dental"]
[10085,201948902,"Markus  Sherry",null,null,"10484 Stringfellow Road",null,"St. James City","FL",33956,"10484 Stringfellow Road",null,"St. James City","FL",33956,"General Practice - Dental"]
[10086,591271142,"Tinerfe J. Tejera",null,null,"8267 College Pkwy.",null,"Fort Myers","FL",33919,"8267 College Pkwy.",null,"Fort Myers","FL",33919,"Surgery, Oral & Macillofacial"]
[10087,853248792,"Soallet  Diez",null,null,"16 Del Prado Blvd. South",null,"Cape Coral","FL",33990,"16 Del Prado Blvd. South",null,"Cape Coral","FL",33990,"General Practice - Dental"]
[10088,205804256,"Shannon Lynch Bennett",null,null,"8900 Gladiolus Drive",null,"Fort Myers","FL",33908,"8900 Gladiolus Drive",null,"Fort Myers","FL",33908,"General Practice - Dental"]
[10089,874041892,"Paul Michael Kuhn",null,null,"8004 Summerlin Lakes Drive",null,"Fort Myers","FL",33907,"8004 Summerlin Lakes Drive",null,"Fort Myers","FL",33907,"General Practice - Dental"]
[10090,200185918,"Andrea McKenzie Wise-Herzog",null,null,"12021 Palm Beach Blvd.",null,"Fort Myers","FL",33905,"12021 Palm Beach Blvd.",null,"Fort Myers","FL",33905,"General Practice - Dental"]
[10091,843735185,"Jonathan  Chouraqui",null,null,"12530 New Brittany Blvd.",null,"Fort Myers","FL",33907,"12530 New Brittany Blvd.",null,"Fort Myers","FL",33907,"General Practice - Dental"]
[10092,824147697,"Luis M. De La Puente",null,null,"900 Southwest Pine Island Road",null,"Cape Coral","FL",33991,"900 Southwest Pine Island Road",null,"Cape Coral","FL",33991,"General Practice - Dental"]
[10093,273507627,"Ryan Joseph Donovan",null,null,"14361 Metropolis Avenue",null,"Fort Myers","FL",33912,"14361 Metropolis Avenue",null,"Fort Myers","FL",33912,"Periodontics"]
[10094,461922352,"Monica Loani Tabbita",null,null,"3900 Colonial Blvd.",null,"Fort Myers","FL",33966,"3900 Colonial Blvd.",null,"Fort Myers","FL",33966,"General Practice - Dental"]
[10095,863119749,"Gerald J. Lorino",null,null,"287 Main Street",null,"Chatham","NJ",7928,"287 Main Street",null,"Chatham","NJ",7928,"General Practice - Dental"]
[10096,900102639,"Bryant Ray King",null,null,"6900 Daniels Pkwy.",null,"Fort Myers","FL",33912,"6900 Daniels Pkwy.",null,"Fort Myers","FL",33912,"General Practice - Dental"]
[10097,200185918,"Bayonne  Joseph",null,null,"6150 Diamond Center Court",null,"Fort Myers","FL",33912,"6150 Diamond Center Court",null,"Fort Myers","FL",33912,"General Practice - Dental"]
[10098,471533001,"Richard Lewis Thibodeau",null,null,"5285 Summerlin Road",null,"Fort Myers","FL",33919,"5285 Summerlin Road",null,"Fort Myers","FL",33919,"General Practice - Dental"]
[10099,201948902,"Amelia Mercedes Caceres Tejada",null,null,"201 Plaza Drive",null,"Lehigh Acres","FL",33936,"201 Plaza Drive",null,"Lehigh Acres","FL",33936,"General Practice - Dental"]
[10100,201948902,"Matthew Brandon Conley",null,null,"201 Plaza Drive",null,"Lehigh Acres","FL",33936,"201 Plaza Drive",null,"Lehigh Acres","FL",33936,"General Practice - Dental"]
[10101,271852433,"David T. Luo",null,null,"11841 Palm Beach Blvd.",null,"Ft. Meyers","FL",33905,"11841 Palm Beach Blvd.",null,"Ft. Meyers","FL",33905,"General Practice - Dental"]
[10102,861588705,"Jeffrey Nolan Bourne",null,null,"15271 McGregor Blvd",null,"Ft. Myers","FL",33908,"15271 McGregor Blvd",null,"Ft. Myers","FL",33908,"General Practice - Dental"]
[10103,592864897,"Matthew Lee Davis",null,null,"40 Barkley Circle",null,"Fort Myers","FL",33907,"40 Barkley Circle",null,"Fort Myers","FL",33907,"General Practice - Dental"]
[10104,853549584,"Joseph Charles Vanderbosch",null,null,"14150 Metropolis Avenue",null,"Fort Myers","FL",33912,"14150 Metropolis Avenue",null,"Fort Myers","FL",33912,"General Practice - Dental"]
[10105,452546142,"Matthew Brandon Conley",null,null,"201 Plaza Drive",null,"Lehigh Acres","FL",33936,"201 Plaza Drive",null,"Lehigh Acres","FL",33936,"General Practice - Dental"]
[10106,271852433,"David T. Luo",null,null,"11841 Palm Beach Blvd.",null,"Ft. Meyers","FL",33905,"11841 Palm Beach Blvd.",null,"Ft. Meyers","FL",33905,"General Practice - Dental"]
[10107,874041892,"Ariana Almasi Koehler",null,null,"8004 Summerlin Lakes Drive",null,"Fort Myers","FL",33907,"8004 Summerlin Lakes Drive",null,"Fort Myers","FL",33907,"General Practice - Dental"]
[10108,591606439,"Ronny S. Taschner",null,null,"1645 Medical Lane",null,"Fort Myers","FL",33907,"1645 Medical Lane",null,"Fort Myers","FL",33907,"General Practice - Dental"]
[10109,874041892,"Paul Michael Kuhn",null,null,"8004 Summerlin Lakes Drive",null,"Fort Myers","FL",33907,"8004 Summerlin Lakes Drive",null,"Fort Myers","FL",33907,"General Practice - Dental"]
[10110,270777828,"Angela M. Harney Nash",null,null,"12630 New Brittany Blvd.",null,"Fort Myers","FL",33907,"12630 New Brittany Blvd.",null,"Fort Myers","FL",33907,"General Practice - Dental"]
[10111,471706456,"Tyler Wayne Phillips",null,null,"305 SW Pine Island Road",null,"Cape Coral","FL",33991,"305 SW Pine Island Road",null,"Cape Coral","FL",33991,"General Practice - Dental"]
[10112,201948902,"Matthew Brandon Conley",null,null,"201 Plaza Drive",null,"Lehigh Acres","FL",33936,"201 Plaza Drive",null,"Lehigh Acres","FL",33936,"General Practice - Dental"]
[10113,471706456,"Conor McDermott Wierus",null,null,"9330 Ben C Pratt/6 Mile Cypress Pkw",null,"Fort Myers","FL",33966,"9330 Ben C Pratt/6 Mile Cypress Pkw",null,"Fort Myers","FL",33966,"General Practice - Dental"]
[10114,852601015,"Yolanda C. Kieser",null,null,"11801 South Cleveland Avenue",null,"Fort Myers","FL",33907,"11801 South Cleveland Avenue",null,"Fort Myers","FL",33907,"Orthodontics"]
[10115,843914126,"Richard Allen Chumbler",null,null,"88 Pine Island Road Northeast",null,"North Fort Myers","FL",33903,"88 Pine Island Road Northeast",null,"North Fort Myers","FL",33903,"General Practice - Dental"]
[10116,200185918,"Amalio  Montez",null,null,"12021 Palm Beach Blvd.",null,"Fort Myers","FL",33905,"12021 Palm Beach Blvd.",null,"Fort Myers","FL",33905,"General Practice - Dental"]
[10117,650916551,"Robert D. Gear",null,null,"26 Barkley Circle",null,"Fort Myers","FL",33907,"26 Barkley Circle",null,"Fort Myers","FL",33907,"Surgery, Oral & Macillofacial"]
[10118,202901107,"Miguel A. Scheel",null,null,"1001 South Loop Blvd.",null,"Lehigh Acres","FL",33936,"1001 South Loop Blvd.",null,"Lehigh Acres","FL",33936,"General Practice - Dental"]
[10119,650636441,"Edmond J. Allison",null,null,"1527 Southeast 16th Place",null,"Cape Coral","FL",33990,"1527 Southeast 16th Place",null,"Cape Coral","FL",33990,"General Practice - Dental"]
[10120,200185918,"Rafael  Martinez",null,null,"14651 Palm Beach Blvd.",null,"Fort Myers","FL",33905,"14651 Palm Beach Blvd.",null,"Fort Myers","FL",33905,"General Practice - Dental"]
[10121,592075192,"Anissa  Ahmadi",null,null,"6090 Winkler Road",null,"Fort Myers","FL",33919,"6090 Winkler Road",null,"Fort Myers","FL",33919,"General Practice - Dental"]
[10122,200185918,"Abelardo  Heredia",null,null,"1050 Northwest 14th Street",null,"Miami","FL",33136,"1050 Northwest 14th Street",null,"Miami","FL",33136,"General Practice - Dental"]
[10123,200185918,"Yaniel  Torres",null,null,"42031 Cypress Pkwy.",null,"Punta Gorda","FL",33982,"42031 Cypress Pkwy.",null,"Punta Gorda","FL",33982,"General Practice - Dental"]
[10124,452546142,"Alexandra  Zabala",null,null,"13720 North Cleveland Avenue",null,"North Fort Myers","FL",33903,"13720 North Cleveland Avenue",null,"North Fort Myers","FL",33903,"General Practice - Dental"]
[10125,201948902,"Markus  Sherry",null,null,"10484 Stringfellow Road",null,"St. James City","FL",33956,"10484 Stringfellow Road",null,"St. James City","FL",33956,"General Practice - Dental"]
[10126,874204205,"Paul Henry Uliasz",null,null,"428 East Olympia Avenue",null,"Punta Gorda","FL",33950,"428 East Olympia Avenue",null,"Punta Gorda","FL",33950,"General Practice - Dental"]
[10127,451261244,"Rose M. Gedeon",null,null,"1454 Madison Avenue West",null,"Immokalee","FL",34142,"1454 Madison Avenue West",null,"Immokalee","FL",34142,"Pediatric Dentistry"]
[10128,200185918,"Christopher James Norris",null,null,"12759 Bonita Beach Road Southeast",null,"Bonita Springs","FL",34135,"12759 Bonita Beach Road Southeast",null,"Bonita Springs","FL",34135,"General Practice - Dental"]
[10129,650185712,"Tod R. Fawcett",null,null,"8931 Conference Drive",null,"Fort Myers","FL",33919,"8931 Conference Drive",null,"Fort Myers","FL",33919,"General Practice - Dental"]
[10130,863736314,"Mario F. Romero",null,null,"1430 John Wesley Gilbert Drive",null,"Augusta","GA",30912,"1430 John Wesley Gilbert Drive",null,"Augusta","GA",30912,"General Practice - Dental"]
[10131,650385227,"Robert Ernest Hendry",null,null,"13650 Metropolis Avenue",null,"Fort Myers","FL",33912,"13650 Metropolis Avenue",null,"Fort Myers","FL",33912,"General Practice - Dental"]
[10132,200185918,"Yismae  Hernandez",null,null,"10610 Colonial Blvd.",null,"Fort Myers","FL",33913,"10610 Colonial Blvd.",null,"Fort Myers","FL",33913,"General Practice - Dental"]
[10133,874041892,"Ariana Almasi Koehler",null,null,"8004 Summerlin Lakes Drive",null,"Fort Myers","FL",33907,"8004 Summerlin Lakes Drive",null,"Fort Myers","FL",33907,"General Practice - Dental"]
[10134,271383787,"Eric W. Baxmann",null,null,"15650 San Carlos Blvd.",null,"Ft. Myers","FL",33908,"15650 San Carlos Blvd.",null,"Ft. Myers","FL",33908,"General Practice - Dental"]
[10135,650204355,"James A. Mitchell",null,null,"32 Barkley Circle",null,"Fort Myers","FL",33907,"32 Barkley Circle",null,"Fort Myers","FL",33907,"General Practice - Dental"]
[10136,650278421,"Jon P. Sipos",null,null,"19004 Birch Road",null,"Fort Myers","FL",33967,"19004 Birch Road",null,"Fort Myers","FL",33967,"General Practice - Dental"]
[10137,462747141,"Jerry Todd McClaran",null,null,"2002 Del Prado Blvd. South",null,"Cape Coral","FL",33990,"2002 Del Prado Blvd. South",null,"Cape Coral","FL",33990,"General Practice - Dental"]
[10138,471706456,"Fernando A. Neira",null,null,"4246 South Tamiami Trail",null,"Venice","FL",34293,"4246 South Tamiami Trail",null,"Venice","FL",34293,"General Practice - Dental"]
[10139,651079887,"Ricado  Perales",null,null,"25 Homestead Road North",null,"Lehigh Acres","FL",33936,"25 Homestead Road North",null,"Lehigh Acres","FL",33936,"General Practice - Dental"]
[10140,824773794,"Adam Michael Beno",null,null,"8800 Bernwood Pkwy.",null,"Bonita Springs","FL",34135,"8800 Bernwood Pkwy.",null,"Bonita Springs","FL",34135,"General Practice - Dental"]
[10141,650563243,"Angela V. Litvak",null,null,"7250 College Pkwy.",null,"Fort Myers","FL",33907,"7250 College Pkwy.",null,"Fort Myers","FL",33907,"General Practice - Dental"]
[10142,200185918,"Serban Gabriel Cismarescu",null,null,"1621 Cape Coral Pkwy.",null,"Cape Coral","FL",33914,"1621 Cape Coral Pkwy.",null,"Cape Coral","FL",33914,"General Practice - Dental"]
[10143,201600170,"Kenneth Allen Jandik",null,null,"1565 Matthew Drive",null,"Fort Myers","FL",33907,"1565 Matthew Drive",null,"Fort Myers","FL",33907,"Periodontics"]
[10144,650204355,"Joseph P. Mitchell",null,null,"32 Barkley Circle",null,"Fort Myers","FL",33907,"32 Barkley Circle",null,"Fort Myers","FL",33907,"General Practice - Dental"]
[10145,200185918,"Emilio Jose Rodriguez Acosta",null,null,"3436 South Cleveland Avenue",null,"Fort Myers","FL",33901,"3436 South Cleveland Avenue",null,"Fort Myers","FL",33901,"General Practice - Dental"]
[10146,864003745,"Ashley N. Younkman-Reynolds",null,null,"19240 Quesada Avenue",null,"Port Charlotte","FL",33948,"19240 Quesada Avenue",null,"Port Charlotte","FL",33948,"General Practice - Dental"]
[10147,471706456,"Aakash  Rana",null,null,"1420 Northwest North River Drive",null,"Miami","FL",33125,"1420 Northwest North River Drive",null,"Miami","FL",33125,"General Practice - Dental"]
[10148,201948902,"Tousant Jamel Plunkett",null,null,"201 Plaza Drive",null,"Lehigh Acres","FL",33936,"201 Plaza Drive",null,"Lehigh Acres","FL",33936,"General Practice - Dental"]
[10149,200185918,"Mariah  Low",null,null,"3403 North Hiatus Road",null,"Sunrise","FL",33351,"3403 North Hiatus Road",null,"Sunrise","FL",33351,"General Practice - Dental"]
[10150,260357554,"Douglas Allen Tribble",null,null,"4446 East Fletcher Avenue",null,"Tampa","FL",33613,"4446 East Fletcher Avenue",null,"Tampa","FL",33613,"General Practice - Dental"]
[10151,465409759,"Edward Jordan Tarver",null,null,"9921 Corkscrew Road",null,"Estero","FL",33928,"9921 Corkscrew Road",null,"Estero","FL",33928,"Pediatric Dentistry"]
[10152,842159534,"Andrea Mier Parsons",null,null,"17968 North Tamiami Trail",null,"North Fort Myers","FL",33903,"17968 North Tamiami Trail",null,"North Fort Myers","FL",33903,"General Practice - Dental"]
[10153,842544422,"Jerry I. Brateman",null,null,"3479 Northeast 163rd Street",null,"North Miami Beach","FL",33160,"3479 Northeast 163rd Street",null,"North Miami Beach","FL",33160,"General Practice - Dental"]
[10154,453143541,"Leanet  Ascunce",null,null,"11649 SR 70 East",null,"Bradenton","FL",34202,"11649 SR 70 East",null,"Bradenton","FL",34202,"Pediatric Dentistry"]
[10155,824443414,"Karen  Wilkinson",null,null,"15620 McGregor Blvd.",null,"Ft. Myers","FL",33908,"15620 McGregor Blvd.",null,"Ft. Myers","FL",33908,"General Practice - Dental"]
[10156,272665895,"Richard C. Gilbert",null,null,"13820 Old St. Augustine Road",null,"Jacksonville","FL",32258,"13820 Old St. Augustine Road",null,"Jacksonville","FL",32258,"General Practice - Dental"]
[10157,874041892,"Emerson Jeffrey Boogaard",null,null,"8004 Summerlin Lakes Drive",null,"Fort Myers","FL",33907,"8004 Summerlin Lakes Drive",null,"Fort Myers","FL",33907,"General Practice - Dental"]
[10158,201948902,"Tousant Jamel Plunkett",null,null,"201 Plaza Drive",null,"Lehigh Acres","FL",33936,"201 Plaza Drive",null,"Lehigh Acres","FL",33936,"General Practice - Dental"]
[10159,471706456,"Ricardo  Montero",null,null,"11300 Northwest 87th Court",null,"Hialeah Gardens","FL",33018,"11300 Northwest 87th Court",null,"Hialeah Gardens","FL",33018,"General Practice - Dental"]
[10160,822248504,"Krystal  Viruet",null,null,"34 Barkley Circle",null,"Fort Myers","FL",33907,"34 Barkley Circle",null,"Fort Myers","FL",33907,"General Practice - Dental"]
[10161,200185918,"Fernando  Martinez-Escobar",null,null,"1000 Middle Street",null,"Middletown","CT",6457,"1000 Middle Street",null,"Middletown","CT",6457,"General Practice - Dental"]
[10162,881613149,"Brett T. Goldstein",null,null,"3436 Cleveland Avenue",null,"Fort Myers","FL",33901,"3436 Cleveland Avenue",null,"Fort Myers","FL",33901,"General Practice - Dental"]
[10163,591639887,"Kevin R. Dunphy",null,null,"2393 East Venice Avenue",null,"Venice","FL",34292,"2393 East Venice Avenue",null,"Venice","FL",34292,"General Practice - Dental"]
[10164,200185918,"William  Welch",null,null,"1621 Cape Coral Pkwy.",null,"Cape Coral","FL",33914,"1621 Cape Coral Pkwy.",null,"Cape Coral","FL",33914,"General Practice - Dental"]
[10165,201948902,"Adam W. Scheurer",null,null,"11300 Lindbergh Blvd.",null,"Fort Myers","FL",33913,"11300 Lindbergh Blvd.",null,"Fort Myers","FL",33913,"General Practice - Dental"]
[10166,200185918,"Owen Francis Feeney",null,null,"24940 South Tamiami Trail",null,"Bonita Springs","FL",34134,"24940 South Tamiami Trail",null,"Bonita Springs","FL",34134,"General Practice - Dental"]
[10167,650204355,"Yolanda  Mitchell",null,null,"32 Barkley Circle",null,"Fort Myers","FL",33907,"32 Barkley Circle",null,"Fort Myers","FL",33907,"General Practice - Dental"]
[10168,883728135,"Patricia A. Bachmann",null,null,"3440 Conway Blvd.",null,"Port Charlotte","FL",33952,"3440 Conway Blvd.",null,"Port Charlotte","FL",33952,"General Practice - Dental"]
[10169,863736314,"Lindsey  Balaban",null,null,"36 Chauncy Street",null,"Boston","MA",2111,"36 Chauncy Street",null,"Boston","MA",2111,"General Practice - Dental"]
[10170,874041892,"Marc  Dadkhah",null,null,"681 Goodlette Road North",null,"Naples","FL",34102,"681 Goodlette Road North",null,"Naples","FL",34102,"General Practice - Dental"]
[10171,200185918,"Jermyn M. Javier",null,null,"23250 Via Villagio",null,"Estero","FL",33928,"23250 Via Villagio",null,"Estero","FL",33928,"General Practice - Dental"]
[10172,650820768,"Sheryl L. Watkins",null,null,"367 West Hickpochee Avenue",null,"LaBelle","FL",33935,"367 West Hickpochee Avenue",null,"LaBelle","FL",33935,"General Practice - Dental"]
[10173,452546142,"Tousant Jamel Plunkett",null,null,"201 Plaza Drive",null,"Lehigh Acres","FL",33936,"201 Plaza Drive",null,"Lehigh Acres","FL",33936,"General Practice - Dental"]
[10174,201948902,"Mitchell  Shoemaker",null,null,"11300 Lindbergh Blvd.",null,"Fort Myers","FL",33913,"11300 Lindbergh Blvd.",null,"Fort Myers","FL",33913,"General Practice - Dental"]
[10175,271383787,"David G. Carlton",null,null,"15650 San Carlos Blvd.",null,"Ft. Myers","FL",33908,"15650 San Carlos Blvd.",null,"Ft. Myers","FL",33908,"General Practice - Dental"]
[10176,461604794,"Emily Alexandra Ross",null,null,"8016 Summerlin Lakes Drive",null,"Fort Myers","FL",33907,"8016 Summerlin Lakes Drive",null,"Fort Myers","FL",33907,"Pediatric Dentistry"]
[10177,874041892,"Emerson Jeffrey Boogaard",null,null,"8004 Summerlin Lakes Drive",null,"Fort Myers","FL",33907,"8004 Summerlin Lakes Drive",null,"Fort Myers","FL",33907,"General Practice - Dental"]
[10178,352354969,"Darryl E. Damon",null,null,"1940 Tamiami Trail",null,"Port Charlotte","FL",33948,"1940 Tamiami Trail",null,"Port Charlotte","FL",33948,"General Practice - Dental"]
[10179,650563243,"Scott C. Schwartz",null,null,"7250 College Pkwy.",null,"Fort Myers","FL",33907,"7250 College Pkwy.",null,"Fort Myers","FL",33907,"General Practice - Dental"]
[10180,200185918,"Yesenia M. Drake",null,null,"25000 Bernwood Drive",null,"Bonita Springs","FL",34135,"25000 Bernwood Drive",null,"Bonita Springs","FL",34135,"General Practice - Dental"]
[10181,200185918,"Brandi T. Dinh",null,null,"21300 Town Commons Drive",null,"Estero","FL",33928,"21300 Town Commons Drive",null,"Estero","FL",33928,"General Practice - Dental"]
[10182,471706456,"Colby Shane Sowers",null,null,"2761 South McCall Road",null,"Englewood","FL",34224,"2761 South McCall Road",null,"Englewood","FL",34224,"Endodontics"]
[10183,200185918,"Grace Elizabeth Call",null,null,"105 Connecticut Road",null,"Lehigh Acres","FL",33936,"105 Connecticut Road",null,"Lehigh Acres","FL",33936,"General Practice - Dental"]
[10184,200185918,"Karen E. Ibrahim",null,null,"1507 Lyons Road",null,"Coconut Creek","FL",33063,"1507 Lyons Road",null,"Coconut Creek","FL",33063,"General Practice - Dental"]
[10185,201948902,"Mitchell  Shoemaker",null,null,"11300 Lindbergh Blvd.",null,"Fort Myers","FL",33913,"11300 Lindbergh Blvd.",null,"Fort Myers","FL",33913,"General Practice - Dental"]
[10186,812740323,"Nicole Toomey Rasmussen",null,null,"1127 Del Prado Blvd. South",null,"Cape Coral","FL",33990,"1127 Del Prado Blvd. South",null,"Cape Coral","FL",33990,"General Practice - Dental"]
[10187,200185918,"Predrag  Dordevic",null,null,"23250 Via Villagio",null,"Estero","FL",33928,"23250 Via Villagio",null,"Estero","FL",33928,"General Practice - Dental"]
[10188,831297837,"Ahmed M. Saleh Kiwan",null,null,"5285 Summerlin Road",null,"Fort Myers","FL",33919,"5285 Summerlin Road",null,"Fort Myers","FL",33919,"General Practice - Dental"]
[10189,650719035,"Benjamin  Richards",null,null,"9250 College Pkwy.",null,"Fort Myers","FL",33919,"9250 College Pkwy.",null,"Fort Myers","FL",33919,"General Practice - Dental"]
[10190,650404100,"Vincent  Cammarato",null,null,"3440 Tamiami Trail",null,"Port Charlotte","FL",33952,"3440 Tamiami Trail",null,"Port Charlotte","FL",33952,"Endodontics"]
[10191,200185918,"Raluca  Nasta",null,null,"4099 Hancock Bridge Pkwy.",null,"North Fort Myers","FL",33903,"4099 Hancock Bridge Pkwy.",null,"North Fort Myers","FL",33903,"General Practice - Dental"]
[10192,830541772,"Jordan Dean Da Costa",null,null,"6871 Daniels Pkwy.",null,"Fort Myers","FL",33912,"6871 Daniels Pkwy.",null,"Fort Myers","FL",33912,"General Practice - Dental"]
[10193,842159534,"Nicole Toomey Rasmussen",null,null,"1127 Del Prado Blvd. South",null,"Cape Coral","FL",33990,"1127 Del Prado Blvd. South",null,"Cape Coral","FL",33990,"General Practice - Dental"]
[10194,200185918,"Robert Glen Seraita",null,null,"5781 Lee Blvd.",null,"Lehigh Acres","FL",33971,"5781 Lee Blvd.",null,"Lehigh Acres","FL",33971,"General Practice - Dental"]
[10195,830541772,"Tyler Joseph Griffith",null,null,"6871 Daniels Pkwy.",null,"Fort Myers","FL",33912,"6871 Daniels Pkwy.",null,"Fort Myers","FL",33912,"General Practice - Dental"]
[10196,651079887,"Aaron J. Delgado",null,null,"20330 Grande Oak Shoppes Blvd.",null,"Estero","FL",33928,"20330 Grande Oak Shoppes Blvd.",null,"Estero","FL",33928,"General Practice - Dental"]
[10197,650636441,"Rafaella  Sampaio",null,null,"1310 San Marco Road",null,"Marco Island","FL",34145,"1310 San Marco Road",null,"Marco Island","FL",34145,"General Practice - Dental"]
[10198,880569141,"Gabriela  Soto",null,null,"11741 South Cleveland Avenue",null,"Fort Myers","FL",33907,"11741 South Cleveland Avenue",null,"Fort Myers","FL",33907,"General Practice - Dental"]
[10199,650719035,"Wendy  Sarduy Mavilla",null,null,"1616 Cape Coral Pkwy. West",null,"Cape Coral","FL",33914,"1616 Cape Coral Pkwy. West",null,"Cape Coral","FL",33914,"General Practice - Dental"]
[10200,850958597,"Raymond A. Santa-Cruz",null,null,"7423 Spring Hill Drive",null,"Spring Hill","FL",34606,"7423 Spring Hill Drive",null,"Spring Hill","FL",34606,"General Practice - Dental"]
[10201,452546142,"Adam W. Scheurer",null,null,"11300 Lindbergh Blvd.",null,"Fort Myers","FL",33913,"11300 Lindbergh Blvd.",null,"Fort Myers","FL",33913,"General Practice - Dental"]
[10202,593365515,"Natalie Lynn May",null,null,"11600 Gladiolus Drive",null,"Fort Myers","FL",33908,"11600 Gladiolus Drive",null,"Fort Myers","FL",33908,"General Practice - Dental"]
[10203,874041892,"Scott M. Bakos",null,null,"8004 Summerlin Lakes Drive",null,"Fort Myers","FL",33907,"8004 Summerlin Lakes Drive",null,"Fort Myers","FL",33907,"General Practice - Dental"]
[10204,461043966,"Miguel A. Argumosa",null,null,"3872 West Tamiami Trail",null,"Port Charlotte","FL",33952,"3872 West Tamiami Trail",null,"Port Charlotte","FL",33952,"Pediatric Dentistry"]
[10205,650404100,"Dennis S. Siddiqi",null,null,"12734 Kenwood Lane",null,"Fort Myers","FL",33907,"12734 Kenwood Lane",null,"Fort Myers","FL",33907,"Endodontics"]
[10206,833979514,"Joseph P. Mejia",null,null,"730 Riverside Drive",null,"Coral Springs","FL",33071,"730 Riverside Drive",null,"Coral Springs","FL",33071,"General Practice - Dental"]
[10207,201948902,"Adam W. Scheurer",null,null,"11300 Lindbergh Blvd.",null,"Fort Myers","FL",33913,"11300 Lindbergh Blvd.",null,"Fort Myers","FL",33913,"General Practice - Dental"]
[10208,204593420,"Rafael E. Alcalde",null,null,"5150 Mason Corbin Court",null,"Fort Myers","FL",33907,"5150 Mason Corbin Court",null,"Fort Myers","FL",33907,"Surgery, Oral & Macillofacial"]
[10209,901003080,"Bradley M. Woodham",null,null,"6120 Winkler Road",null,"Fort Myers","FL",33919,"6120 Winkler Road",null,"Fort Myers","FL",33919,"General Practice - Dental"]
[10210,582672804,"Kathryn A. Ringland",null,null,"9400 Gladiolus Drive",null,"Fort Myers","FL",33908,"9400 Gladiolus Drive",null,"Fort Myers","FL",33908,"General Practice - Dental"]
[10211,593538280,"Richard V. Linden",null,null,"5628 Strand Blvd.",null,"Naples","FL",34110,"5628 Strand Blvd.",null,"Naples","FL",34110,"General Practice - Dental"]
[10212,200185918,"Brittany Ann Valledor",null,null,"20330 Grande Oak Shoppes Blvd.",null,"Estero","FL",33928,"20330 Grande Oak Shoppes Blvd.",null,"Estero","FL",33928,"General Practice - Dental"]
[10213,650195566,"Ana R. Beyra",null,null,"6150 Diamond Center Court",null,"Fort Myers","FL",33912,"6150 Diamond Center Court",null,"Fort Myers","FL",33912,"General Practice - Dental"]
[10214,650719035,"Liuvis  Martinez",null,null,"1127 Del Prado Blvd. South",null,"Cape Coral","FL",33990,"1127 Del Prado Blvd. South",null,"Cape Coral","FL",33990,"General Practice - Dental"]
[10215,821819096,"Samantha  Andisco",null,null,"950 North Collier Blvd.",null,"Marco Island","FL",34145,"950 North Collier Blvd.",null,"Marco Island","FL",34145,"General Practice - Dental"]
[10216,821989394,"Grady P. Scott",null,null,"3635 Bonita Beach Road Southwest",null,"Bonita Springs","FL",34134,"3635 Bonita Beach Road Southwest",null,"Bonita Springs","FL",34134,"General Practice - Dental"]
[10217,873945440,"Aaron N. Mamo",null,null,"16520 South Tamiami Trail",null,"Fort Myers","FL",33908,"16520 South Tamiami Trail",null,"Fort Myers","FL",33908,"General Practice - Dental"]
[10218,822625253,"Aline  Morin",null,null,"2544 Northbrooke Plaza",null,"Naples","FL",34119,"2544 Northbrooke Plaza",null,"Naples","FL",34119,"Pediatric Dentistry"]
[10219,650788707,"Wayne M. Dubin",null,null,"6385 Presidential Court",null,"Fort Myers","FL",33919,"6385 Presidential Court",null,"Fort Myers","FL",33919,"Endodontics"]
[10220,863119749,"Diane G. Deacon",null,null,"1550 Matthew Drive",null,"Fort Myers","FL",33907,"1550 Matthew Drive",null,"Fort Myers","FL",33907,"General Practice - Dental"]
[10221,820657753,"Mark W. Galsterer",null,null,"4955 Castello Drive",null,"Naples","FL",34103,"4955 Castello Drive",null,"Naples","FL",34103,"Endodontics"]
[10222,874041892,"Scott M. Bakos",null,null,"8004 Summerlin Lakes Drive",null,"Fort Myers","FL",33907,"8004 Summerlin Lakes Drive",null,"Fort Myers","FL",33907,"General Practice - Dental"]
[10223,812740323,"Andrea Mier Parsons",null,null,"17968 North Tamiami Trail",null,"North Fort Myers","FL",33903,"17968 North Tamiami Trail",null,"North Fort Myers","FL",33903,"General Practice - Dental"]
[10224,262735338,"Ramon C. Padilla",null,null,"5048 Tamiami Trail",null,"Naples","FL",34103,"5048 Tamiami Trail",null,"Naples","FL",34103,"General Practice - Dental"]
[10225,850958597,"Shadae  Person",null,null,"11121 Health Park Blvd.",null,"Naples","FL",34110,"11121 Health Park Blvd.",null,"Naples","FL",34110,"General Practice - Dental"]
[10226,264074848,"HMS Liberty Dental Plan",null,null,"Medicaid Reclamation",null,"Dallas","TX",75267,"Medicaid Reclamation",null,"Dallas","TX",75267,"Unknown"]
[10227,461280419,"Juan C. Castellanos",null,null,"47 Barkley Circle",null,"Fort Myers","FL",33907,"47 Barkley Circle",null,"Fort Myers","FL",33907,"General Practice - Dental"]
[10228,883957970,"Tyler Alexander Frey",null,null,"5100 Tamiami Trail North",null,"Naples","FL",34103,"5100 Tamiami Trail North",null,"Naples","FL",34103,"General Practice - Dental"]
[10229,200185918,"Johanna  Moorefield",null,null,"7485 Vanderbilt Beach Road",null,"Naples","FL",34119,"7485 Vanderbilt Beach Road",null,"Naples","FL",34119,"General Practice - Dental"]
[10230,262926827,"Nicole  Eastham",null,null,"3872 West Tamiami Trail",null,"Port Charlotte","FL",33952,"3872 West Tamiami Trail",null,"Port Charlotte","FL",33952,"Pediatric Dentistry"]
[10231,844852412,"Paul Henry Uliasz",null,null,"428 East Olympia Avenue",null,"Punta Gorda","FL",33950,"428 East Olympia Avenue",null,"Punta Gorda","FL",33950,"General Practice - Dental"]
[10232,201395437,"Donald W. Norton",null,null,"4115 Del Prado Blvd.",null,"Cape Coral","FL",33904,"4115 Del Prado Blvd.",null,"Cape Coral","FL",33904,"Orthodontics"]
[10233,591622972,"John M. Richards",null,null,"14 Del Prado Blvd. North",null,"Cape Coral","FL",33909,"14 Del Prado Blvd. North",null,"Cape Coral","FL",33909,"Orthodontics"]
[10234,474770871,"Meghann  Lussier",null,null,"1105 Southeast 47th Terrace",null,"Cape Coral","FL",33904,"1105 Southeast 47th Terrace",null,"Cape Coral","FL",33904,"Endodontics"]
[10235,591639887,"Roger A. Dunphy",null,null,"6306 Whiskey Creek Drive",null,"Fort Myers","FL",33919,"6306 Whiskey Creek Drive",null,"Fort Myers","FL",33919,"General Practice - Dental"]
[10236,650715247,"David John Pfent",null,null,"16251 North Cleveland Avenue",null,"North Fort Myers","FL",33903,"16251 North Cleveland Avenue",null,"North Fort Myers","FL",33903,"General Practice - Dental"]
[10237,843741387,"Gregory Asher Pette",null,null,"6890 U.S. Hwy. 90",null,"Daphne","AL",36526,"6890 U.S. Hwy. 90",null,"Daphne","AL",36526,"Periodontics"]
[10238,200185918,"Claudie Ines Delgado",null,null,"24940 South Tamiami Trail",null,"Bonita Springs","FL",34134,"24940 South Tamiami Trail",null,"Bonita Springs","FL",34134,"General Practice - Dental"]
[10239,452546142,"Mitchell  Shoemaker",null,null,"11300 Lindbergh Blvd.",null,"Fort Myers","FL",33913,"11300 Lindbergh Blvd.",null,"Fort Myers","FL",33913,"General Practice - Dental"]
[10240,262735338,"Kelli  Orcutt",null,null,"3220 Forum Blvd.",null,"Fort Myers","FL",33905,"3220 Forum Blvd.",null,"Fort Myers","FL",33905,"General Practice - Dental"]
[10241,863736314,"Care Dental Care",null,null,"3001 Del Prado Blvd. South",null,"Cape Coral","FL",33904,"3001 Del Prado Blvd. South",null,"Cape Coral","FL",33904,"General Practice - Dental"]
[10242,454146430,"Katrine A. Farag",null,null,"8800 Bernwood Pkwy.",null,"Bonita Springs","FL",34135,"8800 Bernwood Pkwy.",null,"Bonita Springs","FL",34135,"General Practice - Dental"]
[10243,471706456,"Adam  Coric",null,null,"305 Southwest Pine Island Road",null,"Cape Coral","FL",33991,"305 Southwest Pine Island Road",null,"Cape Coral","FL",33991,"General Practice - Dental"]
[10244,134334999,"Richard Lee Ballentine",null,null,"14884 Tamiami Trail",null,"North Port","FL",34287,"14884 Tamiami Trail",null,"North Port","FL",34287,"General Practice - Dental"]
[10245,200185918,"Amy Lashay Patri",null,null,"9250 6 Mile Cypress Pkwy.",null,"Fort Myers","FL",33966,"9250 6 Mile Cypress Pkwy.",null,"Fort Myers","FL",33966,"General Practice - Dental"]
[10246,842864959,"David Michael Martinez",null,null,"10484 Stringfellow Road",null,"St. James City","FL",33956,"10484 Stringfellow Road",null,"St. James City","FL",33956,"General Practice - Dental"]
[10247,591606439,"Jennifer  Taschner",null,null,"1645 Medical Lane",null,"Fort Myers","FL",33907,"1645 Medical Lane",null,"Fort Myers","FL",33907,"General Practice - Dental"]
[10248,592075192,"Teresa Y. Pfannenstiel",null,null,"6035 Executive Drive",null,"Lansing","MI",48911,"6035 Executive Drive",null,"Lansing","MI",48911,"Orthodontics"]
[10249,200185918,"Paola  Suglio Villalon",null,null,"20330 Grande Oak Shoppes Blvd.",null,"Estero","FL",33928,"20330 Grande Oak Shoppes Blvd.",null,"Estero","FL",33928,"General Practice - Dental"]
[10250,465754024,"Stephanie N. Zastrow",null,null,"2600 Washington Road",null,"Mt. Dora","FL",32757,"2600 Washington Road",null,"Mt. Dora","FL",32757,"Surgery, Oral & Macillofacial"]
[10251,650715247,"North Pointe Dental Cente, PA",null,null,"16251 North Cleveland Avenue",null,"North Fort Myers","FL",33903,"16251 North Cleveland Avenue",null,"North Fort Myers","FL",33903,"General Practice - Dental"]
[10252,864003745,"Neil B. Seaver",null,null,"19240 Quesada Avenue",null,"Port Charlotte","FL",33948,"19240 Quesada Avenue",null,"Port Charlotte","FL",33948,"General Practice - Dental"]
[10253,864003745,"Melissa Mae Duston",null,null,"159 Main Dunstable Road",null,"Nashua","NH",3060,"159 Main Dunstable Road",null,"Nashua","NH",3060,"General Practice - Dental"]
[10254,650931877,"Robert E. Fischer",null,null,"15880 Summerlin Road",null,"Fort Myers","FL",33908,"15880 Summerlin Road",null,"Fort Myers","FL",33908,"General Practice - Dental"]
[10255,863017896,"Leanet  Ascunce",null,null,"11649 SR 70 East",null,"Bradenton","FL",34202,"11649 SR 70 East",null,"Bradenton","FL",34202,"Pediatric Dentistry"]
[10256,471706456,"Daniela  Vilanova",null,null,"305 Southwest Pine Island Road",null,"Cape Coral","FL",33991,"305 Southwest Pine Island Road",null,"Cape Coral","FL",33991,"General Practice - Dental"]
[10257,820657753,"Anne Lindsey Broderick",null,null,"4955 Castello Drive",null,"Naples","FL",34103,"4955 Castello Drive",null,"Naples","FL",34103,"Periodontics"]
[10258,452704392,"Leticia  Acosta",null,null,"10484 Stringfellow Road",null,"St. James City","FL",33956,"10484 Stringfellow Road",null,"St. James City","FL",33956,"General Practice - Dental"]
[10259,461043966,"Sarah Elizabeth Vanderbosch",null,null,"3872 West Tamiami Trail",null,"Port Charlotte","FL",33952,"3872 West Tamiami Trail",null,"Port Charlotte","FL",33952,"Pediatric Dentistry"]
[10260,262926958,"Juan M. Teodoro",null,null,"9510 Bonita Beach Road",null,"Bonita Springs","FL",34135,"9510 Bonita Beach Road",null,"Bonita Springs","FL",34135,"Periodontics"]
[10261,461043966,"Erin M. Taylor",null,null,"3872 West Tamiami Trail",null,"Port Charlotte","FL",33952,"3872 West Tamiami Trail",null,"Port Charlotte","FL",33952,"Pediatric Dentistry"]
[10262,262926827,"Doribeth  Ruiz",null,null,"9510 Bonita Beach Road",null,"Bonita Springs","FL",34135,"9510 Bonita Beach Road",null,"Bonita Springs","FL",34135,"Pediatric Dentistry"]
[10263,451261244,"Juliana  Fitzgerald",null,null,"6726 Lone Oak Blvd.",null,"Naples","FL",34109,"6726 Lone Oak Blvd.",null,"Naples","FL",34109,"Pediatric Dentistry"]
[10264,823155523,"Jhony R. Espinoza",null,null,"3436 South Cleveland Avenue",null,"Fort Myers","FL",33901,"3436 South Cleveland Avenue",null,"Fort Myers","FL",33901,"General Practice - Dental"]
[10265,920287383,"Alexander David Levine",null,null,"28 Barkley Circle",null,"Fort Myers","FL",33907,"28 Barkley Circle",null,"Fort Myers","FL",33907,"Orthodontics"]
[10266,821652076,"Joana  Lastres",null,null,"6404 Roosevelt Blvd.",null,"Philadelphia","PA",19149,"6404 Roosevelt Blvd.",null,"Philadelphia","PA",19149,"General Practice - Dental"]
[10267,510593792,"Heather Althea Adu Sarkodie",null,null,"14171 Metropolis Avenue",null,"Fort Myers","FL",33912,"14171 Metropolis Avenue",null,"Fort Myers","FL",33912,"Endodontics"]
[10268,200185918,"Andrew M. Levine",null,null,"7485 Vanderbilt Beach Road",null,"Naples","FL",34119,"7485 Vanderbilt Beach Road",null,"Naples","FL",34119,"General Practice - Dental"]
[10269,872487079,"Yamila  Noriega Abreu",null,null,"463 US Hwy. 41 Bypass South",null,"Venice","FL",34285,"463 US Hwy. 41 Bypass South",null,"Venice","FL",34285,"General Practice - Dental"]
[10270,844370204,"Frank C. Pettinato",null,null,"4427 Rowan Road",null,"New Port Richey","FL",34653,"4427 Rowan Road",null,"New Port Richey","FL",34653,"Pediatric Dentistry"]
[10271,471706456,"Kirsten N. Vieira - Martinez",null,null,"5696 Tuscola Blvd.",null,"North Port","FL",34287,"5696 Tuscola Blvd.",null,"North Port","FL",34287,"General Practice - Dental"]
[10272,461604794,"Richard Wayne Blake",null,null,"8016 Summerlin Lakes Drive",null,"Fort Myers","FL",33907,"8016 Summerlin Lakes Drive",null,"Fort Myers","FL",33907,"Pediatric Dentistry"]
[10273,471706456,"Omeed  Behmardi",null,null,"9330 Ben C Pratt/6 Mile Cypress Pkw",null,"Fort Myers","FL",33966,"9330 Ben C Pratt/6 Mile Cypress Pkw",null,"Fort Myers","FL",33966,"General Practice - Dental"]
[10274,202901107,"Alexandra  Zabala",null,null,"13720 North Cleveland Avenue",null,"North Fort Myers","FL",33903,"13720 North Cleveland Avenue",null,"North Fort Myers","FL",33903,"General Practice - Dental"]
[10275,592075192,"Emily Hanna Foster",null,null,"6090 Winkler Road",null,"Fort Myers","FL",33919,"6090 Winkler Road",null,"Fort Myers","FL",33919,"Pediatric Dentistry"]
[10276,650719035,"Melody A. Baron",null,null,"7493 147th Street West",null,"Apple Valley","MN",55124,"7493 147th Street West",null,"Apple Valley","MN",55124,"General Practice - Dental"]
[10277,473863893,"Joseph D. Proscia",null,null,"1940 Tamiami Trail",null,"Port Charlotte","FL",33948,"1940 Tamiami Trail",null,"Port Charlotte","FL",33948,"General Practice - Dental"]
[10278,874041892,"Marc  Dadkhah",null,null,"681 Goodlette Road North",null,"Naples","FL",34102,"681 Goodlette Road North",null,"Naples","FL",34102,"General Practice - Dental"]
[10279,830541772,"Ivelisse Marie Griffith",null,null,"6871 Daniels Pkwy.",null,"Fort Myers","FL",33912,"6871 Daniels Pkwy.",null,"Fort Myers","FL",33912,"General Practice - Dental"]
[10280,651178634,"Ilia AL Djindil",null,null,"9400 Fountain Medical Court",null,"Bonita Springs","FL",34135,"9400 Fountain Medical Court",null,"Bonita Springs","FL",34135,"General Practice - Dental"]
[10281,822248504,"Krystal  Viruet",null,null,"34 Barkley Circle",null,"Fort Myers","FL",33907,"34 Barkley Circle",null,"Fort Myers","FL",33907,"General Practice - Dental"]
[10282,271874344,"Daniella Ferraz Rothberg",null,null,"3436 Cleveland Avenue",null,"Fort Myers","FL",33901,"3436 Cleveland Avenue",null,"Fort Myers","FL",33901,"General Practice - Dental"]
[10283,650719035,"Lilyann  Cubero",null,null,"10580 Colonial Blvd.",null,"Fort Myers","FL",33913,"10580 Colonial Blvd.",null,"Fort Myers","FL",33913,"General Practice - Dental"]
[10284,134334999,"Timothy A. Turner",null,null,"1735 U.S. Hwy. 27 South",null,"Sebring","FL",33870,"1735 U.S. Hwy. 27 South",null,"Sebring","FL",33870,"General Practice - Dental"]
[10285,461004916,"Julija  Cartelli",null,null,"2378 Surfside Blvd.",null,"Cape Coral","FL",33991,"2378 Surfside Blvd.",null,"Cape Coral","FL",33991,"General Practice - Dental"]
[10286,593051362,"George A. Hoop",null,null,"12630 Whitehall Drive",null,"Ft. Myers","FL",33907,"12630 Whitehall Drive",null,"Ft. Myers","FL",33907,"General Practice - Dental"]
[10287,262126964,"Javier  Estrada",null,null,"14586 Southwest 8th Street",null,"Miami","FL",33184,"14586 Southwest 8th Street",null,"Miami","FL",33184,"General Practice - Dental"]
[10288,820657753,"Kevin P. Hall",null,null,"4955 Castello Drive",null,"Naples","FL",34103,"4955 Castello Drive",null,"Naples","FL",34103,"Surgery, Oral & Macillofacial"]
[10289,471706456,"Justin Warren Lerenzo",null,null,"305 Southwest Pine Island Road",null,"Cape Coral","FL",33991,"305 Southwest Pine Island Road",null,"Cape Coral","FL",33991,"General Practice - Dental"]
[10290,900868238,"Mark W. Galsterer",null,null,"4955 Castello Drive",null,"Naples","FL",34103,"4955 Castello Drive",null,"Naples","FL",34103,"Endodontics"]
[10291,592747523,"David Scott Trettenero",null,null,"13440 Parker Commons Blvd.",null,"Fort Myers","FL",33912,"13440 Parker Commons Blvd.",null,"Fort Myers","FL",33912,"General Practice - Dental"]
[10292,650719035,"Aaron D. Broderick",null,null,"9250 College Pkwy.",null,"Fort Myers","FL",33919,"9250 College Pkwy.",null,"Fort Myers","FL",33919,"Periodontics"]
[10293,200185918,"David Wayne Rowe",null,null,"17840 Toledo Blade Blvd.",null,"Port Charlotte","FL",33948,"17840 Toledo Blade Blvd.",null,"Port Charlotte","FL",33948,"General Practice - Dental"]
[10294,273868133,"Samira  Alempour",null,null,"2853 Executive Park Drive",null,"Weston","FL",33331,"2853 Executive Park Drive",null,"Weston","FL",33331,"Pediatric Dentistry"]
[10295,861786057,"Randold A. Binns",null,null,"6560 West Fullerton Avenue",null,"Chicago","IL",60707,"6560 West Fullerton Avenue",null,"Chicago","IL",60707,"General Practice - Dental"]
[10296,593682872,"Marilyn C. Sandor",null,null,"4529 Executive Drive",null,"Naples","FL",34119,"4529 Executive Drive",null,"Naples","FL",34119,"Pediatric Dentistry"]
[10297,455215073,"Houman  Dehdashti",null,null,"5180 Palm Beach Blvd.",null,"Fort Myers","FL",33905,"5180 Palm Beach Blvd.",null,"Fort Myers","FL",33905,"General Practice - Dental"]
[10298,300288248,"Joseph Halim Farag",null,null,"3441 Conway Blvd.",null,"Port Charlotte","FL",33952,"3441 Conway Blvd.",null,"Port Charlotte","FL",33952,"General Practice - Dental"]
[10299,853648994,"Katia  Consuegra",null,null,"11121 Health Park Blvd.",null,"Naples","FL",34110,"11121 Health Park Blvd.",null,"Naples","FL",34110,"General Practice - Dental"]
[10300,550805718,"Jeremy K. Martin",null,null,"100 Madrid Blvd.",null,"Punta Gorda","FL",33950,"100 Madrid Blvd.",null,"Punta Gorda","FL",33950,"General Practice - Dental"]
[10301,454367940,"Joshua McKay Bevans",null,null,"10088 Indiantown Road",null,"Jupiter","FL",33478,"10088 Indiantown Road",null,"Jupiter","FL",33478,"General Practice - Dental"]
[10302,845127986,"Diana C. Shima",null,null,"5072 Airport Pulling Road North",null,"Naples","FL",34105,"5072 Airport Pulling Road North",null,"Naples","FL",34105,"General Practice - Dental"]
[10303,208388255,"Melody L. Herston",null,null,"4161 Tamiami Trail",null,"Port Charlotte","FL",33952,"4161 Tamiami Trail",null,"Port Charlotte","FL",33952,"General Practice - Dental"]
[10304,882686225,"Katelyn  Butch",null,null,"7430 Immokalee Road",null,"Naples","FL",34119,"7430 Immokalee Road",null,"Naples","FL",34119,"General Practice - Dental"]
[10305,550805718,"Christopher J. Ramke",null,null,"7705 Collier Boulevard",null,"Naples","FL",34114,"7705 Collier Boulevard",null,"Naples","FL",34114,"General Practice - Dental"]
[10306,463957757,"Gianna  Camejo Garin",null,null,"1715 Cape Coral Pkwy. West",null,"Cape Coral","FL",33914,"1715 Cape Coral Pkwy. West",null,"Cape Coral","FL",33914,"General Practice - Dental"]
[10307,883957970,"Tyler Alexander Frey",null,null,"5100 Tamiami Trail North",null,"Naples","FL",34103,"5100 Tamiami Trail North",null,"Naples","FL",34103,"General Practice - Dental"]
[10308,264826766,"Avis Marie Medina",null,null,"6230 Scott Street",null,"Punta Gorda","FL",33950,"6230 Scott Street",null,"Punta Gorda","FL",33950,"General Practice - Dental"]
[10309,592075192,"Hope E. McDowell",null,null,"6090 Winkler Road",null,"Fort Myers","FL",33919,"6090 Winkler Road",null,"Fort Myers","FL",33919,"Pediatric Dentistry"]
[10310,471706456,"Ross Tyler Freeman",null,null,"2761 South McCall Road",null,"Englewood","FL",34224,"2761 South McCall Road",null,"Englewood","FL",34224,"Surgery, Oral & Macillofacial"]
[10311,200185918,"Rafael  Martinez",null,null,"14651 Palm Beach Blvd.",null,"Fort Myers","FL",33905,"14651 Palm Beach Blvd.",null,"Fort Myers","FL",33905,"General Practice - Dental"]
[10312,452546142,"Kenneth S. Liszewski",null,null,"6222 US Hwy. 301 North",null,"Ellenton","FL",34222,"6222 US Hwy. 301 North",null,"Ellenton","FL",34222,"General Practice - Dental"]
[10313,844852412,"Melissa  Marino",null,null,"428 East Olympia Avenue",null,"Punta Gorda","FL",33950,"428 East Olympia Avenue",null,"Punta Gorda","FL",33950,"General Practice - Dental"]
[10314,845127986,"Mehak  Baig",null,null,"19521 Highland Oaks Drive",null,"Estero","FL",33928,"19521 Highland Oaks Drive",null,"Estero","FL",33928,"General Practice - Dental"]
[10315,200891967,"Daniel K. Moenning",null,null,"522 East Marion Street",null,"Punta Gorda","FL",33950,"522 East Marion Street",null,"Punta Gorda","FL",33950,"General Practice - Dental"]
[10316,271872049,"Whitney R. Marsh",null,null,"1648 Fry Road",null,"Greenwood","IN",46142,"1648 Fry Road",null,"Greenwood","IN",46142,"General Practice - Dental"]
[10317,262926827,"Miguel A. Argumosa",null,null,"3872 West Tamiami Trail",null,"Port Charlotte","FL",33952,"3872 West Tamiami Trail",null,"Port Charlotte","FL",33952,"Pediatric Dentistry"]
[10318,262926827,"Sarah Elizabeth Vanderbosch",null,null,"3872 West Tamiami Trail",null,"Port Charlotte","FL",33952,"3872 West Tamiami Trail",null,"Port Charlotte","FL",33952,"Pediatric Dentistry"]
[10319,593365515,"Katrina Victoria Sanchelima",null,null,"363 South Blvd.",null,"Homestead","FL",33030,"363 South Blvd.",null,"Homestead","FL",33030,"General Practice - Dental"]
[10320,203758127,"Maryann  Kriger",null,null,"27970 Crown Lake Blvd.",null,"Bonita Springs","FL",34135,"27970 Crown Lake Blvd.",null,"Bonita Springs","FL",34135,"Orthodontics"]
[10321,650404100,"William David McGrady",null,null,"249 Palm Bay Road",null,"West Melbourne","FL",32904,"249 Palm Bay Road",null,"West Melbourne","FL",32904,"Endodontics"]
[10322,261783966,"Jospeh E. Yurko",null,null,"419 North Main Street",null,"Waynesville","NC",28786,"419 North Main Street",null,"Waynesville","NC",28786,"General Practice - Dental"]
[10323,481206250,"Donald H. Lemire",null,null,"8899 Timberwilde Drive",null,"Bonita Springs","FL",34135,"8899 Timberwilde Drive",null,"Bonita Springs","FL",34135,"General Practice - Dental"]
[10324,650325099,"Silvia  Dumois",null,null,"3813 Northwest 7th Street",null,"Miami","FL",33126,"3813 Northwest 7th Street",null,"Miami","FL",33126,"General Practice - Dental"]
[10325,651024681,"Gustavo E. Fuentes",null,null,"13650 Metropolis Avenue",null,"Fort Myers","FL",33912,"13650 Metropolis Avenue",null,"Fort Myers","FL",33912,"Endodontics"]
[10326,465754024,"Elizabeth McCutcheon Casey Guadagni",null,null,"90 Cypress Way East",null,"Naples","FL",34110,"90 Cypress Way East",null,"Naples","FL",34110,"Surgery, Oral & Macillofacial"]
[10327,542097749,"Jon P. Wheeler",null,null,"19077 Champion Forest Drive",null,"Spring","TX",77379,"19077 Champion Forest Drive",null,"Spring","TX",77379,"General Practice - Dental"]
[10328,200185918,"Maria E. Rodriguez Samarkos",null,null,"105 Northwest 75th Street",null,"Gainesville","FL",32607,"105 Northwest 75th Street",null,"Gainesville","FL",32607,"General Practice - Dental"]
[10329,200185918,"Long P. Pham",null,null,"1840 Dekalb Avenue",null,"Sycamore","IL",60178,"1840 Dekalb Avenue",null,"Sycamore","IL",60178,"General Practice - Dental"]
[10330,452546142,"Kenneth S. Liszewski",null,null,"6222 US Hwy. 301 North",null,"Ellenton","FL",34222,"6222 US Hwy. 301 North",null,"Ellenton","FL",34222,"General Practice - Dental"]
[10331,262068223,"Jose L. Avila",null,null,"14740 Southwest 26th Street",null,"Miami","FL",33185,"14740 Southwest 26th Street",null,"Miami","FL",33185,"General Practice - Dental"]
[10332,883957970,"Gayane N. Avakyan",null,null,"10484 Stringfellow Road",null,"St. James City","FL",33956,"10484 Stringfellow Road",null,"St. James City","FL",33956,"General Practice - Dental"]
[10333,834624796,"Richard A. Michaud",null,null,"6323 Corporate Court Southwest",null,"Fort Myers","FL",33919,"6323 Corporate Court Southwest",null,"Fort Myers","FL",33919,"Endodontics"]
[10334,813955151,"Sorina Paula Ilie",null,null,"81 Broadway",null,"Newark","NJ",7104,"81 Broadway",null,"Newark","NJ",7104,"General Practice - Dental"]
[10335,593365515,"Alfred W. Choi",null,null,"11741 South Cleveland Avenue",null,"Fort Myers","FL",33907,"11741 South Cleveland Avenue",null,"Fort Myers","FL",33907,"General Practice - Dental"]
[10336,561870749,"Joseph R. Conard",null,null,"20 Broadview Road",null,"Waynesville","NC",28786,"20 Broadview Road",null,"Waynesville","NC",28786,"General Practice - Dental"]
[10337,650456750,"Jay C. Shartzer",null,null,"11609 South Cleveland Avenue",null,"Fort Myers","FL",33907,"11609 South Cleveland Avenue",null,"Fort Myers","FL",33907,"General Practice - Dental"]
[10338,592338040,"Michael H. McMillan",null,null,"4215 Del Prado Blvd. South",null,"Cape Coral","FL",33904,"4215 Del Prado Blvd. South",null,"Cape Coral","FL",33904,"General Practice - Dental"]
[10339,593554557,"Armando L. Pino",null,null,"2700 Immokalee Road",null,"Naples","FL",34110,"2700 Immokalee Road",null,"Naples","FL",34110,"General Practice - Dental"]
[10340,200185918,"Dimitrios G. Gatis",null,null,"2176 Tamiami Trail North",null,"Naples","FL",34102,"2176 Tamiami Trail North",null,"Naples","FL",34102,"General Practice - Dental"]
[10341,223977446,"Nilofer  Khatri",null,null,"7505 Grand Lely Drive",null,"Naples","FL",34113,"7505 Grand Lely Drive",null,"Naples","FL",34113,"Pediatric Dentistry"]
[10342,592195329,"Kevin  Goodlet",null,null,"13040 Livingston Road",null,"Naples","FL",34105,"13040 Livingston Road",null,"Naples","FL",34105,"General Practice - Dental"]
[10343,650952244,"Sudhanshu B. Desai",null,null,"1510 Southeast 47th Terrace",null,"Cape Coral","FL",33904,"1510 Southeast 47th Terrace",null,"Cape Coral","FL",33904,"General Practice - Dental"]
[10344,262735338,"Juan Jose Fajardo",null,null,"3220 Forum Blvd.",null,"Ft. Myers","FL",33905,"3220 Forum Blvd.",null,"Ft. Myers","FL",33905,"General Practice - Dental"]
[10345,593738078,"Alan Neil Rembos",null,null,"4001 Tamiami Trail North",null,"Naples","FL",34103,"4001 Tamiami Trail North",null,"Naples","FL",34103,"General Practice - Dental"]
[10346,200185918,"Tomas  Perez",null,null,"2411 South McCall Road",null,"Englewood","FL",34224,"2411 South McCall Road",null,"Englewood","FL",34224,"General Practice - Dental"]
[10347,832562429,"Elias  Josephs",null,null,"12975 Collier Blvd.",null,"Naples","FL",34116,"12975 Collier Blvd.",null,"Naples","FL",34116,"Pediatric Dentistry"]
[10348,203404121,"Amir Reza Ardalan",null,null,"130 Southwest Chamber Court",null,"Port St. Lucie","FL",34986,"130 Southwest Chamber Court",null,"Port St. Lucie","FL",34986,"Pediatric Dentistry"]
[10349,861786057,"David S. Clary",null,null,"4413 Outer Drive",null,"Naples","FL",34112,"4413 Outer Drive",null,"Naples","FL",34112,"General Practice - Dental"]
[10350,223977446,"Deena H. Hawasli",null,null,"9011 Daniels Pkwy.",null,"Fort Myers","FL",33912,"9011 Daniels Pkwy.",null,"Fort Myers","FL",33912,"General Practice - Dental"]
[10351,274274596,"Erica K. Cummings",null,null,"9955 Woodlands Pkwy.",null,"The Woodlands","TX",77382,"9955 Woodlands Pkwy.",null,"The Woodlands","TX",77382,"General Practice - Dental"]
[10352,931654360,"Angela M. Cossentino",null,null,"2378 Surfside Blvd.",null,"Cape Coral","FL",33991,"2378 Surfside Blvd.",null,"Cape Coral","FL",33991,"General Practice - Dental"]
[10353,202261140,"Denise M. Vedrenne Rangel",null,null,"13889 Wellington Trace",null,"Wellington","FL",33414,"13889 Wellington Trace",null,"Wellington","FL",33414,"Pediatric Dentistry"]
[10354,201948902,"Riverdale Dental Associates",null,null,"13432 Palm Beach Blvd.",null,"Fort Myers","FL",33905,"13432 Palm Beach Blvd.",null,"Fort Myers","FL",33905,"General Practice - Dental"]
[10355,200185918,"Leydy  Toribio Fabelo",null,null,"165A Northwest 136th Avenue Bay",null,"Sunrise","FL",33325,"165A Northwest 136th Avenue Bay",null,"Sunrise","FL",33325,"General Practice - Dental"]
[10356,391861854,"Sara Jean Link",null,null,"119 Wilburn Road",null,"Sun Prairie","WI",53590,"119 Wilburn Road",null,"Sun Prairie","WI",53590,"General Practice - Dental"]
[10357,843181878,"Keith Andrew Morse",null,null,"27400 Riverview Center Blvd.",null,"Bonita Springs","FL",34134,"27400 Riverview Center Blvd.",null,"Bonita Springs","FL",34134,"General Practice - Dental"]
[10358,260681106,"Gregory M. Casey",null,null,"3388 Woods Edge Circle",null,"Bonita Springs","FL",34134,"3388 Woods Edge Circle",null,"Bonita Springs","FL",34134,"Surgery, Oral & Macillofacial"]
[10359,200185918,"Thomas H. Devlin",null,null,"441 Joaquin Avenue",null,"San Leandro","CA",94577,"441 Joaquin Avenue",null,"San Leandro","CA",94577,"General Practice - Dental"]
[10360,650935793,"Walfred  Torrens",null,null,"1890 Southwest Health Pkwy",null,"Naples","FL",34109,"1890 Southwest Health Pkwy",null,"Naples","FL",34109,"General Practice - Dental"]
[10361,134261325,"Joseph H. Paston",null,null,"3417 Tamiami Trail",null,"Port Charlotte","FL",33952,"3417 Tamiami Trail",null,"Port Charlotte","FL",33952,"General Practice - Dental"]
[10362,471706456,"Ana  Suarez",null,null,"11741 South Cleveland Avenue",null,"Fort Myers","FL",33907,"11741 South Cleveland Avenue",null,"Fort Myers","FL",33907,"General Practice - Dental"]
[10363,260357554,"Paola Valeria Berrios Merced",null,null,"620 West State Road 434",null,"Winter Springs","FL",32708,"620 West State Road 434",null,"Winter Springs","FL",32708,"General Practice - Dental"]
[10364,593365515,"Michael L. Crovatt",null,null,"6432 West Colonial Drive",null,"Orlando","FL",32818,"6432 West Colonial Drive",null,"Orlando","FL",32818,"General Practice - Dental"]
[10365,593435051,"Robert B. Zavada",null,null,"1056 Goodlette Road",null,"Naples","FL",34102,"1056 Goodlette Road",null,"Naples","FL",34102,"General Practice - Dental"]
[10366,461341176,"Christopher Stephen Page",null,null,"4953 Castello Drive",null,"Naples","FL",34103,"4953 Castello Drive",null,"Naples","FL",34103,"General Practice - Dental"]
[10367,205495923,"Aaron M. Memon",null,null,"14500 Tamiami Trail",null,"North Port","FL",34287,"14500 Tamiami Trail",null,"North Port","FL",34287,"General Practice - Dental"]
[10368,651178634,"Andrea Mae Cameron",null,null,"9400 Fountain Medical Court",null,"Bonita Springs","FL",34135,"9400 Fountain Medical Court",null,"Bonita Springs","FL",34135,"General Practice - Dental"]
[10369,200185918,"Mariah  Low",null,null,"3403 North Hiatus Road",null,"Sunrise","FL",33351,"3403 North Hiatus Road",null,"Sunrise","FL",33351,"General Practice - Dental"]
[10370,593365515,"Ana  Puebla",null,null,"2605 West Swann Avenue",null,"Tampa","FL",33609,"2605 West Swann Avenue",null,"Tampa","FL",33609,"General Practice - Dental"]
[10371,650406472,"Peter M. Engelsberg",null,null,"201 Magellan Drive",null,"Sarasota","FL",34243,"201 Magellan Drive",null,"Sarasota","FL",34243,"General Practice - Dental"]
[10372,260357554,"Lisett Alvarez Mata",null,null,"18070 South Tamiami Trail",null,"Fort Myers","FL",33908,"18070 South Tamiami Trail",null,"Fort Myers","FL",33908,"General Practice - Dental"]
[10373,461043966,"Doribeth  Ruiz",null,null,"9510 Bonita Beach Road",null,"Bonita Springs","FL",34135,"9510 Bonita Beach Road",null,"Bonita Springs","FL",34135,"Pediatric Dentistry"]
[10374,204593420,"Rafael E. Alcalde",null,null,"5150 Mason Corbin Court",null,"Fort Myers","FL",33907,"5150 Mason Corbin Court",null,"Fort Myers","FL",33907,"Surgery, Oral & Macillofacial"]
[10375,134334999,"Thomas Robert Cherpak",null,null,"14884 Tamiami Trail",null,"North Port","FL",34287,"14884 Tamiami Trail",null,"North Port","FL",34287,"General Practice - Dental"]
[10376,922939883,"Evelyn  Critchfield",null,null,"3220 Forum Blvd.",null,"Fort Myers","FL",33905,"3220 Forum Blvd.",null,"Fort Myers","FL",33905,"General Practice - Dental"]
[10377,931654360,"Angela M. Cossentino",null,null,"2378 Surfside Blvd.",null,"Cape Coral","FL",33991,"2378 Surfside Blvd.",null,"Cape Coral","FL",33991,"General Practice - Dental"]
[10378,471706456,"Raymond  Gonzalez",null,null,"2761 South McCall Road",null,"Englewood","FL",34224,"2761 South McCall Road",null,"Englewood","FL",34224,"General Practice - Dental"]
[10379,593365515,"Ben  Lewis",null,null,"19001 North Tamiami Trail",null,"North Fort Myers","FL",33903,"19001 North Tamiami Trail",null,"North Fort Myers","FL",33903,"General Practice - Dental"]
[10380,820657753,"Justin A. Schneider",null,null,"1775 Glenview Road",null,"Glenview","IL",60025,"1775 Glenview Road",null,"Glenview","IL",60025,"Surgery, Oral & Macillofacial"]
[10381,200391063,"Joseph B. Lawson",null,null,"1502 Kings Hwy.",null,"Port Charlotte","FL",33980,"1502 Kings Hwy.",null,"Port Charlotte","FL",33980,"General Practice - Dental"]
[10382,474415843,"Marianna  Zadov",null,null,"1905 Clint Moore Road",null,"Boca Raton","FL",33496,"1905 Clint Moore Road",null,"Boca Raton","FL",33496,"General Practice - Dental"]
[10383,463279591,"Arthur K. Molzan",null,null,"819 Del Prado Blvd. South",null,"Cape Coral","FL",33990,"819 Del Prado Blvd. South",null,"Cape Coral","FL",33990,"Surgery, Oral & Macillofacial"]
[10384,882323092,"Daniela  Vilanova",null,null,"305 Southwest Pine Island Road",null,"Cape Coral","FL",33991,"305 Southwest Pine Island Road",null,"Cape Coral","FL",33991,"General Practice - Dental"]
[10385,593365515,"Jordan Dean Da Costa",null,null,"6871 Daniels Pkwy.",null,"Fort Myers","FL",33912,"6871 Daniels Pkwy.",null,"Fort Myers","FL",33912,"General Practice - Dental"]
[10386,271874344,"Ana  Arencibia",null,null,"3436 Cleveland Avenue",null,"Fort Myers","FL",33901,"3436 Cleveland Avenue",null,"Fort Myers","FL",33901,"General Practice - Dental"]
[10387,880569141,"Husam  Momari",null,null,"2726 4th Street West",null,"Lehigh Acres","FL",33971,"2726 4th Street West",null,"Lehigh Acres","FL",33971,"General Practice - Dental"]
[10388,452745708,"Aaron T. Boucher",null,null,"340 Lovell Street",null,"Ionia","MI",48846,"340 Lovell Street",null,"Ionia","MI",48846,"General Practice - Dental"]
[10389,650263950,"Renata  Cymer",null,null,"8752 Southwest 72nd Street",null,"Miami","FL",33173,"8752 Southwest 72nd Street",null,"Miami","FL",33173,"General Practice - Dental"]
[10390,200185918,"Denis  Monzin",null,null,"8640 State Road 70 East",null,"Bradenton","FL",34202,"8640 State Road 70 East",null,"Bradenton","FL",34202,"General Practice - Dental"]
[10391,331073368,"Fady I. Fakhoury",null,null,"800 4Th Ave",null,"Bonita Springs","FL",34135,"800 4Th Ave",null,"Bonita Springs","FL",34135,"General Practice - Dental"]
[10392,881261023,"Austin C. Johnson",null,null,"316 St. Roberts Blvd.",null,"St. Roberts","MO",65584,"316 St. Roberts Blvd.",null,"St. Roberts","MO",65584,"General Practice - Dental"]
[10393,863966488,"Alberto  Lopez De Castro Bolufer",null,null,"21202 Olean Blvd.",null,"Port Charlotte","FL",33952,"21202 Olean Blvd.",null,"Port Charlotte","FL",33952,"General Practice - Dental"]
[10394,831676491,"Manijeh J. D'Amelio",null,null,"2300 Pine Ridge Road",null,"Naples","FL",34109,"2300 Pine Ridge Road",null,"Naples","FL",34109,"General Practice - Dental"]
[10395,814485568,"Denis G. Bourguignon",null,null,"57 Main St",null,"Clermont","FL",34711,"57 Main St",null,"Clermont","FL",34711,"General Practice - Dental"]
[10396,871608215,"Juan C. Rodriguez",null,null,"25195 Chamber of Commerce Drive",null,"Bonita Springs","FL",34135,"25195 Chamber of Commerce Drive",null,"Bonita Springs","FL",34135,"General Practice - Dental"]
[10397,471470714,"Victoria Ann Rinando",null,null,"5659 Naples Blvd.",null,"Naples","FL",34109,"5659 Naples Blvd.",null,"Naples","FL",34109,"General Practice - Dental"]
[10398,510593792,"Heather Althea Adu Sarkodie",null,null,"14171 Metropolis Avenue",null,"Fort Myers","FL",33912,"14171 Metropolis Avenue",null,"Fort Myers","FL",33912,"Endodontics"]
[10399,204443600,"Cathy M. Taylor",null,null,"500 Northwest 43rd Street",null,"Gainesville","FL",32607,"500 Northwest 43rd Street",null,"Gainesville","FL",32607,"General Practice - Dental"]
[10400,274766199,"Scott T. Baur",null,null,"24820 Burnt Pine Drive",null,"Bonita Springs","FL",34134,"24820 Burnt Pine Drive",null,"Bonita Springs","FL",34134,"Endodontics"]
[10401,843076053,"Melissa  Marks Gustafson",null,null,"3010 Baucom Road",null,"Charlotte","NC",28269,"3010 Baucom Road",null,"Charlotte","NC",28269,"General Practice - Dental"]
[10402,200185918,"Francis Floriann Roque Maguire",null,null,"4009 Tampa Road",null,"Oldsmar","FL",34677,"4009 Tampa Road",null,"Oldsmar","FL",34677,"General Practice - Dental"]
[10403,451261244,"Matthew Adam Freedman",null,null,"3690 East Bay Drive",null,"Largo","FL",33771,"3690 East Bay Drive",null,"Largo","FL",33771,"Orthodontics"]
[10404,651061688,"Michele B. Laboda",null,null,"14361 Metropolis Avenue",null,"Fort Myers","FL",33912,"14361 Metropolis Avenue",null,"Fort Myers","FL",33912,"Orthodontics"]
[10405,472567790,"Benjamin Brodie Boyles",null,null,"700 Exposition Place",null,"Raleigh","NC",27615,"700 Exposition Place",null,"Raleigh","NC",27615,"General Practice - Dental"]
[10406,461604794,"Joseph  Whitesides",null,null,"2286 Tamiami Trail",null,"Port Charlotte","FL",33952,"2286 Tamiami Trail",null,"Port Charlotte","FL",33952,"Orthodontics"]
[10407,240554354,"Samuel N. Cowherd",null,null,"104 4th Street",null,"Bladenboro","NC",28320,"104 4th Street",null,"Bladenboro","NC",28320,"General Practice - Dental"]
[10408,455402141,"Vinita Teresa Folck",null,null,"272 Bendix Road",null,"Virginia Beach","VA",23452,"272 Bendix Road",null,"Virginia Beach","VA",23452,"General Practice - Dental"]
[10409,811106479,"Adam Stuart Bozeman",null,null,"308 Dawson Street",null,"Thomasville","GA",31799,"308 Dawson Street",null,"Thomasville","GA",31799,"General Practice - Dental"]
[10410,631195558,"John G. Rutland",null,null,"256 Blount Avenue",null,"Guntersville","AL",35976,"256 Blount Avenue",null,"Guntersville","AL",35976,"General Practice - Dental"]
[10411,311521695,"James H. Rumbarger",null,null,"540 Buchanan Street",null,"Sandusky","OH",44870,"540 Buchanan Street",null,"Sandusky","OH",44870,"General Practice - Dental"]
[10412,650468209,"Caryn Nicole Davis",null,null,"303 U.S. 301 Blvd.",null,"Bradenton","FL",34205,"303 U.S. 301 Blvd.",null,"Bradenton","FL",34205,"General Practice - Dental"]
[10413,650719035,"Meghann  Lussier",null,null,"1105 Southeast 47th Terrace",null,"Cape Coral","FL",33904,"1105 Southeast 47th Terrace",null,"Cape Coral","FL",33904,"Endodontics"]
[10414,371905967,"John M. Constantine",null,null,"520 East Church Street",null,"Orlando","FL",32801,"520 East Church Street",null,"Orlando","FL",32801,"General Practice - Dental"]
[10415,472030011,"Kim Hai Nguyen",null,null,"2415 Baldwin Mill Road",null,"Fallston","MD",21047,"2415 Baldwin Mill Road",null,"Fallston","MD",21047,"General Practice - Dental"]
[10416,450575215,"Karina D. Cintron",null,null,"580 East 49th Street",null,"Hialeah","FL",33013,"580 East 49th Street",null,"Hialeah","FL",33013,"General Practice - Dental"]
[10417,852869564,"Hunter  Bennett",null,null,"1658 Oaklawn Drive",null,"Prescott","AZ",86305,"1658 Oaklawn Drive",null,"Prescott","AZ",86305,"General Practice - Dental"]
[10418,274376571,"Robert J. Wrable",null,null,"856 West Plymouth Avenue",null,"Deland","FL",32720,"856 West Plymouth Avenue",null,"Deland","FL",32720,"General Practice - Dental"]
[10419,200514072,"Estelle D. Constable-Beresford",null,null,"2885 North Military Trail",null,"West Palm Beach","FL",33409,"2885 North Military Trail",null,"West Palm Beach","FL",33409,"General Practice - Dental"]
[10420,871870621,"Shannon Marie Juresich",null,null,"15830 Pines Blvd.",null,"Pembroke Pines","FL",33027,"15830 Pines Blvd.",null,"Pembroke Pines","FL",33027,"General Practice - Dental"]
[10421,200420542,"Adam E. Hill",null,null,"123 Little Spring Road",null,"Blowing Rock","NC",28605,"123 Little Spring Road",null,"Blowing Rock","NC",28605,"General Practice - Dental"]
[10422,873882828,"Chance Michael Dalton",null,null,"400 Rock Island Avenue",null,"Boyd","TX",76023,"400 Rock Island Avenue",null,"Boyd","TX",76023,"General Practice - Dental"]
[10423,884305980,"Michael  Strickler",null,null,"24 James Avenue",null,"Littlestown","PA",17340,"24 James Avenue",null,"Littlestown","PA",17340,"General Practice - Dental"]
[10424,650166221,"Jeffrey Walton Holzinger",null,null,"9200 Bonita Beach Road",null,"Bonita Springs","FL",34135,"9200 Bonita Beach Road",null,"Bonita Springs","FL",34135,"General Practice - Dental"]
[10425,872230791,"Duy  Nguyen",null,null,"422 Teague Trails",null,"Lady Lake","FL",32159,"422 Teague Trails",null,"Lady Lake","FL",32159,"General Practice - Dental"]
[10426,814086512,"Jeffrey A. Molloy",null,null,"14300 Gallant Fox Lane",null,"Bowie","MD",20715,"14300 Gallant Fox Lane",null,"Bowie","MD",20715,"General Practice - Dental"]
[10427,471134563,"Robert S. Ferrell",null,null,"313 East 22nd Avenue",null,"Gulf Shores","AL",36542,"313 East 22nd Avenue",null,"Gulf Shores","AL",36542,"General Practice - Dental"]
[10428,871203391,"Mary Pauline Hand",null,null,"12691 New Brittany Blvd.",null,"Fort Myers","FL",33907,"12691 New Brittany Blvd.",null,"Fort Myers","FL",33907,"General Practice - Dental"]
[10429,382216019,"Matthew Edward Plotnikiewicz",null,null,"2239 E Market St Ne",null,"Cadillac","MI",49601,"2239 E Market St Ne",null,"Cadillac","MI",49601,"General Practice - Dental"]
[10430,341864870,"Paul M. Bertolasio",null,null,"26 East Wilson Avenue",null,"Girard","OH",44420,"26 East Wilson Avenue",null,"Girard","OH",44420,"General Practice - Dental"]
[10431,474320430,"Debra A. Gong Choe",null,null,"2717 US Hwy. 70 East",null,"New Bern","NC",28560,"2717 US Hwy. 70 East",null,"New Bern","NC",28560,"General Practice - Dental"]
[10432,463279591,"Keya N. Brown",null,null,"1940 Tamiami Trail",null,"Port Charlotte","FL",33948,"1940 Tamiami Trail",null,"Port Charlotte","FL",33948,"General Practice - Dental"]
[10433,461990789,"Sean Patrick Carr",null,null,"90 Cypress Way East",null,"Naples","FL",34110,"90 Cypress Way East",null,"Naples","FL",34110,"General Practice - Dental"]
[10434,842507489,"Anthony John Gulde",null,null,"1159 Posner Blvd.",null,"Davenport","FL",33837,"1159 Posner Blvd.",null,"Davenport","FL",33837,"General Practice - Dental"]
[10435,650414633,"Miguel A. Castro",null,null,"4619 Tamiami Trail North",null,"Naples","FL",34103,"4619 Tamiami Trail North",null,"Naples","FL",34103,"General Practice - Dental"]
[10436,273438680,"Arthur C. Kote",null,null,"610 Smithview Drive",null,"Maryville","TN",37803,"610 Smithview Drive",null,"Maryville","TN",37803,"General Practice - Dental"]
[10437,200185918,"Josmar  Suarez",null,null,"20330 Grande Oak Shoppes Blvd.",null,"Estero","FL",33928,"20330 Grande Oak Shoppes Blvd.",null,"Estero","FL",33928,"General Practice - Dental"]
[10438,270860460,"Anne Elizabeth Green",null,null,"1525 Commercial Way",null,"Spring Hill","FL",34606,"1525 Commercial Way",null,"Spring Hill","FL",34606,"General Practice - Dental"]
[10439,200624092,"Brian M. Olitsky",null,null,"24840 South Tamiami Trail",null,"Bonita Springs","FL",34134,"24840 South Tamiami Trail",null,"Bonita Springs","FL",34134,"General Practice - Dental"]
[10440,871321803,"Maximus Sam Zand",null,null,"4696 Fruitville Road",null,"Sarasota","FL",34232,"4696 Fruitville Road",null,"Sarasota","FL",34232,"General Practice - Dental"]
[10441,43337834,"Jaclyn J. Sheehan",null,null,"380 Merrimack Street",null,"Methuen","MA",1844,"380 Merrimack Street",null,"Methuen","MA",1844,"General Practice - Dental"]
[10442,853246201,"Priyanka  Dutt",null,null,"5002 Airport Road Northwest",null,"Roanoke","VA",24012,"5002 Airport Road Northwest",null,"Roanoke","VA",24012,"General Practice - Dental"]
[10443,592931812,"Stephen H. Dunn",null,null,"7555 Southwest Hwy. 200",null,"Ocala","FL",34476,"7555 Southwest Hwy. 200",null,"Ocala","FL",34476,"General Practice - Dental"]
[10444,472576322,"Alexander Stuart Crain",null,null,"311 South Bickett Blvd.",null,"Louisburg","NC",27549,"311 South Bickett Blvd.",null,"Louisburg","NC",27549,"General Practice - Dental"]
[10445,721524302,"Ivette M. Fernandez",null,null,"502 East Olympia Avenue",null,"Punta Gorda","FL",33950,"502 East Olympia Avenue",null,"Punta Gorda","FL",33950,"General Practice - Dental"]
[10446,811852339,"Shamus Lavin Loftus",null,null,"451 East Altamonte Drive",null,"Altamonte Springs","FL",32701,"451 East Altamonte Drive",null,"Altamonte Springs","FL",32701,"General Practice - Dental"]
[10447,830697146,"Michelle Paes Felix",null,null,"3436 Cleveland Avenue",null,"Fort Myers","FL",33901,"3436 Cleveland Avenue",null,"Fort Myers","FL",33901,"General Practice - Dental"]
[10448,562277613,"Jason H. Shook",null,null,"1847 Highway 64 Business",null,"Hayesville","NC",28904,"1847 Highway 64 Business",null,"Hayesville","NC",28904,"General Practice - Dental"]
[10449,262533165,"Kayleen M. Quinn",null,null,"430 Southeast 17th Street",null,"Ocala","FL",34471,"430 Southeast 17th Street",null,"Ocala","FL",34471,"General Practice - Dental"]
[10450,260357554,"Ernest Gregory Jercinovic",null,null,"871 106th Avenue North",null,"Naples","FL",34108,"871 106th Avenue North",null,"Naples","FL",34108,"General Practice - Dental"]
[10451,883918478,"Huguette  Duteau-Salahuddin",null,null,"707 7th Street West",null,"Palmetto","FL",34221,"707 7th Street West",null,"Palmetto","FL",34221,"General Practice - Dental"]
[10452,352199344,"Nick Khanh Nguyen",null,null,"6B Liberty",null,"Aliso Viejo","CA",92656,"6B Liberty",null,"Aliso Viejo","CA",92656,"General Practice - Dental"]
[10453,200185918,"Kavin  Patel",null,null,"5170 Dave Robbins Way",null,"Lakeland","FL",33812,"5170 Dave Robbins Way",null,"Lakeland","FL",33812,"General Practice - Dental"]
[10454,202901107,"Carolina  Cortez",null,null,"4983 Golden Gate Pkwy.",null,"Naples","FL",34116,"4983 Golden Gate Pkwy.",null,"Naples","FL",34116,"General Practice - Dental"]
[10455,841768106,"Erin Suzanne Arroyo",null,null,"1535 Sunset Drive",null,"Coral Gables","FL",33143,"1535 Sunset Drive",null,"Coral Gables","FL",33143,"Pediatric Dentistry"]
[10456,272863793,"Richard Jason Rogers",null,null,"4405 Commons Drive East",null,"Destin","FL",32541,"4405 Commons Drive East",null,"Destin","FL",32541,"General Practice - Dental"]
[10457,270605966,"Michael Darrh Bryant",null,null,"1234 Timberlane Road",null,"Tallahassee","FL",32312,"1234 Timberlane Road",null,"Tallahassee","FL",32312,"General Practice - Dental"]
[10458,208887292,"Marianna  Zadov",null,null,"1905 Clint Moore Road",null,"Boca Raton","FL",33496,"1905 Clint Moore Road",null,"Boca Raton","FL",33496,"General Practice - Dental"]
[10459,452546142,"Edward  Moitoso",null,null,"3015 Bobcat Village Center Road",null,"North Port","FL",34288,"3015 Bobcat Village Center Road",null,"North Port","FL",34288,"General Practice - Dental"]
[10460,471706456,"Wendy  Hernandez - Rodriguez",null,null,"4873 Hwy. 90",null,"Milton","FL",32571,"4873 Hwy. 90",null,"Milton","FL",32571,"General Practice - Dental"]
[10461,161492202,"Michael C. Perna",null,null,"55 Oak Street",null,"Binghamton","NY",13905,"55 Oak Street",null,"Binghamton","NY",13905,"General Practice - Dental"]
[10462,455285158,"Kelly A. Horvath",null,null,"14160 Mundy Drive",null,"Noblesville","IN",46060,"14160 Mundy Drive",null,"Noblesville","IN",46060,"General Practice - Dental"]
[10463,223405463,"Thoa Thanh Nguyen",null,null,"5315 4th Avenue Circle East",null,"Bradenton","FL",34208,"5315 4th Avenue Circle East",null,"Bradenton","FL",34208,"General Practice - Dental"]
[10464,592125066,"James N. Boeller",null,null,"2121 South McCall Road",null,"Englewood","FL",34224,"2121 South McCall Road",null,"Englewood","FL",34224,"General Practice - Dental"]
[10465,473867390,"Michael J. Gostigian",null,null,"106 Hancock Bridge Pkwy.",null,"Cape Coral","FL",33991,"106 Hancock Bridge Pkwy.",null,"Cape Coral","FL",33991,"General Practice - Dental"]
[10466,200185918,"Adam  Coric",null,null,"305 Southwest Pine Island Road",null,"Cape Coral","FL",33991,"305 Southwest Pine Island Road",null,"Cape Coral","FL",33991,"General Practice - Dental"]
[10467,205807356,"Ricardo  Garcia",null,null,"10818 Northwest 58th Street",null,"Miami","FL",33178,"10818 Northwest 58th Street",null,"Miami","FL",33178,"General Practice - Dental"]
[10468,452066249,"Kara Griffin Moore",null,null,"242 West Clinton Street",null,"Gray","GA",31032,"242 West Clinton Street",null,"Gray","GA",31032,"General Practice - Dental"]
[10469,931605056,"Harjinder Singh Romana",null,null,"9092 Talbert Avenue",null,"Fountain Valley","CA",92708,"9092 Talbert Avenue",null,"Fountain Valley","CA",92708,"General Practice - Dental"]
[10470,556689002,"Steve  Schumm",null,null,"9092 Talbert Avenue",null,"Fountain Valley","CA",92708,"9092 Talbert Avenue",null,"Fountain Valley","CA",92708,"General Practice - Dental"]
[10471,200185918,"Zayna  Javeed",null,null,"11938 Curley Street",null,"San Antonio","FL",33576,"11938 Curley Street",null,"San Antonio","FL",33576,"General Practice - Dental"]
[10472,364956847,"Gerardo  Santiago",null,null,"3021 Airport Road North",null,"Naples","FL",34105,"3021 Airport Road North",null,"Naples","FL",34105,"Pediatric Dentistry"]
[10473,621809976,"Kevin Cecil Smith",null,null,"124 South Main Street",null,"Sparta","TN",38583,"124 South Main Street",null,"Sparta","TN",38583,"General Practice - Dental"]
[10474,852869564,"Bonita Endodontics",null,null,"8899 Timberwilde Drive",null,"Bonita Springs","FL",34135,"8899 Timberwilde Drive",null,"Bonita Springs","FL",34135,"Endodontics"]
[10475,922864203,"Erich G. Hirsch",null,null,"333 West 1st Street",null,"Elmhurst","IL",60126,"333 West 1st Street",null,"Elmhurst","IL",60126,"General Practice - Dental"]
[10476,830541772,"Mohammad  Okasha",null,null,"17661 Harpers Run",null,"Lutz","FL",33558,"17661 Harpers Run",null,"Lutz","FL",33558,"Surgery, Oral & Macillofacial"]
[10477,842032097,"Wayne Christopher Thomas",null,null,"1981 South State Street",null,"Dover","DE",19901,"1981 South State Street",null,"Dover","DE",19901,"General Practice - Dental"]
[10478,650791661,"David  Rua Perez",null,null,"10484 Stringfellow Road",null,"St. James City","FL",33956,"10484 Stringfellow Road",null,"St. James City","FL",33956,"General Practice - Dental"]
[10479,471722973,"Linda N. Barry",null,null,"401 Howell Avenue",null,"Brooksville","FL",34601,"401 Howell Avenue",null,"Brooksville","FL",34601,"General Practice - Dental"]
[10480,475294857,"Gordon Roswell Isbell",null,null,"3228 Rainbow Drive",null,"Rainbow City","AL",35906,"3228 Rainbow Drive",null,"Rainbow City","AL",35906,"General Practice - Dental"]
[10481,815205854,"Dana M. Busciglio Diaz",null,null,"4238 U.S. Hwy. 98 North",null,"Lakeland","FL",33809,"4238 U.S. Hwy. 98 North",null,"Lakeland","FL",33809,"Orthodontics"]
[10482,200123448,"Mauricio  Martinez",null,null,"4905 Chiquita Blvd.",null,"Cape Coral","FL",33914,"4905 Chiquita Blvd.",null,"Cape Coral","FL",33914,"General Practice - Dental"]
[10483,880569141,"Colby Shane Sowers",null,null,"2761 South McCall Road",null,"Englewood","FL",34224,"2761 South McCall Road",null,"Englewood","FL",34224,"Endodontics"]
[10484,200814382,"Ramon C. Padilla",null,null,"5048 Tamiami Trail",null,"Naples","FL",34103,"5048 Tamiami Trail",null,"Naples","FL",34103,"General Practice - Dental"]
[10485,474207965,"Matthew T. Navidomskis",null,null,"1454 Madison Avenue",null,"Immokalee","FL",34142,"1454 Madison Avenue",null,"Immokalee","FL",34142,"General Practice - Dental"]
[10486,474364117,"Melissa D. Kindell",null,null,"7505 Grand Lely Drive",null,"Naples","FL",34113,"7505 Grand Lely Drive",null,"Naples","FL",34113,"Pediatric Dentistry"]
[10487,200848847,"William C. Hine",null,null,"505 North Green Street",null,"Brownsburg","IN",46112,"505 North Green Street",null,"Brownsburg","IN",46112,"General Practice - Dental"]
[10488,474415843,"Ehsan  Asadi",null,null,"1301 North Congress Avenue",null,"Boynton Beach","FL",33426,"1301 North Congress Avenue",null,"Boynton Beach","FL",33426,"General Practice - Dental"]
[10489,813995548,"Nadya  Aldochine",null,null,"9717 Eagle Creek Center Blvd.",null,"Orlando","FL",32832,"9717 Eagle Creek Center Blvd.",null,"Orlando","FL",32832,"General Practice - Dental"]
[10490,454912183,"Julie Patterson Ledford",null,null,"36 Waldroup Road",null,"Hayesville","NC",28904,"36 Waldroup Road",null,"Hayesville","NC",28904,"General Practice - Dental"]
[10491,473354344,"Randall Ramon Rodriguez-Torres",null,null,"5231 University Pkwy.",null,"University Park","FL",34201,"5231 University Pkwy.",null,"University Park","FL",34201,"General Practice - Dental"]
[10492,871396870,"Nicholas Michael Zanakos",null,null,"2260 Southwest 8th Street",null,"Miami","FL",33135,"2260 Southwest 8th Street",null,"Miami","FL",33135,"General Practice - Dental"]
[10493,223877749,"Benson Joseph Ybanez",null,null,"50 Office Park Drive",null,"Jacksonville","NC",28546,"50 Office Park Drive",null,"Jacksonville","NC",28546,"General Practice - Dental"]
[10494,208036431,"Maria  Marranzini",null,null,"4401 South Flamingo Road",null,"Davie","FL",33330,"4401 South Flamingo Road",null,"Davie","FL",33330,"Pediatric Dentistry"]
[10495,592190088,"Jonathan T. Bloch",null,null,"13722 Southwest 84th Street",null,"Miami","FL",33183,"13722 Southwest 84th Street",null,"Miami","FL",33183,"General Practice - Dental"]
[10496,391861854,"Timothy M. Schramm",null,null,"138 Junction Road",null,"Madison","WI",53717,"138 Junction Road",null,"Madison","WI",53717,"General Practice - Dental"]
[10497,831322782,"Richard Eric Klein",null,null,"350 Mary Street",null,"Punta Gorda","FL",33950,"350 Mary Street",null,"Punta Gorda","FL",33950,"General Practice - Dental"]
[10498,752121202,"Dan C. Selz",null,null,"811 Halsell Street",null,"Bridgeport","TX",76426,"811 Halsell Street",null,"Bridgeport","TX",76426,"General Practice - Dental"]
[10499,184660321,"John Brian Haspel",null,null,"104 Fort Couch Road",null,"Pittsburgh","PA",15241,"104 Fort Couch Road",null,"Pittsburgh","PA",15241,"General Practice - Dental"]
[10500,460656817,"Kevin  Van",null,null,"7707 North University Drive",null,"Tamarac","FL",33321,"7707 North University Drive",null,"Tamarac","FL",33321,"General Practice - Dental"]
[10501,841684473,"Rosa A. Alvarez",null,null,"3762 West 12th Avenue",null,"Hialeah","FL",33012,"3762 West 12th Avenue",null,"Hialeah","FL",33012,"General Practice - Dental"]
[10502,200569591,"Wandana  Mistry",null,null,"11110 Medical Campus Road",null,"Hagerstown","MD",21742,"11110 Medical Campus Road",null,"Hagerstown","MD",21742,"General Practice - Dental"]
[10503,364844908,"Chelsea B. Fenton",null,null,"11725 Hillsborough Avenue",null,"Tampa","FL",33635,"11725 Hillsborough Avenue",null,"Tampa","FL",33635,"General Practice - Dental"]
[10504,815343111,"Joseph Randall Esterley",null,null,"5076 North U. S . Hwy. 41",null,"Apollo Beach","FL",33572,"5076 North U. S . Hwy. 41",null,"Apollo Beach","FL",33572,"General Practice - Dental"]
[10505,452762599,"Patricia Noel Schnur",null,null,"8312 US Hwy. 301 North",null,"Parrish","FL",34219,"8312 US Hwy. 301 North",null,"Parrish","FL",34219,"General Practice - Dental"]
[10506,260357554,"Phennatda  Polpornvitoon",null,null,"18000 Toledo Blade Blvd.",null,"Port Charlotte","FL",33948,"18000 Toledo Blade Blvd.",null,"Port Charlotte","FL",33948,"General Practice - Dental"]
[10507,30431414,"Jason C. Carter",null,null,"3612 Austin Davis Avenue",null,"Tallahassee","FL",32308,"3612 Austin Davis Avenue",null,"Tallahassee","FL",32308,"General Practice - Dental"]
[10508,522307329,"Sein  Moe",null,null,"1890 Southwest Health Pkwy.",null,"Naples","FL",34109,"1890 Southwest Health Pkwy.",null,"Naples","FL",34109,"Surgery, Oral & Macillofacial"]
[10509,274066714,"James R. McAnly",null,null,"694 South Willow Avenue",null,"Cookeville","TN",38501,"694 South Willow Avenue",null,"Cookeville","TN",38501,"General Practice - Dental"]
[10510,874041892,"Sage Dental - GP",null,null,"8004 Summerlin Lakes Drive",null,"Fort Myers","FL",33907,"8004 Summerlin Lakes Drive",null,"Fort Myers","FL",33907,"General Practice - Dental"]
[10511,650598048,"James Steven Begley",null,null,"29605 US Hwy. 19 North",null,"Clearwater","FL",33761,"29605 US Hwy. 19 North",null,"Clearwater","FL",33761,"General Practice - Dental"]
[10512,454843353,"Cameron Ryan Baker",null,null,"1225 North Locust Avenue",null,"Lawrenceburg","TN",38464,"1225 North Locust Avenue",null,"Lawrenceburg","TN",38464,"General Practice - Dental"]
[10513,223977446,"Andres J. Alvarez",null,null,"2451 Howell Market Lane",null,"Winter Park","FL",32792,"2451 Howell Market Lane",null,"Winter Park","FL",32792,"Pediatric Dentistry"]
[10514,471706456,"Nicoletta  Venturini",null,null,"22911 Lyden Drive",null,"Estero","FL",33928,"22911 Lyden Drive",null,"Estero","FL",33928,"General Practice - Dental"]
[10515,841973947,"Jose  Arcay",null,null,"2410 Northwest Federal Hwy.",null,"Stuart","FL",34994,"2410 Northwest Federal Hwy.",null,"Stuart","FL",34994,"General Practice - Dental"]
[10516,453659364,"Andrew Paul Minigh",null,null,"809 Mineral Road",null,"Glenville","WV",26351,"809 Mineral Road",null,"Glenville","WV",26351,"General Practice - Dental"]
[10517,593396251,"Tarak C. Patel",null,null,"2262 Dunn Avenue",null,"Jacksonville","FL",32218,"2262 Dunn Avenue",null,"Jacksonville","FL",32218,"General Practice - Dental"]
[10518,200654728,"Victor R. Vergara",null,null,"6150 Diamond Center Court",null,"Fort Myers","FL",33912,"6150 Diamond Center Court",null,"Fort Myers","FL",33912,"General Practice - Dental"]
[10519,43729915,"Patrick J. Carroll",null,null,"255 Phillippe Pkwy.",null,"Safety Harbor","FL",34695,"255 Phillippe Pkwy.",null,"Safety Harbor","FL",34695,"General Practice - Dental"]
[10520,200391063,"Joseph B. Lawson",null,null,"1502 Kings Hwy.",null,"Port Charlotte","FL",33980,"1502 Kings Hwy.",null,"Port Charlotte","FL",33980,"General Practice - Dental"]
[10521,204485135,"Randolph M. Richardson",null,null,"6120 Winkler Road",null,"Fort Myers","FL",33919,"6120 Winkler Road",null,"Fort Myers","FL",33919,"Surgery, Oral & Macillofacial"]
[10522,200185918,"Katelyn Michelle Radner",null,null,"11938 Curley Street",null,"San Antonio","FL",33576,"11938 Curley Street",null,"San Antonio","FL",33576,"General Practice - Dental"]
[10523,260357554,"Reyberto  Guzman Elias",null,null,"18070 South Tamiami Trail",null,"Fort Myers","FL",33908,"18070 South Tamiami Trail",null,"Fort Myers","FL",33908,"General Practice - Dental"]
[10524,461341176,"Gregory  Quattlebaum",null,null,"4953 Castello Drive",null,"Naples","FL",34103,"4953 Castello Drive",null,"Naples","FL",34103,"General Practice - Dental"]
[10525,823687073,"Francis M. Carmona",null,null,"11903 Southern Blvd.",null,"Royal Palm Beach","FL",33411,"11903 Southern Blvd.",null,"Royal Palm Beach","FL",33411,"Pediatric Dentistry"]
[10526,272386199,"Martin Dental",null,null,"1608 Ohm Avenue",null,"Eau Claire","WI",54701,"1608 Ohm Avenue",null,"Eau Claire","WI",54701,"Unknown"]
[10527,203700848,"Nicholas Joseph Marciano",null,null,"26711 Dublin Wood Circle",null,"Bonita Springs","FL",34135,"26711 Dublin Wood Circle",null,"Bonita Springs","FL",34135,"General Practice - Dental"]
[10528,113642528,"Mary  Valentine",null,null,"4753 West Chester Pike",null,"Newtown Square","PA",19073,"4753 West Chester Pike",null,"Newtown Square","PA",19073,"General Practice - Dental"]
[10529,825293050,"Jennifer M. Day",null,null,"11693 Boyette Road",null,"Riverview","FL",33569,"11693 Boyette Road",null,"Riverview","FL",33569,"General Practice - Dental"]
[10530,650719035,"Rosmery  Mendoza",null,null,"8372 Southwest 40th Street",null,"Miami","FL",33155,"8372 Southwest 40th Street",null,"Miami","FL",33155,"General Practice - Dental"]
[10531,650665173,"Alexander  Marrero-Plasencia",null,null,"9682 U.S. Hwy. 19 North",null,"Port Richey","FL",34668,"9682 U.S. Hwy. 19 North",null,"Port Richey","FL",34668,"General Practice - Dental"]
[10532,830697146,"Michelle Paes Felix",null,null,"3436 Cleveland Avenue",null,"Fort Myers","FL",33901,"3436 Cleveland Avenue",null,"Fort Myers","FL",33901,"General Practice - Dental"]
[10533,881600158,"Anson L. Rhodes",null,null,"6824 West Gulf To Lake Hwy.",null,"Crystal River","FL",34429,"6824 West Gulf To Lake Hwy.",null,"Crystal River","FL",34429,"General Practice - Dental"]
[10534,874041892,"Heydi  Perez Reyes",null,null,"8004 Summerlin Lakes Drive",null,"Fort Myers","FL",33907,"8004 Summerlin Lakes Drive",null,"Fort Myers","FL",33907,"General Practice - Dental"]
[10535,10925069,"Peter Hanson Gostout",null,null,"12691 McGregor Blvd.",null,"Ft. Myers","FL",33919,"12691 McGregor Blvd.",null,"Ft. Myers","FL",33919,"General Practice - Dental"]
[10536,815205854,"Dana M. Busciglio Diaz",null,null,"4238 U.S. Hwy. 98 North",null,"Lakeland","FL",33809,"4238 U.S. Hwy. 98 North",null,"Lakeland","FL",33809,"Orthodontics"]
[10537,650044366,"James R. Miller",null,null,"3850 South Osprey Avenue",null,"Sarasota","FL",34239,"3850 South Osprey Avenue",null,"Sarasota","FL",34239,"General Practice - Dental"]
[10538,825293050,"Jennifer M. Day",null,null,"11693 Boyette Road",null,"Riverview","FL",33569,"11693 Boyette Road",null,"Riverview","FL",33569,"General Practice - Dental"]
[10539,621874676,"Stephen P. Mayo",null,null,"193 Franklin Drive",null,"Blountville","TN",37617,"193 Franklin Drive",null,"Blountville","TN",37617,"General Practice - Dental"]
[10540,822044232,"Aixa  Guzman",null,null,"4701 Randolph Rd",null,"Boca Raton","FL",33486,"4701 Randolph Rd",null,"Boca Raton","FL",33486,"Periodontics"]
[10541,455377883,"William J. Shorack",null,null,"13432 Palm Beach Blvd.",null,"Fort Myers","FL",33905,"13432 Palm Beach Blvd.",null,"Fort Myers","FL",33905,"General Practice - Dental"]
[10542,371834875,"Loryn Rene Merrill",null,null,"2090 Flamingo Drive East",null,"Bartow","FL",33830,"2090 Flamingo Drive East",null,"Bartow","FL",33830,"General Practice - Dental"]
[10543,202287586,"Jennifer Baronis Hughes",null,null,"1879 Veterans Park Drive",null,"Naples","FL",34109,"1879 Veterans Park Drive",null,"Naples","FL",34109,"Pediatric Dentistry"]
[10544,593365515,"Raul  Pariente",null,null,"19 Tacoma Street",null,"Worcester","MA",1605,"19 Tacoma Street",null,"Worcester","MA",1605,"General Practice - Dental"]
[10545,453133668,"Roger Jacob Pint",null,null,"8951 Bonita Beach Road",null,"Bonita Springs","FL",34135,"8951 Bonita Beach Road",null,"Bonita Springs","FL",34135,"General Practice - Dental"]
[10546,810795495,"Stephen Kenneth Criscuolo",null,null,"1700 North University Drive",null,"Coral Springs","FL",33071,"1700 North University Drive",null,"Coral Springs","FL",33071,"Pediatric Dentistry"]
[10547,271276513,"Nicole M. Berger",null,null,"572 East McNab Road",null,"Pompano Beach","FL",33060,"572 East McNab Road",null,"Pompano Beach","FL",33060,"General Practice - Dental"]
[10548,273659928,"Melina R. Gable",null,null,"35 West Jackson Road",null,"Braselton","GA",30517,"35 West Jackson Road",null,"Braselton","GA",30517,"General Practice - Dental"]
[10549,593365515,"Mona  Javeed",null,null,"23036 State Road 54",null,"Lutz","FL",33549,"23036 State Road 54",null,"Lutz","FL",33549,"General Practice - Dental"]
[10550,900868238,"Kevin P. Hall",null,null,"4955 Castello Drive",null,"Naples","FL",34103,"4955 Castello Drive",null,"Naples","FL",34103,"Surgery, Oral & Macillofacial"]
[10551,262926827,"Erin M. Taylor",null,null,"3872 West Tamiami Trail",null,"Port Charlotte","FL",33952,"3872 West Tamiami Trail",null,"Port Charlotte","FL",33952,"Pediatric Dentistry"]
[10552,882686225,"Faryal  Hussain",null,null,"6871 Daniels Pkwy.",null,"Fort Myers","FL",33912,"6871 Daniels Pkwy.",null,"Fort Myers","FL",33912,"General Practice - Dental"]
[10553,203195707,"Heath R. Wallace",null,null,"13160 Main Street",null,"Weston","OH",43569,"13160 Main Street",null,"Weston","OH",43569,"General Practice - Dental"]
[10554,475388620,"Delia  Fernandez-Garner",null,null,"6006 Trotwood Avenue",null,"Columbia","TN",38401,"6006 Trotwood Avenue",null,"Columbia","TN",38401,"General Practice - Dental"]
[10555,650719035,"Robert Alan Brody",null,null,"2505 South Federal Hwy.",null,"Fort Pierce","FL",34982,"2505 South Federal Hwy.",null,"Fort Pierce","FL",34982,"General Practice - Dental"]
[10556,593538280,"Maria Louise Linden",null,null,"1715 Cape Coral Pkwy. West",null,"Cape Coral","FL",33914,"1715 Cape Coral Pkwy. West",null,"Cape Coral","FL",33914,"General Practice - Dental"]
[10557,650019957,"Robert S. Blitman",null,null,"8430 West Broward Blvd.",null,"Plantation","FL",33324,"8430 West Broward Blvd.",null,"Plantation","FL",33324,"General Practice - Dental"]
[10558,852433951,"Kenninthon  Munoz",null,null,"10600 Tamiami Trail North",null,"Naples","FL",34108,"10600 Tamiami Trail North",null,"Naples","FL",34108,"General Practice - Dental"]
[10559,710598891,"John M. MacHen",null,null,"1567 North Eastman Road",null,"Kingsport","TN",37664,"1567 North Eastman Road",null,"Kingsport","TN",37664,"General Practice - Dental"]
[10560,621809976,"Forrest Ray Driver",null,null,"124 South Main Street",null,"Sparta","TN",38583,"124 South Main Street",null,"Sparta","TN",38583,"General Practice - Dental"]
[10561,851947454,"Eddy Romero Matos",null,null,"4329 Cleveland Avenue",null,"Fort Myers","FL",33901,"4329 Cleveland Avenue",null,"Fort Myers","FL",33901,"General Practice - Dental"]
[10562,863356971,"Macy Malcom Copelan",null,null,"179 Garrett Way Northwest",null,"Milledgeville","GA",31061,"179 Garrett Way Northwest",null,"Milledgeville","GA",31061,"General Practice - Dental"]
[10563,200185918,"Mavi  Cruz",null,null,"1405 South Twenty-Fifth Street",null,"Fort Pierce","FL",34947,"1405 South Twenty-Fifth Street",null,"Fort Pierce","FL",34947,"General Practice - Dental"]
[10564,521612755,"Craig L. Snyder",null,null,"300 East Joppa Road",null,"Towson","MD",21286,"300 East Joppa Road",null,"Towson","MD",21286,"General Practice - Dental"]
[10565,800542370,"Henry  Acosta",null,null,"295 Berkley Road",null,"Auburndale","FL",33823,"295 Berkley Road",null,"Auburndale","FL",33823,"General Practice - Dental"]
[10566,822910605,"Johnny Peralta Lee",null,null,"6600 Cow Pen Road",null,"Miami Lakes","FL",33014,"6600 Cow Pen Road",null,"Miami Lakes","FL",33014,"General Practice - Dental"]
[10567,471706456,"Kristen Nicole Presswood",null,null,"22911 Lyden Drive",null,"Estero","FL",33928,"22911 Lyden Drive",null,"Estero","FL",33928,"General Practice - Dental"]
[10568,651100498,"Daniel Webster McCawley",null,null,"1625 East Las Olas Blvd.",null,"Fort Lauderdale","FL",33301,"1625 East Las Olas Blvd.",null,"Fort Lauderdale","FL",33301,"General Practice - Dental"]
[10569,364324362,"William J. Bennett",null,null,"10719 West 159th Street",null,"Orland Park","IL",60467,"10719 West 159th Street",null,"Orland Park","IL",60467,"General Practice - Dental"]
[10570,822722724,"Steven K. Calhoun",null,null,"499 East Central Pkwy.",null,"Altamonte Springs","FL",32701,"499 East Central Pkwy.",null,"Altamonte Springs","FL",32701,"General Practice - Dental"]
[10571,464208747,"Sonya Lambert Wintzell",null,null,"8315 Whitesburg Drive South",null,"Huntsville","AL",35802,"8315 Whitesburg Drive South",null,"Huntsville","AL",35802,"General Practice - Dental"]
[10572,261147142,"Bradley M. Ginzler",null,null,"4705 26th Street West",null,"Bradenton","FL",34207,"4705 26th Street West",null,"Bradenton","FL",34207,"Endodontics"]
[10573,593592669,"Donald J. Alexander",null,null,"6802 St. Augustine Road",null,"Jacksonville","FL",32217,"6802 St. Augustine Road",null,"Jacksonville","FL",32217,"General Practice - Dental"]
[10574,272386199,"Christopher Luke Viall",null,null,"1608 Ohm Avenue",null,"Eau Claire","WI",54701,"1608 Ohm Avenue",null,"Eau Claire","WI",54701,"General Practice - Dental"]
[10575,453246200,"Joanna S. Dover",null,null,"3731 Forest Drive",null,"Columbia","SC",29204,"3731 Forest Drive",null,"Columbia","SC",29204,"General Practice - Dental"]
[10576,454215023,"Richard Bruce Miller",null,null,"3535 Randolph Road",null,"Charlotte","NC",28211,"3535 Randolph Road",null,"Charlotte","NC",28211,"General Practice - Dental"]
[10577,815382754,"Marc A. Mingel",null,null,"3015 Bayview Drive",null,"Fort Lauderdale","FL",33306,"3015 Bayview Drive",null,"Fort Lauderdale","FL",33306,"General Practice - Dental"]
[10578,812471327,"Sulaiman  Alshaar",null,null,"12964 Narcoossee Road",null,"Orlando","FL",32832,"12964 Narcoossee Road",null,"Orlando","FL",32832,"Surgery, Oral & Macillofacial"]
[10579,650044366,"Sherwood Lancewell West",null,null,"3850 South Osprey Avenue",null,"Sarasota","FL",34239,"3850 South Osprey Avenue",null,"Sarasota","FL",34239,"General Practice - Dental"]
[10580,863679157,"Tushar Pradip Bulsara",null,null,"119 Natural Springs Drive",null,"Murphy","NC",28906,"119 Natural Springs Drive",null,"Murphy","NC",28906,"General Practice - Dental"]
[10581,844919448,"St. Christopher Augustus Gordon",null,null,"2701 Northeast 14th Street Causeway",null,"Pompano Beach","FL",33062,"2701 Northeast 14th Street Causeway",null,"Pompano Beach","FL",33062,"General Practice - Dental"]
[10582,561950628,"David S. McGuire",null,null,"45 King Street",null,"Sylva","NC",28779,"45 King Street",null,"Sylva","NC",28779,"General Practice - Dental"]
[10583,842307892,"Sean Theron Williams",null,null,"5336 10th Street",null,"Malone","FL",32445,"5336 10th Street",null,"Malone","FL",32445,"General Practice - Dental"]
[10584,593262688,"Charles  Curley",null,null,"609 Maitland Avenue",null,"Altamonte Springs","FL",32701,"609 Maitland Avenue",null,"Altamonte Springs","FL",32701,"General Practice - Dental"]
[10585,871128765,"Sarmad Mazin Alyas",null,null,"37641 Pembroke Avenue",null,"Livonia","MI",48152,"37641 Pembroke Avenue",null,"Livonia","MI",48152,"Endodontics"]
[10586,853668217,"Kelley D. Brummett",null,null,"65 Oak Hill Blvd.",null,"Newnan","GA",30265,"65 Oak Hill Blvd.",null,"Newnan","GA",30265,"General Practice - Dental"]
[10587,200185918,"Elizabeth  Marte",null,null,"12780 Waterford Lakes Pkwy.",null,"Orlando","FL",32828,"12780 Waterford Lakes Pkwy.",null,"Orlando","FL",32828,"General Practice - Dental"]
[10588,874306976,"Reem  Jaber",null,null,"3809 Lake Emma Road",null,"Lake Mary","FL",32746,"3809 Lake Emma Road",null,"Lake Mary","FL",32746,"General Practice - Dental"]
[10589,833678982,"Kelsey  Archer",null,null,"7430 Immokalee Road",null,"Naples","FL",34119,"7430 Immokalee Road",null,"Naples","FL",34119,"General Practice - Dental"]
[10590,475455438,"Jordan Tyler Johnson",null,null,"59 Haywood Park Drive",null,"Clyde","NC",28721,"59 Haywood Park Drive",null,"Clyde","NC",28721,"General Practice - Dental"]
[10591,200185918,"Lauren  Suehr",null,null,"1585 Grand Venture Drive",null,"North Port","FL",34286,"1585 Grand Venture Drive",null,"North Port","FL",34286,"General Practice - Dental"]
[10592,251609644,"Janel  Marcelino",null,null,"2593 Wexford Bayne Road",null,"Sewickley","PA",15143,"2593 Wexford Bayne Road",null,"Sewickley","PA",15143,"Endodontics"]
[10593,320582571,"Michael F. McILwain",null,null,"4710 North Habana Avenue",null,"Tampa","FL",33614,"4710 North Habana Avenue",null,"Tampa","FL",33614,"General Practice - Dental"]
[10594,452630801,"Pablo L. Silva",null,null,"1227 Del Prado Blvd. South",null,"Cape Coral","FL",33990,"1227 Del Prado Blvd. South",null,"Cape Coral","FL",33990,"General Practice - Dental"]
[10595,852869564,"Nathan Cannon Dewsnup",null,null,"8899 Timberwilde Drive",null,"Bonita Springs","FL",34135,"8899 Timberwilde Drive",null,"Bonita Springs","FL",34135,"Endodontics"]
[10596,474415843,"Ehsan  Asadi",null,null,"1301 North Congress Avenue",null,"Boynton Beach","FL",33426,"1301 North Congress Avenue",null,"Boynton Beach","FL",33426,"General Practice - Dental"]
[10597,529698099,"Paul A. Shepherd",null,null,"125 Eagles Pointe Pkwy.",null,"Stockbridge","GA",30281,"125 Eagles Pointe Pkwy.",null,"Stockbridge","GA",30281,"Endodontics"]
[10598,431661946,"Vincent Nicholas Riggio",null,null,"2000 Swift Avenue",null,"Kansas City","MO",64116,"2000 Swift Avenue",null,"Kansas City","MO",64116,"General Practice - Dental"]
[10599,263902020,"John  Barrett",null,null,"80 Shunpike Road",null,"Cromwell","CT",6416,"80 Shunpike Road",null,"Cromwell","CT",6416,"Endodontics"]
[10600,843224068,"Brian  Musetti",null,null,"1745 South Easton Road",null,"Doylestown","PA",18901,"1745 South Easton Road",null,"Doylestown","PA",18901,"General Practice - Dental"]
[10601,921221391,"Varduhi  Danielyan",null,null,"75 San Marco Avenue",null,"St. Augustine","FL",32084,"75 San Marco Avenue",null,"St. Augustine","FL",32084,"General Practice - Dental"]
[10602,453735299,"Jason D. Barlock",null,null,"7091 College Pkwy.",null,"Fort Myers","FL",33907,"7091 College Pkwy.",null,"Fort Myers","FL",33907,"Orthodontics"]
[10603,843894580,"Edward Anthony Cronauer",null,null,"349 North West 16th Avenue",null,"Clewiston","FL",33440,"349 North West 16th Avenue",null,"Clewiston","FL",33440,"Orthodontics"]
[10604,462066718,"Maura E. Slack",null,null,"13195 Metro Pkwy.",null,"Ft. Myers","FL",33966,"13195 Metro Pkwy.",null,"Ft. Myers","FL",33966,"Orthodontics"]
[10605,452475239,"Lindsay M. Davis",null,null,"3450 Cobb Pkwy. Northwest",null,"Acworth","GA",30101,"3450 Cobb Pkwy. Northwest",null,"Acworth","GA",30101,"Orthodontics"]
[10606,453143541,"Alexander  Cardounel",null,null,"1715 Cape Coral Parkway West",null,"Cape Coral","FL",33914,"1715 Cape Coral Parkway West",null,"Cape Coral","FL",33914,"Orthodontics"]
[10607,454958919,"Joseph  Whitesides",null,null,"2286 Tamiami Trail",null,"Port Charlotte","FL",33952,"2286 Tamiami Trail",null,"Port Charlotte","FL",33952,"Orthodontics"]
[10608,471100536,"Matthew Steven Ahrens",null,null,"4740 Cleveland Heights Blvd.",null,"Lakeland","FL",33813,"4740 Cleveland Heights Blvd.",null,"Lakeland","FL",33813,"Orthodontics"]
[10609,205940995,"Kendra Covington Pratt",null,null,"15260 Hwy. 105 West",null,"Montgomery","TX",77356,"15260 Hwy. 105 West",null,"Montgomery","TX",77356,"Orthodontics"]
[10610,208640677,"Michael A. Sutton",null,null,"8208 Tourist Center Drive",null,"University Park","FL",34201,"8208 Tourist Center Drive",null,"University Park","FL",34201,"Orthodontics"]
[10611,562187187,"Clement  Monroe",null,null,"12 Regional Drive",null,"Pinehurst","NC",28374,"12 Regional Drive",null,"Pinehurst","NC",28374,"General Practice - Dental"]
[10612,202481301,"James Steve Wilkerson",null,null,"302 Westside Drive",null,"Douglas","GA",31533,"302 Westside Drive",null,"Douglas","GA",31533,"General Practice - Dental"]
[10613,650847869,"Maikel  Segui",null,null,"12333 Northwest 18th Street",null,"Pembroke Pines","FL",33026,"12333 Northwest 18th Street",null,"Pembroke Pines","FL",33026,"Surgery, Oral & Macillofacial"]
[10614,820812427,"Daniel Abraham Shimansky",null,null,"1386 John Sims Pkwy. East",null,"Niceville","FL",32578,"1386 John Sims Pkwy. East",null,"Niceville","FL",32578,"General Practice - Dental"]
[10615,273472761,"Murad F. Rashid",null,null,"250 North Belcher Road",null,"Clearwater","FL",33765,"250 North Belcher Road",null,"Clearwater","FL",33765,"General Practice - Dental"]
[10616,862808671,"Maria T. Locher-Claus",null,null,"11950 County Road 101",null,"The Villages","FL",32162,"11950 County Road 101",null,"The Villages","FL",32162,"Endodontics"]
[10617,462600552,"Casey Bryant Bargas",null,null,"2640 Country Club Road",null,"Lake Charles","LA",70605,"2640 Country Club Road",null,"Lake Charles","LA",70605,"Endodontics"]
[10618,592195329,"Suncoast Dental Center",null,null,"13040 Livingston Road",null,"Naples","FL",34105,"13040 Livingston Road",null,"Naples","FL",34105,"Unknown"]
[10619,760816659,"Pooria F. Abed",null,null,"350 West FM 544",null,"Murphy","TX",75094,"350 West FM 544",null,"Murphy","TX",75094,"Periodontics"]
[10620,475307089,"Jose L. Avila",null,null,"14740 Southwest 26th Street",null,"Miami","FL",33185,"14740 Southwest 26th Street",null,"Miami","FL",33185,"General Practice - Dental"]
[10621,842734239,"Nishtha  Chauhan",null,null,"1215 Johnson Avenue",null,"Bridgeport","WV",26330,"1215 Johnson Avenue",null,"Bridgeport","WV",26330,"General Practice - Dental"]
[10622,843026378,"Edward Dwight Kosakoski",null,null,"800 United Street",null,"Key West","FL",33040,"800 United Street",null,"Key West","FL",33040,"Endodontics"]
[10623,862855364,"Garrett S. Dennis",null,null,"451 East Altamonte Drive",null,"Altamonte Springs","FL",32701,"451 East Altamonte Drive",null,"Altamonte Springs","FL",32701,"General Practice - Dental"]
[10624,650379054,"Manuel  Capiro",null,null,"16430 Northwest 59th Avenue",null,"Miami Lakes","FL",33014,"16430 Northwest 59th Avenue",null,"Miami Lakes","FL",33014,"General Practice - Dental"]
[10625,452571510,"Esther P. Pedersen",null,null,"10925 Antioch Road",null,"Overland Park","KS",66210,"10925 Antioch Road",null,"Overland Park","KS",66210,"General Practice - Dental"]
[10626,650129699,"Elisa  Suarez",null,null,"15355 Sherman Way",null,"Hialeah","FL",33013,"15355 Sherman Way",null,"Hialeah","FL",33013,"General Practice - Dental"]
[10627,550801238,"Michael E. DeGrood",null,null,"190 North Hwy. 17-92",null,"Debary","FL",32713,"190 North Hwy. 17-92",null,"Debary","FL",32713,"Endodontics"]
[10628,260607734,"William  Dinse",null,null,"1390 9th Street North",null,"Naples","FL",34102,"1390 9th Street North",null,"Naples","FL",34102,"Prosthodontics"]
[10629,811476428,"Alexandra K.J. Haase",null,null,"7398 Rivers Avenue",null,"Charleston","SC",29406,"7398 Rivers Avenue",null,"Charleston","SC",29406,"General Practice - Dental"]
[10630,562200611,"Paul Robert Barrett",null,null,"1410 Front Street",null,"Reidsville","NC",27320,"1410 Front Street",null,"Reidsville","NC",27320,"General Practice - Dental"]
[10631,830541772,"Edward Dwight Kosakoski",null,null,"800 United Street",null,"Key West","FL",33040,"800 United Street",null,"Key West","FL",33040,"Endodontics"]
[10632,854018908,"Lauren E. Widmer",null,null,"2236 Logan Blvd. North",null,"Naples","FL",34119,"2236 Logan Blvd. North",null,"Naples","FL",34119,"Orthodontics"]
[10633,680659202,"Adam  Squicquero",null,null,"10 Pinckney Colony Road",null,"Bluffton","SC",29909,"10 Pinckney Colony Road",null,"Bluffton","SC",29909,"General Practice - Dental"]
[10634,814841918,"David R. Montgomery",null,null,"11110 Fort Street",null,"Omaha","NE",68164,"11110 Fort Street",null,"Omaha","NE",68164,"Surgery, Oral & Macillofacial"]
[10635,462097739,"Jonathan L. McCartney",null,null,"2569 North Toledo Blade Blvd.",null,"North Port","FL",34289,"2569 North Toledo Blade Blvd.",null,"North Port","FL",34289,"General Practice - Dental"]
[10636,201247127,"Vincent Peter Cardinale",null,null,"1019 Crosspointe Drive",null,"Naples","FL",34110,"1019 Crosspointe Drive",null,"Naples","FL",34110,"General Practice - Dental"]
[10637,824219664,"Nathan W. Nemecek",null,null,"13 St. Johns Medical Park Drive",null,"St. Augustine","FL",32086,"13 St. Johns Medical Park Drive",null,"St. Augustine","FL",32086,"General Practice - Dental"]
[10638,412257773,"Kelly A. Lang",null,null,"40 Central Avenue",null,"Osseo","MN",55369,"40 Central Avenue",null,"Osseo","MN",55369,"General Practice - Dental"]
[10639,274460344,"Norma Jeanne Appelbaun",null,null,"1519 Southeast 47th Street",null,"Cape Coral","FL",33904,"1519 Southeast 47th Street",null,"Cape Coral","FL",33904,"General Practice - Dental"]
[10640,922365504,"Shawn  Kinney",null,null,"522 Finnie Flat Road",null,"Camp Verde","AZ",86322,"522 Finnie Flat Road",null,"Camp Verde","AZ",86322,"General Practice - Dental"]
[10641,832520749,"Mini  Majumdar",null,null,"1415 Governors Square Blvd.",null,"Tallahassee","FL",32301,"1415 Governors Square Blvd.",null,"Tallahassee","FL",32301,"General Practice - Dental"]
[10642,824229058,"Maykel A. Sierra",null,null,"5761 U.S. Hwy. 17/92",null,"Casselberry","FL",32707,"5761 U.S. Hwy. 17/92",null,"Casselberry","FL",32707,"General Practice - Dental"]
[10643,593647382,"S. Edward Hopwood",null,null,"2461 Enterprise Road",null,"Clearwater","FL",33763,"2461 Enterprise Road",null,"Clearwater","FL",33763,"General Practice - Dental"]
[10644,593580134,"Rodney Lee Anthony",null,null,"1550 South Highland Avenue",null,"Clearwater","FL",33756,"1550 South Highland Avenue",null,"Clearwater","FL",33756,"Endodontics"]
[10645,834369457,"Richard G. Handal",null,null,"8773 Boynton Beach Blvd.",null,"Boynton Beach","FL",33472,"8773 Boynton Beach Blvd.",null,"Boynton Beach","FL",33472,"General Practice - Dental"]
[10646,814259231,"Nalini Alok Kataria",null,null,"9410 Willeo Road",null,"Roswell","GA",30075,"9410 Willeo Road",null,"Roswell","GA",30075,"General Practice - Dental"]
[10647,843026378,"Amelia C. Crawford",null,null,"1720 Tamiami Trail",null,"Port Charlotte","FL",33948,"1720 Tamiami Trail",null,"Port Charlotte","FL",33948,"General Practice - Dental"]
[10648,863817557,"Jon A. Gesicki",null,null,"2705 Tamiami Trial",null,"Punta Gorda","FL",33950,"2705 Tamiami Trial",null,"Punta Gorda","FL",33950,"General Practice - Dental"]
[10649,911845971,"Jacqueline Nichole Sanders",null,null,"412 Bowes Drive",null,"Fircrest","WA",98466,"412 Bowes Drive",null,"Fircrest","WA",98466,"General Practice - Dental"]
[10650,830981219,"Marcelle Rene Gharibeh",null,null,"12 West 48th Street",null,"New York","NY",10036,"12 West 48th Street",null,"New York","NY",10036,"General Practice - Dental"]
[10651,113826875,"Devki A. Adi",null,null,"13650 Fiddlesticks Blvd.",null,"Fort Myers","FL",33912,"13650 Fiddlesticks Blvd.",null,"Fort Myers","FL",33912,"General Practice - Dental"]
[10652,832350105,"Susan  Putthoff",null,null,"710 Hill Country Drive",null,"Kerrville","TX",78028,"710 Hill Country Drive",null,"Kerrville","TX",78028,"General Practice - Dental"]
[10653,651061688,"Rosalie  Brao",null,null,"21740 South Tamiami Trail",null,"Estero","FL",33928,"21740 South Tamiami Trail",null,"Estero","FL",33928,"Orthodontics"]
[10654,412257773,"Bradley Christopher Morrison",null,null,"6601 Lyndale Avenue South",null,"Richfield","MN",55423,"6601 Lyndale Avenue South",null,"Richfield","MN",55423,"Endodontics"]
[10655,651089245,"Joseph M. Homoky",null,null,"2785 Tamiami Trail",null,"Port Charlotte","FL",33952,"2785 Tamiami Trail",null,"Port Charlotte","FL",33952,"General Practice - Dental"]
[10656,593278342,"Gary Wayne Banfield",null,null,"5347 Southwest 91st Terrace",null,"Gainesville","FL",32608,"5347 Southwest 91st Terrace",null,"Gainesville","FL",32608,"General Practice - Dental"]
[10657,203941104,"Albert  Ruiz",null,null,"529 US Hwy. 27 South",null,"Sebring","FL",33870,"529 US Hwy. 27 South",null,"Sebring","FL",33870,"General Practice - Dental"]
[10658,522247632,"Lucinda S. Keller",null,null,"1430 Solomons Island Road",null,"Huntingtown","MD",20639,"1430 Solomons Island Road",null,"Huntingtown","MD",20639,"General Practice - Dental"]
[10659,453960673,"Charles E. Mardis",null,null,"55 South Miller Road",null,"Fairlawn","OH",44333,"55 South Miller Road",null,"Fairlawn","OH",44333,"General Practice - Dental"]
[10660,882686225,"Aubrie Joy Zuiderveen",null,null,"5037 South Cleveland Avenue",null,"Fort Myers","FL",33907,"5037 South Cleveland Avenue",null,"Fort Myers","FL",33907,"General Practice - Dental"]
[10661,882696548,"Kelly  Chong",null,null,"2511 South Orange Avenue",null,"Orlando","FL",32806,"2511 South Orange Avenue",null,"Orlando","FL",32806,"General Practice - Dental"]
[10662,820745503,"Sheri  McCormack",null,null,"350 North Cox Street",null,"Asheboro","NC",27203,"350 North Cox Street",null,"Asheboro","NC",27203,"General Practice - Dental"]
[10663,611177202,"Deborah A. Shoemaker",null,null,"2310 Allison Lane",null,"Jeffersonville","IN",47130,"2310 Allison Lane",null,"Jeffersonville","IN",47130,"General Practice - Dental"]
[10664,841986526,"Matthew A. Figueroa",null,null,"10156 West Indiantown Road",null,"Jupiter","FL",33478,"10156 West Indiantown Road",null,"Jupiter","FL",33478,"General Practice - Dental"]
[10665,650855487,"Timothy Clayton Mercer",null,null,"5664 Bee Ridge Road",null,"Sarasota","FL",34233,"5664 Bee Ridge Road",null,"Sarasota","FL",34233,"General Practice - Dental"]
[10666,873539591,"Juan G. Lopez",null,null,"5531 North University Drive",null,"Coral Springs","FL",33067,"5531 North University Drive",null,"Coral Springs","FL",33067,"Surgery, Oral & Macillofacial"]
[10667,271370820,"S Aaron Aaron Scheps",null,null,"1111 North Pkwy. Frontage Road",null,"Lakeland","FL",33803,"1111 North Pkwy. Frontage Road",null,"Lakeland","FL",33803,"Pediatric Dentistry"]
[10668,474829680,"Zaileen  Juma",null,null,"10127 West Oakland Park Blvd.",null,"Sunrise","FL",33351,"10127 West Oakland Park Blvd.",null,"Sunrise","FL",33351,"General Practice - Dental"]
[10669,472415560,"Kristain Jerae Coke",null,null,"7666 Highway 72 West",null,"Madison","AL",35758,"7666 Highway 72 West",null,"Madison","AL",35758,"General Practice - Dental"]
[10670,832017999,"Fady George Farid",null,null,"416 West Jackson Street",null,"Cookeville","TN",38501,"416 West Jackson Street",null,"Cookeville","TN",38501,"General Practice - Dental"]
[10671,800186528,"Neysi  Hernandez",null,null,"925 Northeast 30 Terrace",null,"Homestead","FL",33033,"925 Northeast 30 Terrace",null,"Homestead","FL",33033,"General Practice - Dental"]
[10672,871396870,"Elena  Petrova",null,null,"3103 Fruitville Road",null,"Sarasota","FL",34237,"3103 Fruitville Road",null,"Sarasota","FL",34237,"Pediatric Dentistry"]
[10673,383001039,"George Gary Gochanour",null,null,"3108 Baker Road",null,"Dexter","MI",48130,"3108 Baker Road",null,"Dexter","MI",48130,"General Practice - Dental"]
[10674,844624975,"Jose Javier Alvarez",null,null,"3250 Bonita Beach Road",null,"Bonita Springs","FL",34134,"3250 Bonita Beach Road",null,"Bonita Springs","FL",34134,"General Practice - Dental"]
[10675,200185918,"Mark Chris Burne",null,null,"2787 Sycamore Street",null,"North Port","FL",34289,"2787 Sycamore Street",null,"North Port","FL",34289,"Surgery, Oral & Macillofacial"]
[10676,882317180,"Alissa Nicole Dragstedt",null,null,"231 Northwest 137th Drive",null,"Jonesville","FL",32669,"231 Northwest 137th Drive",null,"Jonesville","FL",32669,"Pediatric Dentistry"]
[10677,200185918,"Ralph Darrel Montalvo",null,null,"2807 Capital Medical Blvd.",null,"Tallahassee","FL",32308,"2807 Capital Medical Blvd.",null,"Tallahassee","FL",32308,"General Practice - Dental"]
[10678,880569141,"Ross Tyler Freeman",null,null,"2761 South McCall Road",null,"Englewood","FL",34224,"2761 South McCall Road",null,"Englewood","FL",34224,"Surgery, Oral & Macillofacial"]
[10679,475147796,"Dianelis  Blanco",null,null,"27400 Riverview Center Blvd.",null,"Bonita Springs","FL",34134,"27400 Riverview Center Blvd.",null,"Bonita Springs","FL",34134,"General Practice - Dental"]
[10680,262313162,"Parnaz  Aurasteh",null,null,"10805 Paramount Blvd.",null,"Downey","CA",90241,"10805 Paramount Blvd.",null,"Downey","CA",90241,"General Practice - Dental"]
[10681,900102639,"Shelly Daley King",null,null,"4901 Palm Beach Blvd.",null,"Fort Myers","FL",33905,"4901 Palm Beach Blvd.",null,"Fort Myers","FL",33905,"General Practice - Dental"]
[10682,611616864,"Robert B. Lestage",null,null,"509 Bon Ami Street",null,"Deridder","LA",70634,"509 Bon Ami Street",null,"Deridder","LA",70634,"General Practice - Dental"]
[10683,273710762,"Amardeep D. Singh",null,null,"3112 West Kennedy Blvd.",null,"Tampa","FL",33609,"3112 West Kennedy Blvd.",null,"Tampa","FL",33609,"General Practice - Dental"]
[10684,474456025,"Wesley Michael Frame",null,null,"1015 South A Street",null,"Richmond","IN",47374,"1015 South A Street",null,"Richmond","IN",47374,"General Practice - Dental"]
[10685,203092911,"William E. Chen",null,null,"2190 US Hwy 27 North",null,"Sebring","FL",33870,"2190 US Hwy 27 North",null,"Sebring","FL",33870,"General Practice - Dental"]
[10686,874225473,"David Scott Platt",null,null,"2109 Northeast 72nd Street",null,"Gladstone","MO",64118,"2109 Northeast 72nd Street",null,"Gladstone","MO",64118,"General Practice - Dental"]
[10687,852972002,"Andrew Baxter Osborn",null,null,"3802 Maynardville Hwy.",null,"Maynardville","TN",37807,"3802 Maynardville Hwy.",null,"Maynardville","TN",37807,"General Practice - Dental"]
[10688,742806058,"Austin Dental",null,null,"2206 Parmer Lane",null,"Austin","TX",78727,"2206 Parmer Lane",null,"Austin","TX",78727,"General Practice - Dental"]
[10689,455031707,"Aleesha M. Freimuth",null,null,"2509 Southeast 17th Street",null,"Ocala","FL",34471,"2509 Southeast 17th Street",null,"Ocala","FL",34471,"General Practice - Dental"]
[10690,461939344,"Cory B. Sellers",null,null,"4300 Linden Avenue",null,"Dayton","OH",45432,"4300 Linden Avenue",null,"Dayton","OH",45432,"General Practice - Dental"]
[10691,843035785,"Georges  Raffoul",null,null,"6419 S Florida Ave",null,"Lakeland","FL",33813,"6419 S Florida Ave",null,"Lakeland","FL",33813,"General Practice - Dental"]
[10692,270477297,"Sandra R. Brener",null,null,"18503 Pines Blvd.",null,"Pembroke Pines","FL",33029,"18503 Pines Blvd.",null,"Pembroke Pines","FL",33029,"Pediatric Dentistry"]
[10693,272297961,"Ryanne J. Hazen",null,null,"3310 County Road 44B",null,"Mt. Dora","FL",32757,"3310 County Road 44B",null,"Mt. Dora","FL",32757,"General Practice - Dental"]
[10694,471706456,"Gabriela  Soto",null,null,"11741 South Cleveland Avenue",null,"Fort Myers","FL",33907,"11741 South Cleveland Avenue",null,"Fort Myers","FL",33907,"General Practice - Dental"]
[10695,463279591,"David Martin Gulotte",null,null,"27821 South Tamiami Trail",null,"Bonita Springs","FL",34134,"27821 South Tamiami Trail",null,"Bonita Springs","FL",34134,"General Practice - Dental"]
[10696,263302412,"Radmila  Shuminov",null,null,"3071 Avenue U",null,"Brooklyn","NY",11229,"3071 Avenue U",null,"Brooklyn","NY",11229,"General Practice - Dental"]
[10697,923762576,"Karen Yohanna Orozco",null,null,"18070 South Tamiami Trail",null,"Fort Myers","FL",33908,"18070 South Tamiami Trail",null,"Fort Myers","FL",33908,"General Practice - Dental"]
[10698,383326145,"Michelle M. Matheson",null,null,"1179 Whitehall Road",null,"Muskegon","MI",49445,"1179 Whitehall Road",null,"Muskegon","MI",49445,"General Practice - Dental"]
[10699,203092911,"Michael A. Ward",null,null,"6010 Amarillo Blvd. West",null,"Amarillo","TX",79106,"6010 Amarillo Blvd. West",null,"Amarillo","TX",79106,"General Practice - Dental"]
[10700,273981704,"Daniel A. Weldon",null,null,"812 Northeast 25th Avenue",null,"Ocala","FL",34470,"812 Northeast 25th Avenue",null,"Ocala","FL",34470,"General Practice - Dental"]
[10701,842342678,"Rafaela  Dejanovic",null,null,"7643 Market Street",null,"Wilmington","NC",28411,"7643 Market Street",null,"Wilmington","NC",28411,"General Practice - Dental"]
[10702,273382370,"Carley Jeff Scott",null,null,"15620 Mcgregor Blvd #G",null,"Fort Myers","FL",33908,"15620 Mcgregor Blvd #G",null,"Fort Myers","FL",33908,"General Practice - Dental"]
[10703,270380407,"Lisa J. Christy",null,null,"9500 Red Arrow Hwy.",null,"Bridgman","MI",49106,"9500 Red Arrow Hwy.",null,"Bridgman","MI",49106,"General Practice - Dental"]
[10704,845063183,"Kinnar Rameshchandra Shah",null,null,"305 Main Street",null,"Southbridge","MA",1550,"305 Main Street",null,"Southbridge","MA",1550,"General Practice - Dental"]
[10705,541572469,"Jamie L. Childress",null,null,"6387 Cedar Brook Lane",null,"Warrenton","VA",20187,"6387 Cedar Brook Lane",null,"Warrenton","VA",20187,"General Practice - Dental"]
[10706,232154903,"Keith E. Silverstein",null,null,"21 Industrial Blvd.",null,"Paoli","PA",19301,"21 Industrial Blvd.",null,"Paoli","PA",19301,"Surgery, Oral & Macillofacial"]
[10707,872132949,"Yassar J. Al-Fatlawi",null,null,"130 Gateway Circle",null,"Saint Johns","FL",32259,"130 Gateway Circle",null,"Saint Johns","FL",32259,"General Practice - Dental"]
[10708,61672117,"Michael Anthony Rolfes",null,null,"5744 Canton Cove",null,"Winter Springs","FL",32708,"5744 Canton Cove",null,"Winter Springs","FL",32708,"General Practice - Dental"]
[10709,474375616,"Amanda  Sharp",null,null,"4012 9th Avenue West",null,"Bradenton","FL",34205,"4012 9th Avenue West",null,"Bradenton","FL",34205,"General Practice - Dental"]
[10710,844067937,"Sandra  Trejos",null,null,"250 E International Speedway Blvd",null,"Deland","FL",32724,"250 E International Speedway Blvd",null,"Deland","FL",32724,"General Practice - Dental"]
[10711,421750658,"Nathaniel A. Renner",null,null,"22 Norton Road",null,"Greeneville","TN",37745,"22 Norton Road",null,"Greeneville","TN",37745,"General Practice - Dental"]
[10712,911919200,"Hannah  Sheinin",null,null,"2979 Squalicum Pkwy.",null,"Bellingham","WA",98225,"2979 Squalicum Pkwy.",null,"Bellingham","WA",98225,"Gastroenterology"]
[10713,811573217,"Richard Irving Hogan",null,null,"3130 Commerce Place",null,"Burlington","NC",27215,"3130 Commerce Place",null,"Burlington","NC",27215,"General Practice - Dental"]
[10714,273600447,"Jose Gilberto Cruz",null,null,"6390 Cypress Gardens Blvd.",null,"Winter Haven","FL",33884,"6390 Cypress Gardens Blvd.",null,"Winter Haven","FL",33884,"General Practice - Dental"]
[10715,823277679,"Christopher William Painton",null,null,"2701 North Dirksen Pkwy.",null,"Springfield","IL",62702,"2701 North Dirksen Pkwy.",null,"Springfield","IL",62702,"General Practice - Dental"]
[10716,570653099,"Brooks A. Godwin",null,null,"315 West Georgia Road",null,"Simpsonville","SC",29681,"315 West Georgia Road",null,"Simpsonville","SC",29681,"General Practice - Dental"]
[10717,510489355,"Kelly Fitzgerald Burns",null,null,"152 Main Street",null,"Montpelier","VT",5602,"152 Main Street",null,"Montpelier","VT",5602,"General Practice - Dental"]
[10718,881875368,"Ryan Michael Stukenberg",null,null,"119 Wilburn Road",null,"Sun Prairie","WI",53590,"119 Wilburn Road",null,"Sun Prairie","WI",53590,"General Practice - Dental"]
[10719,871396870,"Francisco J. Azar",null,null,"15721 Southwest 152nd Street",null,"Miami","FL",33187,"15721 Southwest 152nd Street",null,"Miami","FL",33187,"Pediatric Dentistry"]
[10720,592013100,"Jay  Cagata",null,null,"2534 Southeast Santa Barbara Place",null,"Cape Coral","FL",33904,"2534 Southeast Santa Barbara Place",null,"Cape Coral","FL",33904,"Surgery, Oral & Macillofacial"]
[10721,275375307,"Samuel E. Schmitz",null,null,"10655 State Road 662 West",null,"Newburgh","IN",47630,"10655 State Road 662 West",null,"Newburgh","IN",47630,"General Practice - Dental"]
[10722,860958933,"Sandra Kay H. Alojado",null,null,"1501 East Camp Mohave Road",null,"Fort Mohave","AZ",86426,"1501 East Camp Mohave Road",null,"Fort Mohave","AZ",86426,"General Practice - Dental"]
[10723,200185918,"Krishen Sanjay Patel",null,null,"20330 Grande Oak Shoppes Blvd.",null,"Estero","FL",33928,"20330 Grande Oak Shoppes Blvd.",null,"Estero","FL",33928,"General Practice - Dental"]
[10724,841908657,"Kaitlin  Donovan",null,null,"5484 Lorkey Lane",null,"Viera","FL",32940,"5484 Lorkey Lane",null,"Viera","FL",32940,"General Practice - Dental"]
[10725,650722465,"Elizabeth M. Mckenna Pfent",null,null,"4089 Tamiami Trail North",null,"Naples","FL",34103,"4089 Tamiami Trail North",null,"Naples","FL",34103,"General Practice - Dental"]
[10726,831855238,"Yuliya Bogdanovna Kovalova",null,null,"13435 South McCall Road",null,"Port Charlotte","FL",33981,"13435 South McCall Road",null,"Port Charlotte","FL",33981,"General Practice - Dental"]
[10727,824271431,"Salvatore  Korecki",null,null,"150 North College Street",null,"Charlotte","NC",28202,"150 North College Street",null,"Charlotte","NC",28202,"General Practice - Dental"]
[10728,834359545,"Matthew J. Rasmussen",null,null,"3450 East Fletcher Avenue",null,"Tampa","FL",33613,"3450 East Fletcher Avenue",null,"Tampa","FL",33613,"General Practice - Dental"]
[10729,874667112,"Courtney  Marshall",null,null,"96 Bill Hughes Avenue",null,"Murphy","NC",28906,"96 Bill Hughes Avenue",null,"Murphy","NC",28906,"General Practice - Dental"]
[10730,461827055,"Jonathan Dales Gordon",null,null,"463374 State Road 200",null,"Yulee","FL",32097,"463374 State Road 200",null,"Yulee","FL",32097,"General Practice - Dental"]
[10731,263366235,"Jeremiah D. Gordon",null,null,"300 Plantation Island Drive South",null,"St. Augustine","FL",32080,"300 Plantation Island Drive South",null,"St. Augustine","FL",32080,"General Practice - Dental"]
[10732,463279591,"Paola  Suglio Villalon",null,null,"20330 Grande Oak Shoppes Blvd.",null,"Estero","FL",33928,"20330 Grande Oak Shoppes Blvd.",null,"Estero","FL",33928,"General Practice - Dental"]
[10733,562061589,"Heber W. Windley",null,null,"315 Hospital Road",null,"Zebulon","NC",27597,"315 Hospital Road",null,"Zebulon","NC",27597,"General Practice - Dental"]
[10734,822722724,"Nathan  Pirino",null,null,"190 North Charles Richard Beall Blv",null,"Debary","FL",32713,"190 North Charles Richard Beall Blv",null,"Debary","FL",32713,"General Practice - Dental"]
[10735,200275589,"Aaron  Leishman",null,null,"9500 Corkscrew Palms Circle",null,"Estero","FL",33928,"9500 Corkscrew Palms Circle",null,"Estero","FL",33928,"General Practice - Dental"]
[10736,432089803,"Young J. Kim",null,null,"3440 Conway Blvd.",null,"Port Charlotte","FL",33952,"3440 Conway Blvd.",null,"Port Charlotte","FL",33952,"General Practice - Dental"]
[10737,134226521,"Hector I. Perez Marti",null,null,"10769 Northwest 58th Street",null,"Doral","FL",33178,"10769 Northwest 58th Street",null,"Doral","FL",33178,"General Practice - Dental"]
[10738,650719035,"Heydi  Perez Reyes",null,null,"8004 Summerlin Lakes Drive",null,"Fort Myers","FL",33907,"8004 Summerlin Lakes Drive",null,"Fort Myers","FL",33907,"General Practice - Dental"]
[10739,593403851,"Franklin  Condori",null,null,"12435 Collier Blvd.",null,"Naples","FL",34116,"12435 Collier Blvd.",null,"Naples","FL",34116,"General Practice - Dental"]
[10740,200185918,"Michael  Schaake",null,null,"9250 6 Mile Cypress Pkwy.",null,"Fort Myers","FL",33966,"9250 6 Mile Cypress Pkwy.",null,"Fort Myers","FL",33966,"General Practice - Dental"]
[10741,381906836,"Ryan E. Thomas",null,null,"9151 Red Arrow Hwy.",null,"Bridgman","MI",49106,"9151 Red Arrow Hwy.",null,"Bridgman","MI",49106,"General Practice - Dental"]
[10742,581240109,"Heath M. Miller",null,null,"209 24th Street East",null,"Tifton","GA",31794,"209 24th Street East",null,"Tifton","GA",31794,"General Practice - Dental"]
[10743,561101594,"Eric N. Kerr",null,null,"3535 Randolph Road",null,"Charlotte","NC",28211,"3535 Randolph Road",null,"Charlotte","NC",28211,"Periodontics"]
[10744,204981378,"Mitchell W. Ponsford",null,null,"21477 State Hwy. 46 West",null,"Spring Branch","TX",78070,"21477 State Hwy. 46 West",null,"Spring Branch","TX",78070,"Periodontics"]
[10745,880569141,"Mark  Henein",null,null,"2761 South McCall Road",null,"Englewood","FL",34224,"2761 South McCall Road",null,"Englewood","FL",34224,"General Practice - Dental"]
[10746,832268452,"Kenninthon  Munoz",null,null,"10600 Tamiami Trail North",null,"Naples","FL",34108,"10600 Tamiami Trail North",null,"Naples","FL",34108,"General Practice - Dental"]
[10747,200185918,"Timothy M. Lee",null,null,"1500 Price Creek Way",null,"North Port","FL",34288,"1500 Price Creek Way",null,"North Port","FL",34288,"General Practice - Dental"]
[10748,650045194,"Larry W. Dunford",null,null,"3209 Del Prado Blvd",null,"Cape Coral","FL",33904,"3209 Del Prado Blvd",null,"Cape Coral","FL",33904,"Prosthodontics"]
[10749,264740460,"Richard W. Putnam",null,null,"426 Cleveland Street",null,"Blairsville","GA",30512,"426 Cleveland Street",null,"Blairsville","GA",30512,"General Practice - Dental"]
[10750,830962504,"Seth  Calish",null,null,"290 Citrus Tower Blvd.",null,"Clermont","FL",34711,"290 Citrus Tower Blvd.",null,"Clermont","FL",34711,"General Practice - Dental"]
[10751,845133583,"Steven M. Cudney",null,null,"305 West 12th Avenue",null,"Columbus","OH",43210,"305 West 12th Avenue",null,"Columbus","OH",43210,"Surgery, Oral & Macillofacial"]
[10752,261783966,"Yurko Dental Excellence",null,null,"419 North Main Street",null,"Waynesville","NC",28786,"419 North Main Street",null,"Waynesville","NC",28786,"General Practice - Dental"]
[10753,270206428,"Joshua A. Austin",null,null,"4553 North Loop 1604 West",null,"San Antonio","TX",78249,"4553 North Loop 1604 West",null,"San Antonio","TX",78249,"General Practice - Dental"]
[10754,562185627,"Brooke Burnette Johnson",null,null,"107 Windel Drive",null,"Raleigh","NC",27609,"107 Windel Drive",null,"Raleigh","NC",27609,"General Practice - Dental"]
[10755,263766926,"Jenna M. Zacharewicz",null,null,"9503 Northeast 2nd Avenue",null,"Miami Shores","FL",33138,"9503 Northeast 2nd Avenue",null,"Miami Shores","FL",33138,"General Practice - Dental"]
[10756,842464644,"Chanelle J. Commedore",null,null,"6552 Gunn Hwy.",null,"Tampa","FL",33625,"6552 Gunn Hwy.",null,"Tampa","FL",33625,"General Practice - Dental"]
[10757,582672804,"Kathryn Ringland DDS P.A. - GP",null,null,"9400 Gladiolus Drive",null,"Fort Myers","FL",33908,"9400 Gladiolus Drive",null,"Fort Myers","FL",33908,"General Practice - Dental"]
[10758,200047883,"Earl  Stubblefield",null,null,"508 Azalea Drive",null,"Oxford","MS",38655,"508 Azalea Drive",null,"Oxford","MS",38655,"General Practice - Dental"]
[10759,650731064,"A Helena Jimenez DDS - GP",null,null,"13792 Southwest 8th Street",null,"Miami","FL",33184,"13792 Southwest 8th Street",null,"Miami","FL",33184,"General Practice - Dental"]
[10760,460470750,"Daniel Sam Winokur",null,null,"9540 Bonita Beach Road",null,"Bonita Springs","FL",34135,"9540 Bonita Beach Road",null,"Bonita Springs","FL",34135,"Surgery, Oral & Macillofacial"]
[10761,854281797,"Tara  Daniel",null,null,"1317 Milstead Avenue",null,"Conyers","GA",30012,"1317 Milstead Avenue",null,"Conyers","GA",30012,"General Practice - Dental"]
[10762,352121744,"Jeffery T. Harmon",null,null,"255 West 36th Street",null,"Jasper","IN",47546,"255 West 36th Street",null,"Jasper","IN",47546,"General Practice - Dental"]
[10763,472862753,"Mark Alan Robertson",null,null,"105 Hudson Drive",null,"Elizabethton","TN",37643,"105 Hudson Drive",null,"Elizabethton","TN",37643,"General Practice - Dental"]
[10764,200684117,"Efthimios Timothy Kalavrouziotis",null,null,"121 Center Grove Road",null,"Randolph","NJ",7869,"121 Center Grove Road",null,"Randolph","NJ",7869,"General Practice - Dental"]
[10765,811371348,"Vani Bhatnagar Prabakaran",null,null,"1500 East Venice Avenue",null,"Venice","FL",34292,"1500 East Venice Avenue",null,"Venice","FL",34292,"Periodontics"]
[10766,592737400,"William D. Myers",null,null,"20491 The Granada",null,"Dunnellon","FL",34432,"20491 The Granada",null,"Dunnellon","FL",34432,"General Practice - Dental"]
[10767,853957853,"Luis Alberto Zambrano",null,null,"2400 South Ridgewood Avenue",null,"South Daytona","FL",32119,"2400 South Ridgewood Avenue",null,"South Daytona","FL",32119,"General Practice - Dental"]
[10768,200185918,"William F. Cardman",null,null,"4455 Florida National Drive",null,"Lakeland","FL",33813,"4455 Florida National Drive",null,"Lakeland","FL",33813,"General Practice - Dental"]
[10769,204419171,"Dennis B. Amores",null,null,"13617 South Dixie Hwy.",null,"Miami","FL",33176,"13617 South Dixie Hwy.",null,"Miami","FL",33176,"General Practice - Dental"]
[10770,861095921,"Benjamin R. Daniel",null,null,"2098 Woodruff Road",null,"Greenville","SC",29607,"2098 Woodruff Road",null,"Greenville","SC",29607,"General Practice - Dental"]
[10771,272007628,"Nikola E. Goranov",null,null,"8841 College Pkwy",null,"Fort Myers","FL",33919,"8841 College Pkwy",null,"Fort Myers","FL",33919,"General Practice - Dental"]
[10772,383326145,"Monica  Lakatos",null,null,"1179 Whitehall Road",null,"Muskegon","MI",49445,"1179 Whitehall Road",null,"Muskegon","MI",49445,"General Practice - Dental"]
[10773,844045777,"Jennifer Haley Katz",null,null,"13200 Seminole Blvd.",null,"Largo","FL",33778,"13200 Seminole Blvd.",null,"Largo","FL",33778,"General Practice - Dental"]
[10774,203840297,"Gerald A. Griggs",null,null,"56 School Circle",null,"Blairsville","GA",30512,"56 School Circle",null,"Blairsville","GA",30512,"General Practice - Dental"]
[10775,208326663,"Dental Health Assocaites",null,null,"1031 Weiss Avenue",null,"Fayetteville","NC",28305,"1031 Weiss Avenue",null,"Fayetteville","NC",28305,"General Practice - Dental"]
[10776,621852279,"Lorine  Yee Shinsky",null,null,"4249 Highway 411",null,"Madisonville","TN",37354,"4249 Highway 411",null,"Madisonville","TN",37354,"General Practice - Dental"]
[10777,200185918,"Lucia  Greer",null,null,"681 Goodlette Road North",null,"Naples","FL",34102,"681 Goodlette Road North",null,"Naples","FL",34102,"General Practice - Dental"]
[10778,200185918,"Keval Atul Patel",null,null,"1405 South Twenty-Fifth Street",null,"Fort Pierce","FL",34947,"1405 South Twenty-Fifth Street",null,"Fort Pierce","FL",34947,"General Practice - Dental"]
[10779,473172337,"Bailey John Biwer",null,null,"7493 147th Street West",null,"Apple Valley","MN",55124,"7493 147th Street West",null,"Apple Valley","MN",55124,"General Practice - Dental"]
[10780,593318766,"Cong Minh Nguyen",null,null,"768 Cortaro Drive",null,"Sun City Center","FL",33573,"768 Cortaro Drive",null,"Sun City Center","FL",33573,"General Practice - Dental"]
[10781,874642725,"Melissa R. Williams",null,null,"1915 Dean Road South # 200",null,"Orlando","FL",32825,"1915 Dean Road South # 200",null,"Orlando","FL",32825,"General Practice - Dental"]
[10782,650825571,"John Michael Garcia",null,null,"4450 Weston Road",null,"Weston","FL",33331,"4450 Weston Road",null,"Weston","FL",33331,"General Practice - Dental"]
[10783,200185918,"Randy Paul Jones",null,null,"4335 Highland Park Blvd.",null,"Lakeland","FL",33813,"4335 Highland Park Blvd.",null,"Lakeland","FL",33813,"General Practice - Dental"]
[10784,811267108,"Robert A. Breault",null,null,"30 Country Squire Drive",null,"Cromwell","CT",6416,"30 Country Squire Drive",null,"Cromwell","CT",6416,"General Practice - Dental"]
[10785,811267108,"Karen Elizabeth McAbee",null,null,"100 Omalley Drive",null,"Summerville","SC",29483,"100 Omalley Drive",null,"Summerville","SC",29483,"General Practice - Dental"]
[10786,200185918,"Mansoor I. Khan",null,null,"1573 Saxon Blvd.",null,"Deltona","FL",32725,"1573 Saxon Blvd.",null,"Deltona","FL",32725,"General Practice - Dental"]
[10787,472672345,"Norma J. Cortez",null,null,"302 South Bennett Street",null,"Burgaw","NC",28425,"302 South Bennett Street",null,"Burgaw","NC",28425,"General Practice - Dental"]
[10788,873979129,"Dalyn K. Webb",null,null,"627 Haywood Road",null,"Asheville","NC",28806,"627 Haywood Road",null,"Asheville","NC",28806,"General Practice - Dental"]
[10789,200185918,"Erika K. Ynga",null,null,"1865 Hillview Street",null,"Sarasota","FL",34239,"1865 Hillview Street",null,"Sarasota","FL",34239,"General Practice - Dental"]
[10790,831910714,"Jared McKay Gibby",null,null,"499 East Central Pkwy.",null,"Altamonte Springs","FL",32701,"499 East Central Pkwy.",null,"Altamonte Springs","FL",32701,"General Practice - Dental"]
[10791,452571510,"Esther P. Pedersen",null,null,"10925 Antioch Road",null,"Overland Park","KS",66210,"10925 Antioch Road",null,"Overland Park","KS",66210,"General Practice - Dental"]
[10792,320582571,"James E. Mcilwain",null,null,"26908 Foggy Creek Road",null,"Wesley Chapel","FL",33544,"26908 Foggy Creek Road",null,"Wesley Chapel","FL",33544,"General Practice - Dental"]
[10793,270728558,"Joseph A. Sorrentino",null,null,"4240 West Kennedy Blvd.",null,"Tampa","FL",33609,"4240 West Kennedy Blvd.",null,"Tampa","FL",33609,"General Practice - Dental"]
[10794,631252341,"Floyd Kent Norris",null,null,"315 Mariarden Road",null,"Dadeville","AL",36853,"315 Mariarden Road",null,"Dadeville","AL",36853,"General Practice - Dental"]
[10795,200185918,"Victor J. Ke",null,null,"7255 Kathleen Road",null,"Lakeland","FL",33810,"7255 Kathleen Road",null,"Lakeland","FL",33810,"General Practice - Dental"]
[10796,203092911,"Matthew G. Green",null,null,"2190 US Hwy 27 North",null,"Sebring","FL",33870,"2190 US Hwy 27 North",null,"Sebring","FL",33870,"General Practice - Dental"]
[10797,273667663,"Paul Bogeun Kim",null,null,"1678 Mulkey Road",null,"Austell","GA",30106,"1678 Mulkey Road",null,"Austell","GA",30106,"General Practice - Dental"]
[10798,850910923,"Elizabeth  Chavez",null,null,"3436 Cleveland Avenue",null,"Fort Myers","FL",33901,"3436 Cleveland Avenue",null,"Fort Myers","FL",33901,"General Practice - Dental"]
[10799,260367216,"Daniel P. Thomas",null,null,"701 Main Street",null,"Royersford","PA",19468,"701 Main Street",null,"Royersford","PA",19468,"General Practice - Dental"]
[10800,200185918,"Thomas A. Wilson",null,null,"4335 Highland Park Blvd.",null,"Lakeland","FL",33813,"4335 Highland Park Blvd.",null,"Lakeland","FL",33813,"General Practice - Dental"]
[10801,815218201,"Ashley R. Fleck",null,null,"2685 Andersonville Hwy.",null,"Clinton","TN",37716,"2685 Andersonville Hwy.",null,"Clinton","TN",37716,"General Practice - Dental"]
[10802,454954302,"Angela Marie Boehler-Homoky",null,null,"17912 Toledo Blade Boulevard",null,"Port Charlotte","FL",33948,"17912 Toledo Blade Boulevard",null,"Port Charlotte","FL",33948,"General Practice - Dental"]
[10803,205785995,"Eva Mirium Goriee",null,null,"26298 Gratiot Avenue",null,"Roseville","MI",48066,"26298 Gratiot Avenue",null,"Roseville","MI",48066,"General Practice - Dental"]
[10804,650719035,"Emmanuel  Acheampong",null,null,"3251 Northwest Federal Hwy.",null,"Jensen Beach","FL",34957,"3251 Northwest Federal Hwy.",null,"Jensen Beach","FL",34957,"Pediatric Dentistry"]
[10805,853969088,"Shawn  Kinney",null,null,"522 Finnie Flat Road",null,"Camp Verde","AZ",86322,"522 Finnie Flat Road",null,"Camp Verde","AZ",86322,"General Practice - Dental"]
[10806,205354428,"Nadine M. Ferbinteanu",null,null,"3185 Citrus Tower Blvd.",null,"Clermont","FL",34711,"3185 Citrus Tower Blvd.",null,"Clermont","FL",34711,"General Practice - Dental"]
[10807,830541772,"Lindsay Madison Roth",null,null,"6871 Daniels Pkwy.",null,"Fort Myers","FL",33912,"6871 Daniels Pkwy.",null,"Fort Myers","FL",33912,"General Practice - Dental"]
[10808,542169049,"Jose R. Venegas",null,null,"609 Tamiami Trl S",null,"Venice","FL",34285,"609 Tamiami Trl S",null,"Venice","FL",34285,"General Practice - Dental"]
[10809,320472804,"Nadia Paola Gutierrez Garcia",null,null,"402 Rhode Island Avenue Northwest",null,"Washington","DC",20001,"402 Rhode Island Avenue Northwest",null,"Washington","DC",20001,"General Practice - Dental"]
[10810,352001110,"Fred E. Bokel",null,null,"5730 Falls Drive",null,"Fort Wayne","IN",46804,"5730 Falls Drive",null,"Fort Wayne","IN",46804,"General Practice - Dental"]
[10811,201376393,"Amirreza  Sadrmanochehrinaeini",null,null,"10321 Gravelly Lake Drive Southwest",null,"Lakewood","WA",98499,"10321 Gravelly Lake Drive Southwest",null,"Lakewood","WA",98499,"General Practice - Dental"]
[10812,593587914,"Twyla J. Roberts",null,null,"4121 Northwest 37th Place",null,"Gainesville","FL",32606,"4121 Northwest 37th Place",null,"Gainesville","FL",32606,"General Practice - Dental"]
[10813,464195173,"Irwin N. Boe",null,null,"1631 Commercial Street",null,"Warsaw","MO",65355,"1631 Commercial Street",null,"Warsaw","MO",65355,"General Practice - Dental"]
[10814,591425149,"Denis P. Trupkin",null,null,"7400 Northwest 5th Street",null,"Plantation","FL",33317,"7400 Northwest 5th Street",null,"Plantation","FL",33317,"General Practice - Dental"]
[10815,854151883,"Bryant  Greene",null,null,"131 East Main Street",null,"Burnsville","NC",28714,"131 East Main Street",null,"Burnsville","NC",28714,"General Practice - Dental"]
[10816,582220621,"Jason R. Lee",null,null,"195 Greencastle Road",null,"Tyrone","GA",30290,"195 Greencastle Road",null,"Tyrone","GA",30290,"General Practice - Dental"]
[10817,820905090,"Nicholas A. White",null,null,"974 International Pkwy.",null,"Lake Mary","FL",32746,"974 International Pkwy.",null,"Lake Mary","FL",32746,"Pediatric Dentistry"]
[10818,593416509,"Nick L. Kavouklis",null,null,"6421 Sheldon Road",null,"Tampa","FL",33615,"6421 Sheldon Road",null,"Tampa","FL",33615,"General Practice - Dental"]
[10819,871272939,"Trevor William Staton",null,null,"103 Haywood Park Drive",null,"Clyde","NC",28721,"103 Haywood Park Drive",null,"Clyde","NC",28721,"General Practice - Dental"]
[10820,650981374,"David M. Paulson",null,null,"1900 Tamiami Trail",null,"Punta Gorda","FL",33950,"1900 Tamiami Trail",null,"Punta Gorda","FL",33950,"Surgery, Oral & Macillofacial"]
[10821,271945261,"Nicholas Lee Lagow",null,null,"2021 West Michigan Avenue",null,"Jackson","MI",49202,"2021 West Michigan Avenue",null,"Jackson","MI",49202,"General Practice - Dental"]
[10822,161714907,"Robert R. Guthrie",null,null,"111 Main Street",null,"Wadsworth","OH",44281,"111 Main Street",null,"Wadsworth","OH",44281,"Surgery, Oral & Macillofacial"]
[10823,881490471,"John Essa Farah",null,null,"3100 West Liberty",null,"Ann Arbor","MI",48103,"3100 West Liberty",null,"Ann Arbor","MI",48103,"General Practice - Dental"]
[10824,200569591,"Eric H. Cho",null,null,"11110 Medical Campus Road",null,"Hagerstown","MD",21742,"11110 Medical Campus Road",null,"Hagerstown","MD",21742,"General Practice - Dental"]
[10825,200185918,"Sonja  Bojko",null,null,"3220 South Tamiami Trail",null,"Sarasota","FL",34239,"3220 South Tamiami Trail",null,"Sarasota","FL",34239,"General Practice - Dental"]
[10826,474415843,"David Michael Martinez",null,null,"10484 Stringfellow Road",null,"St. James City","FL",33956,"10484 Stringfellow Road",null,"St. James City","FL",33956,"General Practice - Dental"]
[10827,61601929,"James B. Marshall",null,null,"4 Mountain Street",null,"Derby","CT",6418,"4 Mountain Street",null,"Derby","CT",6418,"General Practice - Dental"]
[10828,204206572,"Michael J. Thomasino",null,null,"1716 University Blvd. South",null,"Jacksonville","FL",32216,"1716 University Blvd. South",null,"Jacksonville","FL",32216,"General Practice - Dental"]
[10829,452546142,"Abbey D. Morales",null,null,"10484 Stringfellow Road",null,"St. James City","FL",33956,"10484 Stringfellow Road",null,"St. James City","FL",33956,"General Practice - Dental"]
[10830,271383787,"Southwest Florida Dental Partnership",null,null,"15650 San Carlos Blvd.",null,"Fort Myers","FL",33908,"15650 San Carlos Blvd.",null,"Fort Myers","FL",33908,"General Practice - Dental"]
[10831,134224685,"John D. Basile",null,null,"4600 Zuck Road",null,"Erie","PA",16506,"4600 Zuck Road",null,"Erie","PA",16506,"Surgery, Oral & Macillofacial"]
[10832,881261023,"Whitney  Wolfe Johnson",null,null,"1180 Lynn Street",null,"Lebanon","MO",65536,"1180 Lynn Street",null,"Lebanon","MO",65536,"General Practice - Dental"]
[10833,811149704,"Sonia A. Rocha",null,null,"18070 South Tamiami Trail",null,"Fort Myers","FL",33908,"18070 South Tamiami Trail",null,"Fort Myers","FL",33908,"General Practice - Dental"]
[10834,562185627,"Alexis S. Trendowski",null,null,"3608 University Drive",null,"Durham","NC",27707,"3608 University Drive",null,"Durham","NC",27707,"General Practice - Dental"]
[10835,200569591,"Carl S. Appleton",null,null,"161 Thomas Johnson Drive",null,"Frederick","MD",21702,"161 Thomas Johnson Drive",null,"Frederick","MD",21702,"General Practice - Dental"]
[10836,208546817,"Michael J. Dinn",null,null,"4 Merchant Road",null,"Sandwich","MA",2563,"4 Merchant Road",null,"Sandwich","MA",2563,"General Practice - Dental"]
[10837,591425149,"Abby T. Wilentz",null,null,"7400 Northwest 5th Street",null,"Plantation","FL",33317,"7400 Northwest 5th Street",null,"Plantation","FL",33317,"Pediatric Dentistry"]
[10838,582160734,"Regina Ann Boling",null,null,"5332 Hwy. 115",null,"Clarkesville","GA",30523,"5332 Hwy. 115",null,"Clarkesville","GA",30523,"General Practice - Dental"]
[10839,320582571,"Michael Nicholas Chiaramonte",null,null,"6838 Madison Street",null,"New Port Richey","FL",34652,"6838 Madison Street",null,"New Port Richey","FL",34652,"General Practice - Dental"]
[10840,593754533,"Henry A. Knowles",null,null,"4318 Kelson Avenue",null,"Marianna","FL",32446,"4318 Kelson Avenue",null,"Marianna","FL",32446,"General Practice - Dental"]
[10841,200185918,"Ashley Lauren Wagler",null,null,"1500 East Venice Avenue",null,"Venice","FL",34292,"1500 East Venice Avenue",null,"Venice","FL",34292,"General Practice - Dental"]
[10842,861420363,"Gemayel L. Aquino",null,null,"14651 Plan Beach Blvd.",null,"Fort Myers","FL",33905,"14651 Plan Beach Blvd.",null,"Fort Myers","FL",33905,"General Practice - Dental"]
[10843,465608312,"Zachary Mark Linkous",null,null,"2307 West Andrew Johnson Hwy.",null,"Morristown","TN",37814,"2307 West Andrew Johnson Hwy.",null,"Morristown","TN",37814,"General Practice - Dental"]
[10844,474805987,"Michael Robert Markgraf",null,null,"301 West Olympia Avenue",null,"Punta Gorda","FL",33950,"301 West Olympia Avenue",null,"Punta Gorda","FL",33950,"General Practice - Dental"]
[10845,271872049,"Aaron  Sauer",null,null,"1648 Fry Road",null,"Greenwood","IN",46142,"1648 Fry Road",null,"Greenwood","IN",46142,"General Practice - Dental"]
[10846,202287586,"Jennifer Baronis Hughes",null,null,"1879 Veterans Park Drive",null,"Naples","FL",34109,"1879 Veterans Park Drive",null,"Naples","FL",34109,"Pediatric Dentistry"]
[10847,471706456,"Mark  Henein",null,null,"2761 South McCall Road",null,"Englewood","FL",34224,"2761 South McCall Road",null,"Englewood","FL",34224,"General Practice - Dental"]
[10848,461512343,"Robert J. Fitzpatrick",null,null,"4560 West 103rd Street",null,"Oak Lawn","IL",60453,"4560 West 103rd Street",null,"Oak Lawn","IL",60453,"General Practice - Dental"]
[10849,460723023,"Aaron G. Moneyhan",null,null,"5101 East Busch Blvd.",null,"Tampa","FL",33617,"5101 East Busch Blvd.",null,"Tampa","FL",33617,"General Practice - Dental"]
[10850,464805470,"Eric J. Gabriel",null,null,"1286 MD Route 3",null,"Crofton","MD",21114,"1286 MD Route 3",null,"Crofton","MD",21114,"General Practice - Dental"]
[10851,200185918,"Maximus Sam Zand",null,null,"4696 Fruitville Road",null,"Sarasota","FL",34232,"4696 Fruitville Road",null,"Sarasota","FL",34232,"General Practice - Dental"]
[10852,370985071,"J A. Sochor",null,null,"233 East South Street",null,"Cerro Gordo","IL",61818,"233 East South Street",null,"Cerro Gordo","IL",61818,"General Practice - Dental"]
[10853,845127986,"Kamila  Rodriguez",null,null,"19521 Highland Oaks Drive",null,"Estero","FL",33928,"19521 Highland Oaks Drive",null,"Estero","FL",33928,"General Practice - Dental"]
[10854,593057283,"Kenneth J. Bommarito",null,null,"121 Waterman Avenue",null,"Mt. Dora","FL",32757,"121 Waterman Avenue",null,"Mt. Dora","FL",32757,"General Practice - Dental"]
[10855,382216019,"Kyle D. Hogg",null,null,"6 Park Pl",null,"Cadillac","MI",49601,"6 Park Pl",null,"Cadillac","MI",49601,"General Practice - Dental"]
[10856,811371348,"Vani Bhatnagar Prabakaran",null,null,"1500 East Venice Avenue",null,"Venice","FL",34292,"1500 East Venice Avenue",null,"Venice","FL",34292,"Periodontics"]
[10857,200185918,"William J. Garcia",null,null,"8921 Immokalee Road",null,"Naples","FL",34120,"8921 Immokalee Road",null,"Naples","FL",34120,"General Practice - Dental"]
[10858,853646444,"Joseph  Alvarez",null,null,"9580 Southwest 40th Street",null,"Miami","FL",33165,"9580 Southwest 40th Street",null,"Miami","FL",33165,"General Practice - Dental"]
[10859,465754024,"Jenna Danielle Godwin",null,null,"16305 Fishhawk Blvd.",null,"Lithia","FL",33547,"16305 Fishhawk Blvd.",null,"Lithia","FL",33547,"Surgery, Oral & Macillofacial"]
[10860,731476694,"Tim Jack Brooks",null,null,"12448 St. Andrews Drive",null,"Oklahoma City","OK",73120,"12448 St. Andrews Drive",null,"Oklahoma City","OK",73120,"General Practice - Dental"]
[10861,391192229,"Stacey Ann Eby",null,null,"1100 Madison Avenue",null,"Fort Atkinson","WI",53538,"1100 Madison Avenue",null,"Fort Atkinson","WI",53538,"General Practice - Dental"]
[10862,200185918,"Kristine M. Smith",null,null,"5540 Bee Ridge Road",null,"Sarasota","FL",34233,"5540 Bee Ridge Road",null,"Sarasota","FL",34233,"General Practice - Dental"]
[10863,273667663,"Lisa Klodnitskaya Shilman",null,null,"4536 Chamblee Dunwoody Road",null,"Atlanta","GA",30338,"4536 Chamblee Dunwoody Road",null,"Atlanta","GA",30338,"Pediatric Dentistry"]
[10864,461463969,"Kenneth David Anderson",null,null,"6941 Eastchase Loop",null,"Montgomery","AL",36117,"6941 Eastchase Loop",null,"Montgomery","AL",36117,"General Practice - Dental"]
[10865,310966333,"Marvin N. Kaplan",null,null,"3406 Ormond Ave",null,"Cincinnati","OH",45220,"3406 Ormond Ave",null,"Cincinnati","OH",45220,"General Practice - Dental"]
[10866,510559004,"Ivan E. Vega",null,null,"1590 Northwest 10th Avenue",null,"Boca Raton","FL",33486,"1590 Northwest 10th Avenue",null,"Boca Raton","FL",33486,"General Practice - Dental"]
[10867,463158368,"Kenia  Campos",null,null,"15275 Collier Blvd.",null,"Naples","FL",34119,"15275 Collier Blvd.",null,"Naples","FL",34119,"General Practice - Dental"]
[10868,871920668,"Matthew Skrable Ganey",null,null,"515 West Waddil",null,"Marksville","LA",71351,"515 West Waddil",null,"Marksville","LA",71351,"General Practice - Dental"]
[10869,471643516,"Inderraj S. Dhillon",null,null,"3935 North 67th Avenue",null,"Phoenix","AZ",85033,"3935 North 67th Avenue",null,"Phoenix","AZ",85033,"General Practice - Dental"]
[10870,471706456,"Jinal Mukeshkumar Patel",null,null,"1195 North Tamiami Trail",null,"Nokomis","FL",34275,"1195 North Tamiami Trail",null,"Nokomis","FL",34275,"General Practice - Dental"]
[10871,454745095,"Joseph Phillip Richardson",null,null,"331 North Maitland Avenue",null,"Maitland","FL",32751,"331 North Maitland Avenue",null,"Maitland","FL",32751,"Periodontics"]
[10872,864003745,"Timothy L. Palmer",null,null,"19240 Quesada Avenue",null,"Port Charlotte","FL",33948,"19240 Quesada Avenue",null,"Port Charlotte","FL",33948,"General Practice - Dental"]
[10873,871883476,"Heather Lynn Hays",null,null,"33533 West 12 Mile Road",null,"Farmington Hills","MI",48331,"33533 West 12 Mile Road",null,"Farmington Hills","MI",48331,"General Practice - Dental"]
[10874,834667876,"Tommy Harold Lancaster",null,null,"1132 New Point Blvd.",null,"Leland","NC",28451,"1132 New Point Blvd.",null,"Leland","NC",28451,"General Practice - Dental"]
[10875,874667112,"Jared T. Houston",null,null,"3503 South Soncy Road",null,"Amarillo","TX",79119,"3503 South Soncy Road",null,"Amarillo","TX",79119,"General Practice - Dental"]
[10876,200185918,"Nery Jorge David Ruano",null,null,"3775 Roscommon Drive",null,"Ormond Beach","FL",32174,"3775 Roscommon Drive",null,"Ormond Beach","FL",32174,"General Practice - Dental"]
[10877,263948409,"James Henry McSoley",null,null,"1838 Miccosukee Road",null,"Tallahassee","FL",32308,"1838 Miccosukee Road",null,"Tallahassee","FL",32308,"General Practice - Dental"]
[10878,200185918,"Jasmine  Arneja",null,null,"2760 Southeast 17th Street",null,"Ocala","FL",34471,"2760 Southeast 17th Street",null,"Ocala","FL",34471,"General Practice - Dental"]
[10879,844919448,"Harris Livingstain Rittenberg",null,null,"5417 Ortega Blvd.",null,"Jacksonville","FL",32210,"5417 Ortega Blvd.",null,"Jacksonville","FL",32210,"General Practice - Dental"]
[10880,200185918,"Caleb  Martin",null,null,"17840 Toledo Blade Blvd.",null,"Port Charlotte","FL",33948,"17840 Toledo Blade Blvd.",null,"Port Charlotte","FL",33948,"General Practice - Dental"]
[10881,864003745,"Robert G. Coseo",null,null,"19240 Quesada Avenue",null,"Port Charlotte","FL",33948,"19240 Quesada Avenue",null,"Port Charlotte","FL",33948,"General Practice - Dental"]
[10882,825293050,"Hayden Adams Bell",null,null,"2710 Southeast 17th Street",null,"Ocala","FL",34471,"2710 Southeast 17th Street",null,"Ocala","FL",34471,"General Practice - Dental"]
[10883,43689758,"Lindsay Wood Sammons",null,null,"91 Brighton Woods Drive",null,"Pooler","GA",31322,"91 Brighton Woods Drive",null,"Pooler","GA",31322,"General Practice - Dental"]
[10884,200891967,"Michelle W. Moenning",null,null,"522 East Marion Street",null,"Punta Gorda","FL",33950,"522 East Marion Street",null,"Punta Gorda","FL",33950,"General Practice - Dental"]
[10885,200185918,"Nestor E. Villarreal",null,null,"25000 Bernwood Drive",null,"Bonita Springs","FL",34135,"25000 Bernwood Drive",null,"Bonita Springs","FL",34135,"General Practice - Dental"]
[10886,203677084,"Terry Lee Barnett",null,null,"7962 Sunwood Drive Northwest",null,"Ramsey","MN",55303,"7962 Sunwood Drive Northwest",null,"Ramsey","MN",55303,"General Practice - Dental"]
[10887,814464563,"Marcelo Wolfgang Mattschei",null,null,"16960 Alico Mission Way",null,"Fort Myers","FL",33908,"16960 Alico Mission Way",null,"Fort Myers","FL",33908,"General Practice - Dental"]
[10888,460901603,"Paul J. Kramer",null,null,"3 Pine Cone Drive",null,"Palm Coast","FL",32137,"3 Pine Cone Drive",null,"Palm Coast","FL",32137,"General Practice - Dental"]
[10889,453458048,"Ishbel  Nieves-Reyes",null,null,"3185 Citrus Tower Blvd.",null,"Clermont","FL",34711,"3185 Citrus Tower Blvd.",null,"Clermont","FL",34711,"General Practice - Dental"]
[10890,200185918,"Dental Care at Babcock Ranch - GP",null,null,"42031 Cypress Pkwy.",null,"Punta Gorda","FL",33982,"42031 Cypress Pkwy.",null,"Punta Gorda","FL",33982,"General Practice - Dental"]
[10891,842766597,"Taylor L. Dietl",null,null,"8406 Wilsky Blvd.",null,"Tampa","FL",33615,"8406 Wilsky Blvd.",null,"Tampa","FL",33615,"General Practice - Dental"]
[10892,273043328,"Charles R. Cuprill",null,null,"8257 Narcoossee Park Drive",null,"Orlando","FL",32822,"8257 Narcoossee Park Drive",null,"Orlando","FL",32822,"General Practice - Dental"]
[10893,271945261,"Hong Phuc Thi Nguyen Brown",null,null,"2021 West Michigan Avenue",null,"Jackson","MI",49202,"2021 West Michigan Avenue",null,"Jackson","MI",49202,"General Practice - Dental"]
[10894,168689182,"David James DeMarco",null,null,"1020 Green Avenue",null,"Altoona","PA",16601,"1020 Green Avenue",null,"Altoona","PA",16601,"General Practice - Dental"]
[10895,820825295,"Abdul Nabi Shaikh",null,null,"8701 Maitland Summit Blvd.",null,"Orlando","FL",32810,"8701 Maitland Summit Blvd.",null,"Orlando","FL",32810,"General Practice - Dental"]
[10896,871602059,"Erick  Yglesias Ruiz",null,null,"1250 Southwest 27th Avenue",null,"Miami","FL",33135,"1250 Southwest 27th Avenue",null,"Miami","FL",33135,"General Practice - Dental"]
[10897,820608477,"Jennifer M. Drossner",null,null,"1274 Ribaut Road",null,"Beaufort","SC",29902,"1274 Ribaut Road",null,"Beaufort","SC",29902,"General Practice - Dental"]
[10898,474762200,"Leonid  Blinn",null,null,"5631 Clark Road",null,"Sarasota","FL",34233,"5631 Clark Road",null,"Sarasota","FL",34233,"General Practice - Dental"]
[10899,452546142,"Amelia Mercedes Caceres Tejada",null,null,"201 Plaza Drive",null,"Lehigh Acres","FL",33936,"201 Plaza Drive",null,"Lehigh Acres","FL",33936,"General Practice - Dental"]
[10900,201948902,"Eduardo Monteiro Correa",null,null,"13432 Palm Beach Blvd.",null,"Fort Myers","FL",33905,"13432 Palm Beach Blvd.",null,"Fort Myers","FL",33905,"General Practice - Dental"]
[10901,592147959,"Steven D. Aaron",null,null,"900 North Miami Beach Blvd.",null,"North Miami Beach","FL",33162,"900 North Miami Beach Blvd.",null,"North Miami Beach","FL",33162,"General Practice - Dental"]
[10902,461043966,"Nicole  Eastham",null,null,"3872 West Tamiami Trail",null,"Port Charlotte","FL",33952,"3872 West Tamiami Trail",null,"Port Charlotte","FL",33952,"Pediatric Dentistry"]
[10903,371359954,"Sunitha Ann Samuel",null,null,"1411 West Lane Road",null,"Machesney Park","IL",61115,"1411 West Lane Road",null,"Machesney Park","IL",61115,"General Practice - Dental"]
[10904,593456771,"David Martin Gulotte",null,null,"27821 South Tamiami Trail",null,"Bonita Springs","FL",34134,"27821 South Tamiami Trail",null,"Bonita Springs","FL",34134,"General Practice - Dental"]
[10905,455481351,"Felicia  Duran",null,null,"10454 West Atlantic Blvd.",null,"Coral Springs","FL",33071,"10454 West Atlantic Blvd.",null,"Coral Springs","FL",33071,"General Practice - Dental"]
[10906,650309425,"Catalina  Callejo",null,null,"13055 Southwest 42nd Street",null,"Miami","FL",33175,"13055 Southwest 42nd Street",null,"Miami","FL",33175,"General Practice - Dental"]
[10907,391861854,"Hannah Yost Yancho",null,null,"1141 Simon Crestway",null,"Waunakee","WI",53597,"1141 Simon Crestway",null,"Waunakee","WI",53597,"General Practice - Dental"]
[10908,300889816,"Aaron N. Mamo",null,null,"16520 South Tamiami Trail",null,"Fort Myers","FL",33908,"16520 South Tamiami Trail",null,"Fort Myers","FL",33908,"General Practice - Dental"]
[10909,813492607,"Tommy L. Kim",null,null,"10220 Prosperity Park Drive",null,"Charlotte","NC",28269,"10220 Prosperity Park Drive",null,"Charlotte","NC",28269,"General Practice - Dental"]
[10910,814841918,"Luis F. Rosario",null,null,"212 South Magnolia Avenue",null,"Ocala","FL",34471,"212 South Magnolia Avenue",null,"Ocala","FL",34471,"Surgery, Oral & Macillofacial"]
[10911,200185918,"Scott Brooks Carico",null,null,"938 Bridgewater Drive",null,"Port Orange","FL",32129,"938 Bridgewater Drive",null,"Port Orange","FL",32129,"General Practice - Dental"]
[10912,320529658,"Kevin C. Sanders",null,null,"761 West Tunnel Blvd.",null,"Houma","LA",70360,"761 West Tunnel Blvd.",null,"Houma","LA",70360,"General Practice - Dental"]
[10913,200853462,"Maria Monserrath Almeyda",null,null,"7011 Cypress Terrace",null,"Fort Myers","FL",33907,"7011 Cypress Terrace",null,"Fort Myers","FL",33907,"General Practice - Dental"]
[10914,873215474,"Sol  Kim",null,null,"1234 South Hover Street",null,"Longmont","CO",80501,"1234 South Hover Street",null,"Longmont","CO",80501,"General Practice - Dental"]
[10915,882961100,"Jennifer  Araya",null,null,"9700 Stirling Road",null,"Cooper City","FL",33024,"9700 Stirling Road",null,"Cooper City","FL",33024,"Periodontics"]
[10916,593432739,"Uday A. Mehta",null,null,"6731 Madison Street",null,"New Port Richey","FL",34652,"6731 Madison Street",null,"New Port Richey","FL",34652,"Surgery, Oral & Macillofacial"]
[10917,205021119,"Bart A. Samuelson",null,null,"200 Federal Avenue",null,"Rapid City","SD",57702,"200 Federal Avenue",null,"Rapid City","SD",57702,"General Practice - Dental"]
[10918,650133219,"Kevin D. Cappelen",null,null,"4822 Davis Blvd.",null,"Naples","FL",34104,"4822 Davis Blvd.",null,"Naples","FL",34104,"General Practice - Dental"]
[10919,813639213,"Magied K. Bishara",null,null,"10330 North Dale Mabry Hwy.",null,"Tampa","FL",33618,"10330 North Dale Mabry Hwy.",null,"Tampa","FL",33618,"General Practice - Dental"]
[10920,260357554,"Ramsis  Farag",null,null,"616 Robin Road",null,"Lakeland","FL",33803,"616 Robin Road",null,"Lakeland","FL",33803,"General Practice - Dental"]
[10921,830728500,"Sheetal T. Suryawanshi",null,null,"101 Flamingo Drive",null,"Apollo Beach","FL",33572,"101 Flamingo Drive",null,"Apollo Beach","FL",33572,"General Practice - Dental"]
[10922,270274111,"Christopher Lee Widner",null,null,"509 Main Street West",null,"Hartselle","AL",35640,"509 Main Street West",null,"Hartselle","AL",35640,"General Practice - Dental"]
[10923,275375307,"Alisa  Fabiano",null,null,"10655 State Road 662 West",null,"Newburgh","IN",47630,"10655 State Road 662 West",null,"Newburgh","IN",47630,"General Practice - Dental"]
[10924,200185918,"Krishen Sanjay Patel",null,null,"20330 Grande Oak Shoppes Blvd.",null,"Estero","FL",33928,"20330 Grande Oak Shoppes Blvd.",null,"Estero","FL",33928,"General Practice - Dental"]
[10925,455215073,"Ahmed M. Saleh Kiwan",null,null,"5285 Summerlin Road",null,"Fort Myers","FL",33919,"5285 Summerlin Road",null,"Fort Myers","FL",33919,"General Practice - Dental"]
[10926,204315857,"Melanie D. Pugh",null,null,"8800 Bernwood Pkwy.",null,"Bonita Springs","FL",34135,"8800 Bernwood Pkwy.",null,"Bonita Springs","FL",34135,"General Practice - Dental"]
[10927,852869564,"Timothy John Jernberg",null,null,"8899 Timberwilde Drive",null,"Bonita Springs","FL",34135,"8899 Timberwilde Drive",null,"Bonita Springs","FL",34135,"General Practice - Dental"]
[10928,651155086,"Vincent Joseph Guerra",null,null,"4425 Military Trail",null,"Jupiter","FL",33458,"4425 Military Trail",null,"Jupiter","FL",33458,"General Practice - Dental"]
[10929,200185918,"Christopher A. Bonesteel",null,null,"9590 Southwest 200 Hwy.",null,"Ocala","FL",34481,"9590 Southwest 200 Hwy.",null,"Ocala","FL",34481,"General Practice - Dental"]
[10930,843626319,"Bettie Linda Ongley",null,null,"45693 US Hwy. 27 North",null,"Davenport","FL",33897,"45693 US Hwy. 27 North",null,"Davenport","FL",33897,"General Practice - Dental"]
[10931,470997983,"Adam Howard Lau",null,null,"12781 Miramar Pkwy.",null,"Miramar","FL",33027,"12781 Miramar Pkwy.",null,"Miramar","FL",33027,"General Practice - Dental"]
[10932,200185918,"Keya N. Brown",null,null,"1940 Tamiami Trail",null,"Port Charlotte","FL",33948,"1940 Tamiami Trail",null,"Port Charlotte","FL",33948,"General Practice - Dental"]
[10933,814270272,"Victor  Katsman",null,null,"415 West Merrick Road",null,"Freeport","NY",11520,"415 West Merrick Road",null,"Freeport","NY",11520,"General Practice - Dental"]
[10934,874781692,"Christina  Reyes",null,null,"6741 Southwest 24th Street",null,"Miami","FL",33155,"6741 Southwest 24th Street",null,"Miami","FL",33155,"General Practice - Dental"]
[10935,200185918,"Celia  Hayes",null,null,"2139 Del Prado Blvd. South",null,"Cape Coral","FL",33990,"2139 Del Prado Blvd. South",null,"Cape Coral","FL",33990,"General Practice - Dental"]
[10936,844919448,"Brittany L. Angelloz-jones",null,null,"5417 Ortega Blvd.",null,"Jacksonville","FL",32210,"5417 Ortega Blvd.",null,"Jacksonville","FL",32210,"General Practice - Dental"]
[10937,842507489,"Minh Bao Pham",null,null,"603 South State Road 7",null,"Hollywood","FL",33023,"603 South State Road 7",null,"Hollywood","FL",33023,"General Practice - Dental"]
[10938,592125066,"Forster Davis Roberts",null,null,"2121 South McCall Road",null,"Englewood","FL",34224,"2121 South McCall Road",null,"Englewood","FL",34224,"General Practice - Dental"]
[10939,201872391,"Matthew A. Stratman",null,null,"801 North Wilmot Road",null,"Tucson","AZ",85711,"801 North Wilmot Road",null,"Tucson","AZ",85711,"General Practice - Dental"]
[10940,825293050,"Hayden Adams Bell",null,null,"2710 Southeast 17th Street",null,"Ocala","FL",34471,"2710 Southeast 17th Street",null,"Ocala","FL",34471,"General Practice - Dental"]
[10941,593262688,"Scott  McCauley",null,null,"609 Maitland Avenue",null,"Altamonte Springs","FL",32701,"609 Maitland Avenue",null,"Altamonte Springs","FL",32701,"General Practice - Dental"]
[10942,272386199,"Anthony Paul Martin",null,null,"1608 Ohm Avenue",null,"Eau Claire","WI",54701,"1608 Ohm Avenue",null,"Eau Claire","WI",54701,"General Practice - Dental"]
[10943,205354428,"Phuong Kim T. Van",null,null,"3185 Citrus Tower Blvd.",null,"Clermont","FL",34711,"3185 Citrus Tower Blvd.",null,"Clermont","FL",34711,"General Practice - Dental"]
[10944,593365515,"Anthony  Di Re",null,null,"1701 East Hallandale Beach Blvd.",null,"Hallandale Beach","FL",33009,"1701 East Hallandale Beach Blvd.",null,"Hallandale Beach","FL",33009,"General Practice - Dental"]
[10945,274214433,"Simon  Firer",null,null,"400 Carillon Pkwy.",null,"St. Petersburg","FL",33716,"400 Carillon Pkwy.",null,"St. Petersburg","FL",33716,"General Practice - Dental"]
[10946,854281797,"Juan Manuel Arrue",null,null,"1317 Milstead Avenue",null,"Conyers","GA",30012,"1317 Milstead Avenue",null,"Conyers","GA",30012,"General Practice - Dental"]
[10947,874041892,"Ross Tyler Freeman",null,null,"2761 South McCall Road",null,"Englewood","FL",34224,"2761 South McCall Road",null,"Englewood","FL",34224,"Surgery, Oral & Macillofacial"]
[10948,263975070,"Scott J. Aaron",null,null,"1096 Cypress Pkwy.",null,"Kissimmee","FL",34759,"1096 Cypress Pkwy.",null,"Kissimmee","FL",34759,"Orthodontics"]
[10949,830981219,"Christopher  Chan",null,null,"139 Center Street",null,"New York","NY",10013,"139 Center Street",null,"New York","NY",10013,"General Practice - Dental"]
[10950,593620272,"Clint Allen Rogers",null,null,"189 Southwest Captain Brown Road",null,"Madison","FL",32340,"189 Southwest Captain Brown Road",null,"Madison","FL",32340,"General Practice - Dental"]
[10951,882405248,"Stephen Lee Watkins",null,null,"22026 Gateway Blvd.",null,"Athens","AL",35613,"22026 Gateway Blvd.",null,"Athens","AL",35613,"General Practice - Dental"]
[10952,651035483,"Donald Alfred Gallo",null,null,"8701 Maitland Summit Blvd.",null,"Orlando","FL",32810,"8701 Maitland Summit Blvd.",null,"Orlando","FL",32810,"General Practice - Dental"]
[10953,200185918,"Robert Charles Sparks",null,null,"329 Cypress Gardens Blvd.",null,"Winter Haven","FL",33880,"329 Cypress Gardens Blvd.",null,"Winter Haven","FL",33880,"General Practice - Dental"]
[10954,812610575,"Jaime S. Davenport",null,null,"989 North Collier Blvd.",null,"Marco Island","FL",34145,"989 North Collier Blvd.",null,"Marco Island","FL",34145,"General Practice - Dental"]
[10955,474665148,"Michael  Farag",null,null,"5761 U.S. Hwy. 17/92",null,"Casselberry","FL",32707,"5761 U.S. Hwy. 17/92",null,"Casselberry","FL",32707,"General Practice - Dental"]
[10956,274029100,"Amanda D. Buscemi",null,null,"815 South University Drive",null,"Plantation","FL",33324,"815 South University Drive",null,"Plantation","FL",33324,"Pediatric Dentistry"]
[10957,453673671,"Loni Alan Vallejo",null,null,"1338 North Prescott Country Club Bl",null,"Dewey","AZ",86327,"1338 North Prescott Country Club Bl",null,"Dewey","AZ",86327,"General Practice - Dental"]
[10958,200185918,"Karen E. Ibrahim",null,null,"1507 Lyons Road",null,"Coconut Creek","FL",33063,"1507 Lyons Road",null,"Coconut Creek","FL",33063,"General Practice - Dental"]
[10959,471706456,"Vu H. Tran",null,null,"1602 Cortez Road West",null,"Bradenton","FL",34207,"1602 Cortez Road West",null,"Bradenton","FL",34207,"General Practice - Dental"]
[10960,843026378,"Diana  Perez",null,null,"17776 Northwest 57th Avenue",null,"Hialeah","FL",33015,"17776 Northwest 57th Avenue",null,"Hialeah","FL",33015,"General Practice - Dental"]
[10961,834704074,"Jonathan R. Van Dyke",null,null,"4610 North Ash Street",null,"Spokane","WA",99205,"4610 North Ash Street",null,"Spokane","WA",99205,"General Practice - Dental"]
[10962,822272495,"Marc J. Buttacavoli",null,null,"302A North Main Street",null,"Forked River","NJ",8731,"302A North Main Street",null,"Forked River","NJ",8731,"General Practice - Dental"]
[10963,593365515,"Crystal May Traeger",null,null,"2301 South Clear Creek",null,"Killeen","TX",76549,"2301 South Clear Creek",null,"Killeen","TX",76549,"General Practice - Dental"]
[10964,464805470,"Sheila N. Mazhari",null,null,"8150 Leesburg Pike",null,"Vienna","VA",22182,"8150 Leesburg Pike",null,"Vienna","VA",22182,"General Practice - Dental"]
[10965,611896011,"Hiral M. Modi",null,null,"660 East Eau Gallie Blvd.",null,"Indian Harbour Beach","FL",32937,"660 East Eau Gallie Blvd.",null,"Indian Harbour Beach","FL",32937,"General Practice - Dental"]
[10966,871516360,"Ernesto  Llerena",null,null,"960 Learning Way",null,"Tallahassee","FL",32306,"960 Learning Way",null,"Tallahassee","FL",32306,"General Practice - Dental"]
[10967,831075351,"Stacey  Hoffman",null,null,"654 West Indiantown Road",null,"Jupiter","FL",33458,"654 West Indiantown Road",null,"Jupiter","FL",33458,"Pediatric Dentistry"]
[10968,593587914,"Carol S.A. Schneider Fiola",null,null,"3040 Southwest 27th Avenue",null,"Ocala","FL",34471,"3040 Southwest 27th Avenue",null,"Ocala","FL",34471,"General Practice - Dental"]
[10969,650731064,"Aura Helena Jimenez",null,null,"13792 Southwest 8th Street",null,"Miami","FL",33184,"13792 Southwest 8th Street",null,"Miami","FL",33184,"General Practice - Dental"]
[10970,650385507,"Michele  Alex",null,null,"777 Glades Road",null,"Boca Raton","FL",33431,"777 Glades Road",null,"Boca Raton","FL",33431,"General Practice - Dental"]
[10971,831075351,"Alyssa  Benitez",null,null,"654 West Indiantown Road",null,"Jupiter","FL",33458,"654 West Indiantown Road",null,"Jupiter","FL",33458,"Pediatric Dentistry"]
[10972,860958933,"Qun  Collins",null,null,"1501 East Camp Mohave Road",null,"Fort Mohave","AZ",86426,"1501 East Camp Mohave Road",null,"Fort Mohave","AZ",86426,"General Practice - Dental"]
[10973,460632126,"Stephanie Renee Swett",null,null,"23 Carriage Road",null,"Ellsworth","ME",4605,"23 Carriage Road",null,"Ellsworth","ME",4605,"Dental Hygienist"]
[10974,851521737,"Lauren Elizabeth Schulte",null,null,"9776 San Jose Blvd.",null,"Jacksonville","FL",32257,"9776 San Jose Blvd.",null,"Jacksonville","FL",32257,"General Practice - Dental"]
[10975,812471327,"Andrew L. Lee",null,null,"2755 East Gulf to Lake Hwy.",null,"Inverness","FL",34453,"2755 East Gulf to Lake Hwy.",null,"Inverness","FL",34453,"General Practice - Dental"]
[10976,452546142,"Gayane N. Avakyan",null,null,"10484 Stringfellow Road",null,"St. James City","FL",33956,"10484 Stringfellow Road",null,"St. James City","FL",33956,"General Practice - Dental"]
[10977,273183156,"Marcelo Wolfgang Mattschei",null,null,"16960 Alico Mission Way",null,"Fort Myers","FL",33908,"16960 Alico Mission Way",null,"Fort Myers","FL",33908,"General Practice - Dental"]
[10978,251900896,"Eric Matthew VanDamia",null,null,"2181 Keystone Drive",null,"Erie","PA",16509,"2181 Keystone Drive",null,"Erie","PA",16509,"General Practice - Dental"]
[10979,881600158,"Julie A. Moore",null,null,"6824 Gulf to Lake Hwy.",null,"Crystal River","FL",34429,"6824 Gulf to Lake Hwy.",null,"Crystal River","FL",34429,"General Practice - Dental"]
[10980,822995402,"Gregory J. Moos",null,null,"380 Ice Center Lane",null,"Bozeman","MT",59718,"380 Ice Center Lane",null,"Bozeman","MT",59718,"General Practice - Dental"]
[10981,823277558,"Charles Armsworthy Straughan",null,null,"117 West Pennsylvania Avenue",null,"Bessemer City","NC",28016,"117 West Pennsylvania Avenue",null,"Bessemer City","NC",28016,"General Practice - Dental"]
[10982,371318546,"Sid C. Smith",null,null,"119 East Clinton Avenue",null,"Monmouth","IL",61462,"119 East Clinton Avenue",null,"Monmouth","IL",61462,"General Practice - Dental"]
[10983,822560724,"Elizabeth Sewell Pittman",null,null,"228 East Reynolds Road",null,"Lexington","KY",40517,"228 East Reynolds Road",null,"Lexington","KY",40517,"General Practice - Dental"]
[10984,463828753,"James Samuel Parham",null,null,"2707 West Huntsville Avenue",null,"Springdale","AR",72762,"2707 West Huntsville Avenue",null,"Springdale","AR",72762,"General Practice - Dental"]
[10985,813910856,"Nancy E. Bouchard",null,null,"13611 McGregor Blvd.",null,"Fort Myers","FL",33919,"13611 McGregor Blvd.",null,"Fort Myers","FL",33919,"General Practice - Dental"]
[10986,452704392,"Leticia Acosta D.M.D, P.A. - GP",null,null,"2534 Southeast Santa Barbara Place",null,"Cape Coral","FL",33904,"2534 Southeast Santa Barbara Place",null,"Cape Coral","FL",33904,"General Practice - Dental"]
[10987,382049202,"Nicole E. Stehle",null,null,"4851 East Pickard Street",null,"Mt. Pleasant","MI",48858,"4851 East Pickard Street",null,"Mt. Pleasant","MI",48858,"Surgery, Oral & Macillofacial"]
[10988,161492202,"Courtney Marie Gormley",null,null,"55 Oak Street",null,"Binghamton","NY",13905,"55 Oak Street",null,"Binghamton","NY",13905,"General Practice - Dental"]
[10989,871396870,"Silas E. Mcaninch",null,null,"2711 South Tamiami Trail",null,"Sarasota","FL",34239,"2711 South Tamiami Trail",null,"Sarasota","FL",34239,"Pediatric Dentistry"]
[10990,200569591,"Kevin Francis Healy",null,null,"9707 Key West Avenue",null,"Rockville","MD",20850,"9707 Key West Avenue",null,"Rockville","MD",20850,"General Practice - Dental"]
[10991,453659364,"Andrew Paul Minigh",null,null,"809 Mineral Road",null,"Glenville","WV",26351,"809 Mineral Road",null,"Glenville","WV",26351,"General Practice - Dental"]
[10992,452546142,"Rafael  Martinez",null,null,"14651 Palm Beach Blvd.",null,"Fort Myers","FL",33905,"14651 Palm Beach Blvd.",null,"Fort Myers","FL",33905,"General Practice - Dental"]
[10993,561580925,"Peter Biagio Franco",null,null,"8738 University City Blvd.",null,"Charlotte","NC",28213,"8738 University City Blvd.",null,"Charlotte","NC",28213,"Surgery, Oral & Macillofacial"]
[10994,200185918,"Karlee Jeane Baker",null,null,"600 Boyd Road",null,"Azle","TX",76020,"600 Boyd Road",null,"Azle","TX",76020,"General Practice - Dental"]
[10995,815196637,"Mohammad  Tirtashi",null,null,"3300 South 32nd Avenue",null,"Grand Forks","ND",58201,"3300 South 32nd Avenue",null,"Grand Forks","ND",58201,"General Practice - Dental"]
[10996,832017999,"Brian A. Salvie",null,null,"445 11th Street",null,"Orange Cove","CA",93646,"445 11th Street",null,"Orange Cove","CA",93646,"General Practice - Dental"]
[10997,822446516,"Makaela Manner Kunstler",null,null,"501 Goodlette Road North",null,"Naples","FL",34102,"501 Goodlette Road North",null,"Naples","FL",34102,"General Practice - Dental"]
[10998,473231253,"Mark W. Mitchell",null,null,"6731 Madison Street",null,"New Port Richey","FL",34652,"6731 Madison Street",null,"New Port Richey","FL",34652,"Surgery, Oral & Macillofacial"]
[10999,472438263,"Mohit  Modgil",null,null,"594 Montauk Hwy.",null,"Bayport","NY",11705,"594 Montauk Hwy.",null,"Bayport","NY",11705,"General Practice - Dental"]
[11000,872719660,"Gynnekia Marie Booth",null,null,"4873 Belle Terre Parkway",null,"Palm Coast","FL",32137,"4873 Belle Terre Parkway",null,"Palm Coast","FL",32137,"General Practice - Dental"]
[11001,812937010,"Jeffrey R. Burroughs",null,null,"5525 West 119th Street",null,"Overland Park","KS",66209,"5525 West 119th Street",null,"Overland Park","KS",66209,"Endodontics"]
[11002,204315857,"Mary Elizabeth Midence",null,null,"8800 Bernwood Pkwy.",null,"Bonita Springs","FL",34135,"8800 Bernwood Pkwy.",null,"Bonita Springs","FL",34135,"General Practice - Dental"]
[11003,264826766,"Avis Marie Medina",null,null,"6230 Scott Street",null,"Punta Gorda","FL",33950,"6230 Scott Street",null,"Punta Gorda","FL",33950,"General Practice - Dental"]
[11004,134224685,"John  Basile",null,null,"5005 State Road",null,"Ashtabula","OH",44004,"5005 State Road",null,"Ashtabula","OH",44004,"Surgery, Oral & Macillofacial"]
[11005,200185918,"Nicole Leigh Dunlap",null,null,"1940 Tamiami Trail",null,"Port Charlotte","FL",33948,"1940 Tamiami Trail",null,"Port Charlotte","FL",33948,"General Practice - Dental"]
[11006,851665841,"Dhruv Amit Patel",null,null,"602 North Thornton Avenue",null,"Orlando","FL",32803,"602 North Thornton Avenue",null,"Orlando","FL",32803,"General Practice - Dental"]
[11007,650791661,"Haralambos Bob Vlahos",null,null,"2960 Aventura Blvd.",null,"Aventura","FL",33180,"2960 Aventura Blvd.",null,"Aventura","FL",33180,"General Practice - Dental"]
[11008,260357554,"Noah B. Honig",null,null,"8851 North 56th Street",null,"Temple Terrace","FL",33617,"8851 North 56th Street",null,"Temple Terrace","FL",33617,"General Practice - Dental"]
[11009,471706456,"Gabriela Alejandra Perez Pedrianes",null,null,"4923 Clark Road",null,"Sarasota","FL",34233,"4923 Clark Road",null,"Sarasota","FL",34233,"General Practice - Dental"]
[11010,832520749,"Andrew  Sadek",null,null,"775 East Merritt Island Causeway",null,"Merritt Island","FL",32952,"775 East Merritt Island Causeway",null,"Merritt Island","FL",32952,"General Practice - Dental"]
[11011,274214433,"Simon  Firer",null,null,"400 Carillon Pkwy.",null,"St. Petersburg","FL",33716,"400 Carillon Pkwy.",null,"St. Petersburg","FL",33716,"General Practice - Dental"]
[11012,812010661,"Mitra Darice Waite",null,null,"1801 Beltine Road Southwest",null,"Decatur","AL",35601,"1801 Beltine Road Southwest",null,"Decatur","AL",35601,"General Practice - Dental"]
[11013,351956068,"Tyler J. Potter",null,null,"1630 West Smith Valley Road",null,"Greenwood","IN",46142,"1630 West Smith Valley Road",null,"Greenwood","IN",46142,"Surgery, Oral & Macillofacial"]
[11014,351956068,"John W. Pruitt",null,null,"1630 West Smith Valley Road",null,"Greenwood","IN",46142,"1630 West Smith Valley Road",null,"Greenwood","IN",46142,"Surgery, Oral & Macillofacial"]
[11015,593365515,"Gary R. Aspinwall",null,null,"9411 Cypress Lake Drive",null,"Fort Myers","FL",33919,"9411 Cypress Lake Drive",null,"Fort Myers","FL",33919,"General Practice - Dental"]
[11016,134334999,"Kristin A. Woods",null,null,"14884 Tamiami Trail",null,"North Port","FL",34287,"14884 Tamiami Trail",null,"North Port","FL",34287,"General Practice - Dental"]
[11017,843066831,"Carl  Amaral",null,null,"463859 State Road 200",null,"Yulee","FL",32097,"463859 State Road 200",null,"Yulee","FL",32097,"General Practice - Dental"]
[11018,593365515,"Geary S. Yamashita",null,null,"13435 South McCall Road",null,"Port Charlotte","FL",33981,"13435 South McCall Road",null,"Port Charlotte","FL",33981,"General Practice - Dental"]
[11019,364715980,"Vincent Joseph Monticciolo",null,null,"1370 Main Street",null,"Dunedin","FL",34698,"1370 Main Street",null,"Dunedin","FL",34698,"General Practice - Dental"]
[11020,621874676,"Randall L. Ford",null,null,"1740 Big Springs Road",null,"Maryville","TN",37801,"1740 Big Springs Road",null,"Maryville","TN",37801,"General Practice - Dental"]
[11021,462502257,"Luz Desiree Visbal",null,null,"27605 Cashford Circle",null,"Wesley Chapel","FL",33544,"27605 Cashford Circle",null,"Wesley Chapel","FL",33544,"Endodontics"]
[11022,861420363,"Rodion  Kryzhanovskiy",null,null,"499 Northwest Prima Vista Blvd.",null,"Port St. Lucie","FL",34983,"499 Northwest Prima Vista Blvd.",null,"Port St. Lucie","FL",34983,"General Practice - Dental"]
[11023,833678982,"Ryan Joseph Germann",null,null,"6871 Daniels Pkwy.",null,"Fort Myers","FL",33912,"6871 Daniels Pkwy.",null,"Fort Myers","FL",33912,"Endodontics"]
[11024,832268452,"Wisdom D. Akpaka",null,null,"2000 Brittain Road",null,"Akron","OH",44310,"2000 Brittain Road",null,"Akron","OH",44310,"General Practice - Dental"]
[11025,200618977,"Douglas L. Johnson",null,null,"653 West 8th Street",null,"Jacksonville","FL",32209,"653 West 8th Street",null,"Jacksonville","FL",32209,"Surgery, Oral & Macillofacial"]
[11026,621111379,"Warren Kent Stinson",null,null,"113 East Broadway Blvd.",null,"Jefferson City","TN",37760,"113 East Broadway Blvd.",null,"Jefferson City","TN",37760,"General Practice - Dental"]
[11027,461590152,"Amber B. Johnson",null,null,"4020 Hughes Crossing",null,"Franklin","TN",37064,"4020 Hughes Crossing",null,"Franklin","TN",37064,"General Practice - Dental"]
[11028,874204205,"Evelyn Xiomara Arellano",null,null,"21740 South Tamiami Trail",null,"Estero","FL",33928,"21740 South Tamiami Trail",null,"Estero","FL",33928,"General Practice - Dental"]
[11029,650195566,"Garrett S. Dennis",null,null,"451 East Altamonte Drive",null,"Altamonte Springs","FL",32701,"451 East Altamonte Drive",null,"Altamonte Springs","FL",32701,"General Practice - Dental"]
[11030,871396870,"Anurag R. Gudeti",null,null,"3108 North Boundary Blvd.",null,"Tampa","FL",33621,"3108 North Boundary Blvd.",null,"Tampa","FL",33621,"General Practice - Dental"]
[11031,842019790,"Amanda Bayley Matthews",null,null,"900 Foulk Road",null,"Wilmington","DE",19803,"900 Foulk Road",null,"Wilmington","DE",19803,"General Practice - Dental"]
[11032,465227149,"Aurora Rocio Alva",null,null,"20289 Stevens Creek Blvd",null,"Cupertino","CA",95014,"20289 Stevens Creek Blvd",null,"Cupertino","CA",95014,"Pediatric Dentistry"]
[11033,272502445,"Kevin Page Bond",null,null,"2719 Coltsgate Road",null,"Charlotte","NC",28211,"2719 Coltsgate Road",null,"Charlotte","NC",28211,"Surgery, Oral & Macillofacial"]
[11034,263766926,"Adam C. Barbag",null,null,"9172 Glades Road",null,"Boca Raton","FL",33434,"9172 Glades Road",null,"Boca Raton","FL",33434,"General Practice - Dental"]
[11035,593736325,"Zakir A. Shaikh",null,null,"7352 Stonerock Circle.",null,"Orlando","FL",32819,"7352 Stonerock Circle.",null,"Orlando","FL",32819,"Surgery, Oral & Macillofacial"]
[11036,900135325,"Marta M. Rivera",null,null,"8709 Hunters Green Drive",null,"Tampa","FL",33647,"8709 Hunters Green Drive",null,"Tampa","FL",33647,"Pediatric Dentistry"]
[11037,593736325,"Ofilio J. Morales",null,null,"7352 Stonerock Circle.",null,"Orlando","FL",32819,"7352 Stonerock Circle.",null,"Orlando","FL",32819,"Surgery, Oral & Macillofacial"]
[11038,352165184,"Barbra Jean Reed",null,null,"2550 Northbrooke Plaza Drive",null,"Naples","FL",34119,"2550 Northbrooke Plaza Drive",null,"Naples","FL",34119,"Orthodontics"]
[11039,203804804,"Yassamin Dorosti Dorosti",null,null,"2695 Maysville Pike",null,"Zanesville","OH",43701,"2695 Maysville Pike",null,"Zanesville","OH",43701,"General Practice - Dental"]
[11040,844045777,"Emily  Nabut",null,null,"2607 Gulf to Bay Blvd",null,"Clearwater","FL",33759,"2607 Gulf to Bay Blvd",null,"Clearwater","FL",33759,"General Practice - Dental"]
[11041,650044366,"John C. Hall",null,null,"3850 South Osprey Avenue",null,"Sarasota","FL",34239,"3850 South Osprey Avenue",null,"Sarasota","FL",34239,"General Practice - Dental"]
[11042,845094439,"Dharam Pal Tayal",null,null,"229 Wheelhouse Lane",null,"Lake Mary","FL",32746,"229 Wheelhouse Lane",null,"Lake Mary","FL",32746,"General Practice - Dental"]
[11043,650847869,"Sunghee  Ahn",null,null,"951 Broken Sound Pkwy. Northwest",null,"Boca Raton","FL",33487,"951 Broken Sound Pkwy. Northwest",null,"Boca Raton","FL",33487,"Endodontics"]
[11044,861420363,"Dmitriy  Kravchenko",null,null,"1937 North Military Trail",null,"West Palm Beach","FL",33409,"1937 North Military Trail",null,"West Palm Beach","FL",33409,"Surgery, Oral & Macillofacial"]
[11045,452628920,"Juan C. Arroyo",null,null,"131 Northwest 100th Avenue",null,"Plantation","FL",33324,"131 Northwest 100th Avenue",null,"Plantation","FL",33324,"Surgery, Oral & Macillofacial"]
[11046,204881532,"Steven Clint Hudson",null,null,"2317 Whitesburg Drive Southeast",null,"Huntsville","AL",35801,"2317 Whitesburg Drive Southeast",null,"Huntsville","AL",35801,"Surgery, Oral & Macillofacial"]
[11047,473753747,"Rakesh A. Shah",null,null,"910 Adams Street",null,"Huntsville","AL",35801,"910 Adams Street",null,"Huntsville","AL",35801,"Surgery, Oral & Macillofacial"]
[11048,900868238,"Anne Lindsey Broderick",null,null,"4955 Castello Drive",null,"Naples","FL",34103,"4955 Castello Drive",null,"Naples","FL",34103,"Periodontics"]
[11049,650743582,"Thomas Aristides Copulos",null,null,"5411 North University Drive",null,"Coral Springs","FL",33067,"5411 North University Drive",null,"Coral Springs","FL",33067,"Periodontics"]
[11050,650129699,"Steven Hirsch Berkowitz",null,null,"255 Southeast 14th Street",null,"Fort Lauderdale","FL",33316,"255 Southeast 14th Street",null,"Fort Lauderdale","FL",33316,"Periodontics"]
[11051,461180484,"Tony K. Yoon",null,null,"70 Thomas Johnson Drive",null,"Frederick","MD",21702,"70 Thomas Johnson Drive",null,"Frederick","MD",21702,"Endodontics"]
[11052,208426308,"Shin-Chieh  Yang",null,null,"835 7th Street",null,"Clermont","FL",34711,"835 7th Street",null,"Clermont","FL",34711,"General Practice - Dental"]
[11053,474375616,"Amanda  Sharp",null,null,"4012 9th Avenue West",null,"Bradenton","FL",34205,"4012 9th Avenue West",null,"Bradenton","FL",34205,"General Practice - Dental"]
[11054,202303635,"Vaishaliben A. Patel",null,null,"311 South Bickett Blvd.",null,"Louisburg","NC",27549,"311 South Bickett Blvd.",null,"Louisburg","NC",27549,"Periodontics"]
[11055,471258525,"Andrew H. Vo",null,null,"300 M Street Southeast",null,"Washington","DC",20003,"300 M Street Southeast",null,"Washington","DC",20003,"Endodontics"]

{"sheet":"4b - GEO Access","index":17,"n_rows":24,"n_cols":7,"rows_kept":24,"cut":false,"hidden":false,"merged":[[7,1,7,2],[10,1,10,6],[11,1,11,6],[15,1,15,6],[23,2,23,6]]}
[]
[null,{"$f":"Introduction!B2","v":"Request for Proposal (RFP) for Employee Benefits Plan Dental"}]
[null,{"$f":"Introduction!B3","v":"for Lee County Board of County Commissioners (Lee County)"}]
[null,{"$f":"Introduction!B4","v":"RFP240179CJV"}]
[null,{"$f":"'TAB 4'!C5","v":"Request for Proposal - TAB 4: Network Access and Disruption"}]
[null,{"$f":"Introduction!B6","v":"Effective 1/1/2025"}]
[]
[null,"To Proposer: Please enter your Company's name in the space provided below."]
[null,"Name of Proposer:"]
[]
[null,"GEO Access\n   1- Please provide the data requested below using only the census zip codes included with this RFP solicitation.\n   2- Please do not alter access standards."]
[null,"Example"]
[null,"Dental Provider","Number of Dental Providers","Miles from Residence","Percentage of Lee County Population Meeting Standards","Count of Lee County Population Not Meeting Standards","Average Distance (miles) to a Provider"]
[null,"Dental Providers",2,10,0.92200000000000004,45,1.4]
[]
[null,"Response Section:"]
[null,"Dental Provider","Number of Dental Providers","Miles from Residence","Percentage of Lee County Population Meeting Standards","Count of Lee County Population Not Meeting Standards","Average Distance (miles) to a Provider"]
[null,"General Dentists",2,10,"[Input response here]","[Input response here]","[Input response here]"]
[null,"Orthodontists",null,null,"[Input response here]","[Input response here]","[Input response here]"]
[null,"Periodontists",null,null,"[Input response here]","[Input response here]","[Input response here]"]
[null,"Oral Surgeon",null,null,"[Input response here]","[Input response here]","[Input response here]"]
[null,"Endodontists",null,null,"[Input response here]","[Input response here]","[Input response here]"]
[]
[null,"Notes regarding Dental provider network","[Input response here]"]

{"sheet":"4c - Discount Analysis","index":18,"n_rows":56,"n_cols":14,"rows_kept":56,"cut":false,"hidden":false,"merged":[[10,1,10,6],[13,1,13,2],[7,1,7,4],[8,2,8,4]]}
[]
[null,{"$f":"Introduction!B2","v":"Request for Proposal (RFP) for Employee Benefits Plan Dental"}]
[null,{"$f":"Introduction!B3","v":"for Lee County Board of County Commissioners (Lee County)"}]
[null,{"$f":"Introduction!B4","v":"RFP240179CJV"}]
[null,{"$f":"'TAB 4'!C5","v":"Request for Proposal - TAB 4: Network Access and Disruption"}]
[null,{"$f":"Introduction!B6","v":"Effective 1/1/2025"}]
[]
[null,"To Proposer: Please enter your Company's name in the space provided below."]
[null,"Name of Proposer:"]
[]
[null,"Discount Analysis\n• The 41 CDT procedures below represent a market basket of dental services\n• For each of the 10 3-digit zip code areas, provide your allowed charges for each\n• In the analysis phase, these contracted amounts will be weighted together based on actuarially-expected frequencies\n• The resulting weighted average allowed amounts, along with their network use [disrupted based on $ paid ] will be shown to the committee."]
[]
[null,null,null,"3 Digit ZIP",339,341,342,330,333,334,331,338,320,344]
[null,"Procedure Code",null,"Description of Service","Weighted Avg Contracted Fee","Weighted Avg Contracted Fee","Weighted Avg Contracted Fee","Weighted Avg Contracted Fee","Weighted Avg Contracted Fee","Weighted Avg Contracted Fee","Weighted Avg Contracted Fee","Weighted Avg Contracted Fee","Weighted Avg Contracted Fee","Weighted Avg Contracted Fee"]
[null,"Preventive","D0120","periodic oral evaluation – established patient"]
[null,null,"D0140","limited oral evaluation – problem focused"]
[null,null,"D0150","comprehensive oral evaluation – new or established patient"]
[null,null,"D0210","intraoral – complete series (including bitewings)"]
[null,null,"D0220","intraoral – periapical first film"]
[null,null,"D0230","intraoral – periapical each additional film"]
[null,null,"D0272","bitewings – two films"]
[null,null,"D0274","bitewings – four films"]
[null,null,"D0330","panoramic film"]
[null,null,"D1110","prophylaxis – adult"]
[null,null,"D1120","prophylaxis – child"]
[null,null,"D1208","topical application of fluoride – adult or child"]
[null,null,"D1351","sealant – per tooth"]
[null,null,"D9110","palliative (emergency) treatment of dental pain – minor procedure"]
[null,"Basic","D2140","amalgam – one surface, primary or permanent"]
[null,null,"D2150","amalgam – two surfaces, primary or permanent"]
[null,null,"D2160","amalgam – three surfaces, primary or permanent"]
[null,null,"D2161","amalgam – four or more surfaces, primary or permanent"]
[null,null,"D2330","resin-based composite – one surface, anterior"]
[null,null,"D2331","resin-based composite – two surfaces, anterior"]
[null,null,"D2332","resin-based composite – three surfaces, anterior"]
[null,null,"D2335","resin-based composite – four or more surfaces or involving incisal angle (anterior)"]
[null,null,"D2391","resin-based composite – one surface, posterior"]
[null,null,"D2392","resin-based composite – two surfaces, posterior"]
[null,null,"D3310","endodontic therapy, anterior tooth (excluding final restoration)"]
[null,null,"D3320","endodontic therapy, bicuspid tooth (excluding final restoration)"]
[null,null,"D3330","endodontic therapy, molar (excluding final restoration)"]
[null,null,"D4341","periodontal scaling and root planing – four or more teeth per quadrant"]
[null,null,"D4910","periodontal maintenance"]
[null,null,"D7140","extraction, erupted tooth or exposed root (elevation and/or forceps removal)"]
[null,null,"D7210","surgical removal of erupted tooth requiring removal of bone and/or sectioning of tooth, and including elevation of mucoperiosteal flap if indicated"]
[null,null,"D7230","removal of impacted tooth – partially bony"]
[null,null,"D7240","removal of impacted tooth – completely bony"]
[null,null,"D9220","deep sedation/general anesthesia – first 30 minutes"]
[null,"Major","D2750","crown – porcelain fused to high noble metal"]
[null,null,"D2752","crown – porcelain fused to noble metal"]
[null,null,"D2790","crown – full cast high noble metal"]
[null,null,"D2792","crown – full cast noble metal"]
[null,null,"D2920","recement crown"]
[null,null,"D2950","core buildup, including any pins"]
[null,null,"D2954","prefabricated post and core in addition to crown"]
[null,"Orthodontia","D8670","periodic orthodontic treatment vision to mon"]

{"sheet":"TAB 5","index":19,"n_rows":12,"n_cols":3,"rows_kept":12,"cut":false,"hidden":false,"merged":[[11,2,11,3],[8,2,8,3],[9,2,9,3],[10,2,10,3]]}
[]
[null,null,{"$f":"Introduction!B2","v":"Request for Proposal (RFP) for Employee Benefits Plan Dental"}]
[null,null,{"$f":"Introduction!B3","v":"for Lee County Board of County Commissioners (Lee County)"}]
[null,null,{"$f":"Introduction!B4","v":"RFP240179CJV"}]
[null,null,"Request for Proposal - TAB 5: Cost"]
[null,null,{"$f":"Introduction!B6","v":"Effective 1/1/2025"}]
[]
[]
[null,null,"The Following Tabs Should be Included in the \"TAB 5:Cost\" submission binder"]
[null,null,"Attachment A:\n"]
[null,null,"5a - Cost\n"]
[null,null,"Refer to County Procurement RFP Posting for complete RFP Submission Details."]

{"sheet":"5a - Cost","index":20,"n_rows":50,"n_cols":6,"rows_kept":50,"cut":false,"hidden":false,"merged":[[7,2,7,4]]}
[]
[null,null,{"$f":"Introduction!B2","v":"Request for Proposal (RFP) for Employee Benefits Plan Dental"}]
[null,null,{"$f":"Introduction!B3","v":"for Lee County Board of County Commissioners (Lee County)"}]
[null,null,{"$f":"Introduction!B4","v":"RFP240179CJV"}]
[null,null,"Request for Proposal - TAB 5: Cost"]
[null,null,{"$f":"Introduction!B6","v":"Effective 1/1/2025"}]
[]
[null,null,"To Proposer: Please enter your Company's name in the space provided below."]
[null,null,"Name of Proposer:"]
[]
[]
["I.",null,"Cost - Questionnaire"]
[null,null,"Question","Response","Explanation"]
[1,null,"Please confirm you are proposing an initial contract term of 3 years with 2 additional 1 year renewals."]
[2,null,"Please confirm you agree to an initial 3 year rate guarantee. If not, please indicate the rate guarantee included with your proposal. Are you willing to put a maximum increase guarantee in place for the 2 renewal periods? If so, please include the amount."]
[3,null,"Describe any assumptions and caveats that pertain to the pricing of your proposal."]
[4,null,"Are there any costs associated with your proposal that is not covered by the rates included below? If yes, please include details on the fees including when they would apply and an estimate of costs for a group of Lee County's size."]
[5,null,"Are you including a communications budget with your proposal? If so, please include the amount here and indicate if it is annual or one-time."]
[6,null,"Are you including a fee holiday or any additional credits with your proposal? If so, please include the details here."]
[]
["II.",null,"Fees and Pricing"]
[1,null,"Dental Administration Fees","Current","Vendor Response","Explanation"]
[null,"a","General Administration","Included"]
[null,"b","Base administration fee",2.12]
[null,"c","Billing, eligibility, underwriting and plan setup","Included"]
[null,"d","Review or draft plan documents","Included"]
[null,"e","Claim fiduciary","Included"]
[2,null,"Member and Claim Services","Current","Vendor Response","Explanation"]
[null,"a","$40,000 Implementation Budget","Included"]
[null,"b","$10,000 Communication Budget","Included"]
[null,"c","Requesting a $40,000 claims audit credit","N/A"]
[null,"d","Claim Processing and Adjudication","Included"]
[null,"e","Member services ","Included"]
[3,null,"Aetna Voice Advantage (IVR)","Current","Vendor Response","Explanation"]
[null,"a","Designated national accounts service center","Included"]
[null,"b","Plan sponsor liaison","Included"]
[null,"c","Web tools","Included"]
[null,"d","Fraud investigations","Included"]
[null,"e","Network Information","Included"]
[4,null,"Network access/ full national reciprocity","Current","Vendor Response","Explanation"]
[null,"a","PPO network","Included"]
[null,"b","Out of network savings program","Included"]
[null,"c","Member Health, Wellness and Discount Program","Included"]
[null,"d","Dental medical integration (if applicable)","Included"]
[null,"e","Dental wellness program","Included"]
[5,null,"Reporting","Current","Vendor Response","Explanation"]
[null,"a","Quarterly Utilization Reports","Included"]
[null,"b","Monthly Financial Claim Detail Reports","Included"]
[null,"c","5 Hours of Ad Hoc Reports, Annual Restoration","Included"]
[null,"d","Monthly Banking Reports","Included"]